{"text_format":"1","workbook":"xlsx","n_sheets":23,"sheets":["inicio","Cap_Proceso","FtoCapRi","Dashboard","Disparadores","Acciones","Cap_SubProceso","TablasDina","Instructivo","CataRiesgos","Catálogos","TempoSP","Cap_Procedimientos","Riesgos","CRiesgos","Ayudas","AyudaGeneral","RiesgoResidual","Categorias","Metricas","Procesos","Hoja7","Hoja2"],"not_rendered":{"charts":10,"images":45,"macros":1,"external_links":0,"defined_names":149,"comments":2,"pivot_tables":11},"unopened":[],"bounds":{"document_bytes":16777216,"sheet_cells":100000,"rows_first":2000,"rows_last":500,"rows_between":2000,"halvings":0,"cell_chars":16384,"cell_head_chars":4096},"cells_cut":0,"cells_raw":0,"read":"whole","date_system":"1900"}

{"sheet":"inicio","index":0,"n_rows":3,"n_cols":2,"rows_kept":3,"cut":false,"hidden":false,"merged":[[2,1,2,7],[1,1,1,7]]}
[]
[null,"Universidad Veracruzana"]
[null,"Sistema de Gestión de Calidad - Valoración de Riesgos"]

{"sheet":"Cap_Proceso","index":1,"n_rows":42,"n_cols":10,"rows_kept":42,"cut":false,"hidden":true,"merged":[[1,1,1,11],[2,1,2,11],[21,1,21,3],[7,1,7,11],[11,2,11,4],[17,2,17,3],[13,3,13,4]]}
[]
[null,"Universidad Veracruzana"]
[null,"Sistema de Gestión de Calidad - Valoración de Riesgos"]
[]
[]
[]
[null,"Módulo de Procesos"]
[null,"Módulo de Procesos"]
[]
[]
[null,null,"Nombre del Proceso (Nivel Uno)"]
[]
[]
[null,null,"Tipo de Proceso      "]
[]
[null,null,"Entidad Académica o Dependencia Responsable"]
[]
[null,null,{"$f":"IF(LEN($D$16)>0,VLOOKUP($D$16,TablaDependencias[],2,FALSE),\"Escriba la clave de Entidad Académica o Dependencia\")","v":"Escriba la clave de Entidad Académica o Dependencia"},null,{"$f":"IF(LEN($D$16)>0,VLOOKUP($D$16,TablaDependencias[],4,FALSE),\"\")","v":""}]
[]
[]
[]
[null,"Procesos Nivel 1"]
[]
[null,"ID","Nombre del Proceso nivel 1","EAyD responsable","TipoProceso","IDP","Id_Riesgo","Folio_Riesgo","Folio_SubP","ClaveEAYD"]
[null,1,"Transparencia","CUTAI","Directivo",{"$f":"CONCATENATE(\"P_\",TProcesos[[#This Row],[ID]])","v":"P_1"},"CUTAI",2,1,11983]
[null,2,"Acceso a la Información","CUTAI","Directivo",{"$f":"CONCATENATE(\"P_\",TProcesos[[#This Row],[ID]])","v":"P_2"},null,null,1,11983]
[null,3,"Protección de Datos Personales","CUTAI","Directivo",{"$f":"CONCATENATE(\"P_\",TProcesos[[#This Row],[ID]])","v":"P_3"},null,null,1,11983]
[null,4,"Sistema Bibliotecario","DGB","Académico",{"$f":"CONCATENATE(\"P_\",TProcesos[[#This Row],[ID]])","v":"P_4"},"USBI",1,1,11935]
[null,5,"Desempeño Docente","DGDAIE","Académico",{"$f":"CONCATENATE(\"P_\",TProcesos[[#This Row],[ID]])","v":"P_5"},null,null,1,11928]
[null,6,"Formación Académica","DGDAIE","Académico",{"$f":"CONCATENATE(\"P_\",TProcesos[[#This Row],[ID]])","v":"P_6"},null,null,1,11928]
[null,7,"Tutoría","DGDAIE","Académico",{"$f":"CONCATENATE(\"P_\",TProcesos[[#This Row],[ID]])","v":"P_7"},null,null,1,11928]
[null,8,"Ingreso","DGAE","Académico",{"$f":"CONCATENATE(\"P_\",TProcesos[[#This Row],[ID]])","v":"P_8"},null,null,2,11929]
[null,9,"Permanencia","DGAE","Académico",{"$f":"CONCATENATE(\"P_\",TProcesos[[#This Row],[ID]])","v":"P_9"},null,null,1,11929]
[null,10,"Egreso","DGAE","Académico",{"$f":"CONCATENATE(\"P_\",TProcesos[[#This Row],[ID]])","v":"P_10"},null,null,1,11929]
[null,11,"Movilidad","DGRI","Académico",{"$f":"CONCATENATE(\"P_\",TProcesos[[#This Row],[ID]])","v":"P_11"},null,null,1,11710]
[null,12,"Gestión de Servicios Administrativos y Programas de Vinculación e Intregación Cultural y Académica","DGRI","Académico",{"$f":"CONCATENATE(\"P_\",TProcesos[[#This Row],[ID]])","v":"P_12"},null,null,1,11710]
[null,13,"Administración de Recursos Financieros","DGRF","Administrativo-Financiero",{"$f":"CONCATENATE(\"P_\",TProcesos[[#This Row],[ID]])","v":"P_13"},"ARF",1,4,11944]
[null,14,"Administración de Bienes y Servicios","DRM","Administrativo-Financiero",{"$f":"CONCATENATE(\"P_\",TProcesos[[#This Row],[ID]])","v":"P_14"},null,null,2,11955]
[null,15,"Planeación Estratégica, Táctica y Operativa","DPI","Desarrollo Institucional",{"$f":"CONCATENATE(\"P_\",TProcesos[[#This Row],[ID]])","v":"P_15"},null,null,2,11908]
[null,{"$f":"B39+1","v":16},"Seguimiento a la Planeación Estratégica, Táctica y Operativa","DPI","Desarrollo Institucional",{"$f":"CONCATENATE(\"P_\",TProcesos[[#This Row],[ID]])","v":"P_16"},null,null,2,11908]
[null,17,"Administración del Sistema de Gestión de la Calidad de la UV","DPI","Desarrollo Institucional",{"$f":"CONCATENATE(\"P_\",TProcesos[[#This Row],[ID]])","v":"P_17"},"SGCUV",1,1,11908]
[null,18,"Gestión de Servicios de Tecnologías de la Información en la Región Xalapa","DGTI","Desarrollo Institucional",{"$f":"CONCATENATE(\"P_\",TProcesos[[#This Row],[ID]])","v":"P_18"},"TI",3,1,11911]

{"sheet":"FtoCapRi","index":2,"n_rows":34,"n_cols":32,"rows_kept":34,"cut":false,"hidden":true,"merged":[[30,1,32,1],[21,2,23,4],[24,2,26,4],[18,5,20,5],[21,5,23,5],[24,5,26,5],[9,1,9,15],[15,1,15,15],[16,5,17,5],[16,6,17,6],[18,2,20,4],[18,7,32,7],[18,8,32,8],[18,9,32,9],[16,1,17,1],[16,2,17,4],[27,2,29,4],[18,1,20,1],[21,1,23,1],[24,1,26,1],[27,1,29,1],[30,2,32,4],[10,9,10,15],[11,9,11,15],[14,11,14,15],[13,11,13,15],[13,6,13,9],[14,6,14,9],[12,1,12,15],[10,1,10,3],[11,1,11,3],[10,4,10,8],[14,1,14,5],[13,1,13,5],[11,4,11,8],[7,1,7,2],[8,1,8,2],[7,11,7,15],[7,3,7,10],[8,11,8,15],[8,3,8,10],[5,7,5,10],[6,7,6,10],[6,11,6,15],[4,1,4,15],[2,1,2,15],[1,1,1,15],[5,11,5,15],[16,12,16,14],[16,15,16,19],[18,10,32,10],[27,5,29,5],[30,5,32,5],[18,6,20,6],[21,6,23,6],[24,6,26,6],[27,6,29,6],[30,6,32,6],[16,7,16,10],[16,11,17,11],[6,1,6,6],[5,1,5,6],[33,13,33,19],[18,20,32,20],[16,20,16,22],[18,21,32,21],[18,22,32,22]]}
[]
[null,"Universidad Veracruzana"]
[null,"Captura de Riesgos"]
[]
[null,"Información del Proceso"]
[null,"Proceso (Nivel 1)",null,null,null,null,null,"Subproceso (Nivel 2)",null,null,null,"Procedimiento (Nivel 3)"]
[null,"Gestión de Servicios Administrativos y Programas de Vinculación e Intregación Cultural y Académica",null,null,null,null,null,"N/A",null,null,null,"Respaldo de Información Administrativa"]
[null,"Clave",null,"Nombre de la Entidad Académica o Dependencia",null,null,null,null,null,null,null,"Región"]
[null,{"$f":"IF(LEN(B7)>0,VLOOKUP(B7,TProcesosEA,8,FALSE),\"\")","v":11710},null,{"$f":"IF(LEN(B$9)>0,VLOOKUP(B$9,TablaDependencias[],2,FALSE),\"\")","v":"DIRECCION GENERAL DE RELACIONES INTERNACIONALES"},null,null,null,null,null,null,null,{"$f":"IF(LEN(B$9)>0,VLOOKUP(B$9,TablaDependencias[],3,FALSE),\"\")","v":"Xalapa"}]
[null,"Alineación a Estrategía Institucional"]
[null,"Eje",null,null,"Programa Estratético",null,null,null,null,"Metas",null,null,null,null,null,null,null,null,null,null,null,null,null,null,null,null,null,"Buscar Progrmas de Eje","Metas de Ejes"]
[null,"E1-Liderazgo Académico",null,null,"P1-Oferta Educativa de Calidad",null,null,null,null,"I.2 El 100% de la matrícula de posgrado es atendida en programas educativos evaluables de calidad reconocida por el CONACyT y/o otros organismos evaluadores.",null,null,null,null,null,null,null,null,null,null,null,null,null,null,null,null,null,{"$f":"IF(LEN(B12)>0,VLOOKUP(MID($B$12,1,2),TablaEE[],4,FALSE),\"\")","v":"PROGRAMASEE1"},{"$f":"IF(LEN($B$12)>0,VLOOKUP(MID($B$12,1,2),TablaEE[],5,FALSE),\"\")","v":"METASEE1"},null,null,"1. Es insignificante"]
[null,"Información del Riesgo",null,null,null,null,null,null,null,null,null,null,null,null,null,null,null,null,null,null,null,null,null,null,null,null,null,null,null,null,null,"2. Menor"]
[null,"Riesgo",null,null,null,null,"Posibles efectos del Riesgo",null,null,null,"Nivel decisión Riesgo","Clasificación del Riesgo",null,null,null,null,null,null,null,null,null,null,null,null,null,null,null,null,null,null,null,"3. Moderado"]
[null,"TI01. Servicio de TI ortorgado de manera ineficiente o no disponible",null,null,null,null,null,null,null,null,"Estratégico","De Servicios",null,null,null,null,null,null,null,null,null,null,null,null,null,null,null,null,null,null,null,"4. Crítico"]
[null,"Factores",null,null,null,null,null,null,null,null,null,null,null,null,null,null,null,null,null,null,null,null,null,null,null,null,"Tipo","Probabilidad","Impacto","Riesgo"]
[null,"No. Factor","Descripción",null,null,"Clasificación","Tipo","Valoración Inicial",null,null,null,"¿Tiene Controles?","Controles",null,null,"Suficiencia o deficiencia del Control*",null,null,null,null,"Valoración del Riesgo Vs Controles aplicados",null,null,null,null,null,{"$f":"MID($B$15,1,FIND(\".\",$B$15,1)-1)","v":"TI01"},{"$f":"IF(LEN(H19)>0,VALUE(LEFT(H19,1)),\"\")","v":3},{"$f":"IF(LEN(I19)>0,VALUE(LEFT(I19,1)),\"\")","v":4},{"$f":"AB17*AC17","v":12}]
[null,null,null,null,null,null,null,"Probabilidad","Grado de Impacto","Valor de Riesgo","Cuadrante del mapa de Riesgos",null,"No.","Descripción del Control","Tipo","D","F","A","E","Resultado del Control","Probabilidad","Grado de Impacto","Valor de Riesgo",null,null,null,{"$f":"MID($B$15,1,FIND(\".\",$B$15,1)-1)","v":"TI01"},{"$f":"IF(LEN(U19)>0,VALUE(LEFT(U19,1)),\"\")","v":1},{"$f":"IF(LEN(V19)>0,VALUE(LEFT(V19,1)),\"\")","v":3},{"$f":"AB18*AC18","v":3}]
[null,{"$f":"IF(LEN(C19)>0,\"F.1\",\"\")","v":"F.1"},"Fallas en la energía eléctrica en sitio de telecomunicaciones",null,null,"Entorno","Externo","3 Mediana","4. Crítico",{"$f":"IF(LEN(AD17)=0,\"\",IF(AD17<5,\"1. Bajo\",IF(AND(AD17>=5,AD17<10),\"2. Medio\",IF(AND(AD17>=10,AD17<15),\"3. Alto\",\"4. Muy Alto\"))))","v":"3. Alto"},null,"Si",{"$f":"IF(AND(L19=\"SI\",LEN(N19)>0),IF(LEN(N19)>0,\"F.1.1\",\"\"),\"\")","v":"F.1.1"},"Planta de emergencia en condicones de operación comprobables semanalmente","Preventivo","Si","Si","Si","Si",{"$f":"IF(LEN(N19)>0,IF(AF19=1,\"\",IF(AF19=5,\"Suficiente\",\"Deficiente\")),\"\")","v":"Suficiente"},"1 Muy Baja","3. Moderado",null,null,null,null,{"$f":"IF(LEN(N19)>0,1,0)","v":1},{"$f":"IF(LEN(P19)>0,IF(P19=\"Si\",1,0),0)","v":1},{"$f":"IF(LEN(Q19)>0,IF(Q19=\"Si\",1,0),0)","v":1},{"$f":"IF(LEN(R19)>0,IF(R19=\"Si\",1,0),0)","v":1},{"$f":"IF(LEN(S19)>0,IF(S19=\"Si\",1,0),0)","v":1},{"$f":"SUM(AA19:AE19)","v":5}]
[null,null,null,null,null,null,null,null,null,null,null,"Si",{"$f":"IF(AND(L20=\"SI\",LEN(N20)>0),IF(AND(LEN(N20)>0,LEN(M19)>0),CONCATENATE(\"F.1.\",RIGHT(M19,1)+1,\"\"),\"\"),\"\")","v":"F.1.2"},"Mantener vigentes los contratos de soporte y garantía con proveedores externos","Correctivo","Si","Si","Si","Si",{"$f":"IF(LEN(N20)>0,IF(AF20=1,\"\",IF(AF20=5,\"Suficiente\",\"Deficiente\")),\"\")","v":"Suficiente"},null,null,null,null,null,null,{"$f":"IF(LEN(N20)>0,1,0)","v":1},{"$f":"IF(LEN(P20)>0,IF(P20=\"Si\",1,0),0)","v":1},{"$f":"IF(LEN(Q20)>0,IF(Q20=\"Si\",1,0),0)","v":1},{"$f":"IF(LEN(R20)>0,IF(R20=\"Si\",1,0),0)","v":1},{"$f":"IF(LEN(S20)>0,IF(S20=\"Si\",1,0),0)","v":1},{"$f":"SUM(AA20:AE20)","v":5}]
[null,null,null,null,null,null,null,null,null,null,null,"No",{"$f":"IF(AND(L21=\"SI\",LEN(N21)>0),IF(AND(LEN(N21)>0,LEN(M20)>0),CONCATENATE(\"F.1.\",RIGHT(M20,1)+1,\"\"),\"\"),\"\")","v":""},null,null,null,null,null,null,"",null,null,null,null,null,null,0,0,0,0,0,0]
[null,{"$f":"IF(AND(LEN(C22)>0,LEN(B19)>0),CONCATENATE(\"F.\",RIGHT(B19,1)+1,\"\"),\"\")","v":"F.2"},"Fallas en la provisión del servicio de Internet",null,null,"TIC's","Externo",null,null,null,null,"Si",{"$f":"IF(AND(L22=\"SI\",LEN(N22)>0),IF(LEN(N22)>0,\"F.2.1\",\"\"),\"\")","v":"F.2.1"},"descripción del Control",null,null,"Si","Si",null,"Deficiente",null,null,null,null,null,null,1,0,1,1,0,3]
[null,null,null,null,null,null,null,null,null,null,null,"Si",{"$f":"IF(AND(L23=\"SI\",LEN(N23)>0),IF(AND(LEN(N23)>0,LEN(M22)>0),CONCATENATE(\"F.2.\",RIGHT(M22,1)+1,\"\"),\"\"),\"\")","v":"F.2.2"},"Establecer las diferentes alternativas viables con proveedores en apego al marco normativo vigente",null,null,null,null,null,"",null,null,null,null,null,null,1,0,0,0,0,1]
[null,null,null,null,null,null,null,null,null,null,null,"Si",{"$f":"IF(AND(L24=\"SI\",LEN(N24)>0),IF(AND(LEN(N24)>0,LEN(M23)>0),CONCATENATE(\"F.1.\",RIGHT(M23,1)+1,\"\"),\"\"),\"\")","v":"F.1.3"},"Establecer las diferentes alternativas viables con proveedores en apego al marco normativo vigente",null,null,null,null,null,"",null,null,null,null,null,null,1,0,0,0,0,1]
[null,{"$f":"IF(AND(LEN(C25)>0,LEN(B22)>0),CONCATENATE(\"F.\",RIGHT(B22,1)+1,\"\"),\"\")","v":"F.3"},"Emplazamiento a huelga de personal Académico, Técnico, Manual y Administrativo",null,null,"Técnico-Administrativo","Interno",null,null,null,null,"Si",{"$f":"IF(AND(L25=\"SI\",LEN(N25)>0),IF(LEN(N25)>0,\"F.3.1\",\"\"),\"\")","v":"F.3.1"},"descripción del Control",null,null,null,null,null,"",null,null,null,null,null,null,1,0,0,0,0,1]
[null,null,null,null,null,null,null,null,null,null,null,"Si",{"$f":"IF(AND(L26=\"SI\",LEN(N26)>0),IF(AND(LEN(N26)>0,LEN(M25)>0),CONCATENATE(\"F.3.\",RIGHT(M25,1)+1,\"\"),\"\"),\"\")","v":"F.3.2"},"Establecer las diferentes alternativas viables con proveedores en apego al marco normativo vigente",null,null,null,null,null,"",null,null,null,null,null,null,1,0,0,0,0,1]
[null,null,null,null,null,null,null,null,null,null,null,"Si",{"$f":"IF(AND(L27=\"SI\",LEN(N27)>0),IF(AND(LEN(N27)>0,LEN(M26)>0),CONCATENATE(\"F.3.\",RIGHT(M26,1)+1,\"\"),\"\"),\"\")","v":"F.3.3"},"Establecer las diferentes alternativas viables con proveedores en apego al marco normativo vigente",null,null,null,null,null,"",null,null,null,null,null,null,1,0,0,0,0,1]
[null,{"$f":"IF(AND(LEN(C28)>0,LEN(B25)>0),CONCATENATE(\"F.\",RIGHT(B25,1)+1,\"\"),\"\")","v":"F.4"},"Fallas en la infraestructura de servidores y aplicaciones",null,null,"TIC's","Interno",null,null,null,null,"Si",{"$f":"IF(AND(L28=\"SI\",LEN(N28)>0),IF(LEN(N28)>0,\"F.4.1\",\"\"),\"\")","v":"F.4.1"},"descripción del Control",null,null,null,null,null,"",null,null,null,null,null,null,1,0,0,0,0,1]
[null,null,null,null,null,null,null,null,null,null,null,"Si",{"$f":"IF(AND(L29=\"SI\",LEN(N29)>0),IF(AND(LEN(N29)>0,LEN(M28)>0),CONCATENATE(\"F.4.\",RIGHT(M28,1)+1,\"\"),\"\"),\"\")","v":"F.4.2"},"Establecer las diferentes alternativas viables con proveedores en apego al marco normativo vigente",null,null,null,null,null,"",null,null,null,null,null,null,1,0,0,0,0,1]
[null,null,null,null,null,null,null,null,null,null,null,"Si",{"$f":"IF(AND(L30=\"SI\",LEN(N30)>0),IF(AND(LEN(N30)>0,LEN(M29)>0),CONCATENATE(\"F.4.\",RIGHT(M29,1)+1,\"\"),\"\"),\"\")","v":"F.4.3"},"Establecer las diferentes alternativas viables con proveedores en apego al marco normativo vigente",null,null,null,null,null,"",null,null,null,null,null,null,1,0,0,0,0,1]
[null,{"$f":"IF(AND(LEN(C31)>0,LEN(B28)>0),CONCATENATE(\"F.\",RIGHT(B28,1)+1,\"\"),\"\")","v":"F.5"},"Ataques Cibernéticos",null,null,"Entorno","Externo",null,null,null,null,"Si",{"$f":"IF(AND(L31=\"SI\",LEN(N31)>0),IF(LEN(N31)>0,\"F.5.1\",\"\"),\"\")","v":"F.5.1"},"descripción del Control",null,null,null,null,null,"",null,null,null,null,null,null,1,0,0,0,0,1]
[null,null,null,null,null,null,null,null,null,null,null,"Si",{"$f":"IF(AND(L32=\"SI\",LEN(N32)>0),IF(AND(LEN(N32)>0,LEN(M31)>0),CONCATENATE(\"F.5.\",RIGHT(M31,1)+1,\"\"),\"\"),\"\")","v":"F.5.2"},"Establecer las diferentes alternativas viables con proveedores en apego al marco normativo vigente",null,null,null,null,null,"",null,null,null,null,null,null,1,0,0,0,0,1]
[null,null,null,null,null,null,null,null,null,null,null,"Si",{"$f":"IF(AND(L33=\"SI\",LEN(N33)>0),IF(AND(LEN(N33)>0,LEN(M32)>0),CONCATENATE(\"F.5.\",RIGHT(M32,1)+1,\"\"),\"\"),\"\")","v":"F.5.3"},"Establecer las diferentes alternativas viables con proveedores en apego al marco normativo vigente",null,null,null,null,null,"",null,null,null,null,null,null,1,0,0,0,0,1]
[null,null,null,null,null,null,null,null,null,null,null,null,null,"* Suficiencia o deficiencia del Control: D (está documentado), F (está formalizado), A (se aplica), E (es efectivo)"]

{"sheet":"Dashboard","index":3,"n_rows":15,"n_cols":12,"rows_kept":15,"cut":false,"hidden":true,"merged":[[1,1,1,17],[0,1,0,17],[14,1,14,4],[14,7,14,10]]}
[null,"Universidad Veracruzana"]
[null,"  Sistema de Gestión de Calidad Institucional"]
[]
[]
[]
[]
[]
[]
[]
[]
[]
[]
[]
[]
[null,"Total de Procesos Evaluados",null,null,null,{"$f":"TablasDina!B2","v":1},null,"Total de Riesgos Evaluados ",null,null,null,{"$f":"TablasDina!B3","v":1}]

{"sheet":"Disparadores","index":4,"n_rows":41,"n_cols":3,"rows_kept":41,"cut":false,"hidden":true,"merged":[[1,1,1,4],[2,1,2,4],[13,1,13,2],[6,1,6,3]]}
[]
[null,"Universidad Veracruzana"]
[null,"Sistema de Gestión de Calidad - Valoración de Riesgos"]
[]
[]
[]
[null,"Módulo de Factor del Riesgo"]
[]
[null,null,"Nombre del Factor de Riesgo"]
[]
[]
[]
[]
[null,"Factor de Riesgo"]
[]
[null,"ID","Nombre"]
[null,1,"Reglamentación"]
[null,3,"Comportamiento anormal en la cantidad de peticiones desde una IP específica"]
[null,4,"Envío de cuentas por correo"]
[null,5,"Se excede el tiempo de entrega de la solicitud"]
[null,6,"Queja injustificada de un usuario"]
[null,7,"Fallas en la energía eléctrica en sitio de telecomunicaciones"]
[null,8,"Fallas en la provisión del servicio de Internet"]
[null,9,"Emplazamiento a huelga de personal Académico, Técnico, Manual y Administrativo"]
[null,10,"Ataques Cibernéticos"]
[null,11,"Obsolescencia en la Infraestructura de Telecomunicaciones"]
[null,12,"Fallas en la Infraestructura Tecnológica"]
[null,13,"Desconocimiento de existencia y/o uso de herramientas tecnológicas"]
[null,14,"Falta de recursos respecto a los requerimientos funcionales"]
[null,15,"Fallas en la infraestructura de servidores y aplicaciones"]
[null,16,"Realizar una auditoría interna no adecuada"]
[null,17,"Información documentada de los procesos desactualizada"]
[null,18,"Personal participante no capacitado en temas relativos a la norma ISO 9001:2015"]
[null,19,"Recibir consultoría externa deficiente"]
[null,20,"Recurso documental no es devuelto a tiempo"]
[null,21,"Recurso documental se entrega maltratado"]
[null,22,"No tramitar oportúnamente ante la SEFIPLAN, las SCR coprrespondientes"]
[null,23,"Cambios de administración federal, estatal o universitaria"]
[null,24,"Insuficiencia de recursos en el Estado"]
[null,25,"Regristro contable/presupuestal erróneo"]
[null,26,"Firma tardía del Anexo de Ejecuación"]

{"sheet":"Acciones","index":5,"n_rows":20,"n_cols":3,"rows_kept":20,"cut":false,"hidden":true,"merged":[[1,1,1,4],[2,1,2,4],[13,1,13,2],[6,1,6,4]]}
[]
[null,"Universidad Veracruzana"]
[null,"Sistema de Gestión de Calidad - Valoración de Riesgos"]
[]
[]
[]
[null,"Módulo de Acciones vs Riesgos"]
[]
[]
[null,null,"Nombre de la Acción"]
[]
[]
[]
[null,"Acciones"]
[]
[null,"ID","Nombre"]
[null,1,"Evitarlo"]
[null,{"$f":"B17+1","v":2},"Mitigarlo"]
[null,{"$f":"B18+1","v":3},"Transferirlo"]
[null,{"$f":"B19+1","v":4},"Aceptarlo"]

{"sheet":"Cap_SubProceso","index":6,"n_rows":48,"n_cols":9,"rows_kept":48,"cut":false,"hidden":true,"merged":[[1,1,1,7],[2,1,2,7],[20,1,20,3],[6,1,7,7],[11,2,11,3],[15,2,15,3],[10,2,10,3]]}
[]
[null,"Universidad Veracruzana"]
[null,"Sistema de Gestión de Calidad - Valoración de Riesgos"]
[]
[]
[]
[null,"Módulo de Procesos Nivel 2"]
[]
[]
[]
[null,null,"Elige el proceso de la lista desplegable (Nivel Uno)"]
[null,null,null,null,"P_13"]
[null,null,"Dirección Responable"]
[]
[null,null,"Nombre del Subproceso (Nivel Dos)"]
[]
[]
[]
[]
[]
[null,"Procesos de Nivel 2"]
[]
[null,"ID","Nombre del Subproceso","Proceso","IDP","IDPS","IDSP","Folio_Procedimiento","subproceso"]
[null,1,"Tutoría Académica",{"$f":"VLOOKUP(VALUE(MID(TablaSP[[#This Row],[IDP]],FIND(\"_\",TablaSP[[#This Row],[IDP]],1)+1,LEN(TablaSP[[#This Row],[IDP]]))),TProcesos[[ID]:[TipoProceso]],2,FALSE)","v":"Tutoría"},"P_7",{"$f":"CONCATENATE(TablaSP[[#This Row],[Nombre del Subproceso]],\"-\",TablaSP[[#This Row],[IDP]])","v":"Tutoría Académica-P_7"},{"$f":"IF(LEN(B24)>0,CONCATENATE(\"S\",$E24,\"_\",B24))","v":"SP_7_1"},1,{"$f":"TablaSP[[#This Row],[Nombre del Subproceso]]","v":"Tutoría Académica"}]
[null,1,"N/A",{"$f":"VLOOKUP(VALUE(MID(TablaSP[[#This Row],[IDP]],FIND(\"_\",TablaSP[[#This Row],[IDP]],1)+1,LEN(TablaSP[[#This Row],[IDP]]))),TProcesos[[ID]:[TipoProceso]],2,FALSE)","v":"Transparencia"},"P_1",{"$f":"CONCATENATE(TablaSP[[#This Row],[Nombre del Subproceso]],\"-\",TablaSP[[#This Row],[IDP]])","v":"N/A-P_1"},"SP_1_1",4,{"$f":"TablaSP[[#This Row],[Nombre del Subproceso]]","v":"N/A"}]
[null,1,"Servicios Bibliotecarios",{"$f":"VLOOKUP(VALUE(MID(TablaSP[[#This Row],[IDP]],FIND(\"_\",TablaSP[[#This Row],[IDP]],1)+1,LEN(TablaSP[[#This Row],[IDP]]))),TProcesos[[ID]:[TipoProceso]],2,FALSE)","v":"Sistema Bibliotecario"},"P_4",{"$f":"CONCATENATE(TablaSP[[#This Row],[Nombre del Subproceso]],\"-\",TablaSP[[#This Row],[IDP]])","v":"Servicios Bibliotecarios-P_4"},"SP_4_1",2,{"$f":"TablaSP[[#This Row],[Nombre del Subproceso]]","v":"Servicios Bibliotecarios"}]
[null,1,"Evaluación",{"$f":"VLOOKUP(VALUE(MID(TablaSP[[#This Row],[IDP]],FIND(\"_\",TablaSP[[#This Row],[IDP]],1)+1,LEN(TablaSP[[#This Row],[IDP]]))),TProcesos[[ID]:[TipoProceso]],2,FALSE)","v":"Seguimiento a la Planeación Estratégica, Táctica y Operativa"},"P_16",{"$f":"CONCATENATE(TablaSP[[#This Row],[Nombre del Subproceso]],\"-\",TablaSP[[#This Row],[IDP]])","v":"Evaluación-P_16"},"SP_16_1",2,{"$f":"TablaSP[[#This Row],[Nombre del Subproceso]]","v":"Evaluación"}]
[null,2,"N/A",{"$f":"VLOOKUP(VALUE(MID(TablaSP[[#This Row],[IDP]],FIND(\"_\",TablaSP[[#This Row],[IDP]],1)+1,LEN(TablaSP[[#This Row],[IDP]]))),TProcesos[[ID]:[TipoProceso]],2,FALSE)","v":"Seguimiento a la Planeación Estratégica, Táctica y Operativa"},"P_16",{"$f":"CONCATENATE(TablaSP[[#This Row],[Nombre del Subproceso]],\"-\",TablaSP[[#This Row],[IDP]])","v":"N/A-P_16"},"SP_16_2",3,{"$f":"TablaSP[[#This Row],[Nombre del Subproceso]]","v":"N/A"}]
[null,1,"N/A",{"$f":"VLOOKUP(VALUE(MID(TablaSP[[#This Row],[IDP]],FIND(\"_\",TablaSP[[#This Row],[IDP]],1)+1,LEN(TablaSP[[#This Row],[IDP]]))),TProcesos[[ID]:[TipoProceso]],2,FALSE)","v":"Protección de Datos Personales"},"P_3",{"$f":"CONCATENATE(TablaSP[[#This Row],[Nombre del Subproceso]],\"-\",TablaSP[[#This Row],[IDP]])","v":"N/A-P_3"},"SP_3_1",0,{"$f":"TablaSP[[#This Row],[Nombre del Subproceso]]","v":"N/A"}]
[null,1,"N/A",{"$f":"VLOOKUP(VALUE(MID(TablaSP[[#This Row],[IDP]],FIND(\"_\",TablaSP[[#This Row],[IDP]],1)+1,LEN(TablaSP[[#This Row],[IDP]]))),TProcesos[[ID]:[TipoProceso]],2,FALSE)","v":"Planeación Estratégica, Táctica y Operativa"},"P_15",{"$f":"CONCATENATE(TablaSP[[#This Row],[Nombre del Subproceso]],\"-\",TablaSP[[#This Row],[IDP]])","v":"N/A-P_15"},"SP_15_1",1,{"$f":"TablaSP[[#This Row],[Nombre del Subproceso]]","v":"N/A"}]
[null,2,"Programación y Presupuestación",{"$f":"VLOOKUP(VALUE(MID(TablaSP[[#This Row],[IDP]],FIND(\"_\",TablaSP[[#This Row],[IDP]],1)+1,LEN(TablaSP[[#This Row],[IDP]]))),TProcesos[[ID]:[TipoProceso]],2,FALSE)","v":"Planeación Estratégica, Táctica y Operativa"},"P_15",{"$f":"CONCATENATE(TablaSP[[#This Row],[Nombre del Subproceso]],\"-\",TablaSP[[#This Row],[IDP]])","v":"Programación y Presupuestación-P_15"},"SP_15_2",1,{"$f":"TablaSP[[#This Row],[Nombre del Subproceso]]","v":"Programación y Presupuestación"}]
[null,1,"N/A",{"$f":"VLOOKUP(VALUE(MID(TablaSP[[#This Row],[IDP]],FIND(\"_\",TablaSP[[#This Row],[IDP]],1)+1,LEN(TablaSP[[#This Row],[IDP]]))),TProcesos[[ID]:[TipoProceso]],2,FALSE)","v":"Permanencia"},"P_9",{"$f":"CONCATENATE(TablaSP[[#This Row],[Nombre del Subproceso]],\"-\",TablaSP[[#This Row],[IDP]])","v":"N/A-P_9"},"SP_9_1",5,{"$f":"TablaSP[[#This Row],[Nombre del Subproceso]]","v":"N/A"}]
[null,1,"N/A",{"$f":"VLOOKUP(VALUE(MID(TablaSP[[#This Row],[IDP]],FIND(\"_\",TablaSP[[#This Row],[IDP]],1)+1,LEN(TablaSP[[#This Row],[IDP]]))),TProcesos[[ID]:[TipoProceso]],2,FALSE)","v":"Movilidad"},"P_11",{"$f":"CONCATENATE(TablaSP[[#This Row],[Nombre del Subproceso]],\"-\",TablaSP[[#This Row],[IDP]])","v":"N/A-P_11"},"SP_11_1",7,{"$f":"TablaSP[[#This Row],[Nombre del Subproceso]]","v":"N/A"}]
[null,1,"N/A",{"$f":"VLOOKUP(VALUE(MID(TablaSP[[#This Row],[IDP]],FIND(\"_\",TablaSP[[#This Row],[IDP]],1)+1,LEN(TablaSP[[#This Row],[IDP]]))),TProcesos[[ID]:[TipoProceso]],2,FALSE)","v":"Ingreso"},"P_8",{"$f":"CONCATENATE(TablaSP[[#This Row],[Nombre del Subproceso]],\"-\",TablaSP[[#This Row],[IDP]])","v":"N/A-P_8"},"SP_8_1",1,{"$f":"TablaSP[[#This Row],[Nombre del Subproceso]]","v":"N/A"}]
[null,2,"Ingreso",{"$f":"VLOOKUP(VALUE(MID(TablaSP[[#This Row],[IDP]],FIND(\"_\",TablaSP[[#This Row],[IDP]],1)+1,LEN(TablaSP[[#This Row],[IDP]]))),TProcesos[[ID]:[TipoProceso]],2,FALSE)","v":"Ingreso"},"P_8",{"$f":"CONCATENATE(TablaSP[[#This Row],[Nombre del Subproceso]],\"-\",TablaSP[[#This Row],[IDP]])","v":"Ingreso-P_8"},"SP_8_2",4,{"$f":"TablaSP[[#This Row],[Nombre del Subproceso]]","v":"Ingreso"}]
[null,1,"N/A",{"$f":"VLOOKUP(VALUE(MID(TablaSP[[#This Row],[IDP]],FIND(\"_\",TablaSP[[#This Row],[IDP]],1)+1,LEN(TablaSP[[#This Row],[IDP]]))),TProcesos[[ID]:[TipoProceso]],2,FALSE)","v":"Gestión de Servicios de Tecnologías de la Información en la Región Xalapa"},"P_18",{"$f":"CONCATENATE(TablaSP[[#This Row],[Nombre del Subproceso]],\"-\",TablaSP[[#This Row],[IDP]])","v":"N/A-P_18"},"SP_18_1",5,{"$f":"TablaSP[[#This Row],[Nombre del Subproceso]]","v":"N/A"}]
[null,1,"Gestión de Servicios Administrativos para visitantes y Comunidad Universitaria",{"$f":"VLOOKUP(VALUE(MID(TablaSP[[#This Row],[IDP]],FIND(\"_\",TablaSP[[#This Row],[IDP]],1)+1,LEN(TablaSP[[#This Row],[IDP]]))),TProcesos[[ID]:[TipoProceso]],2,FALSE)","v":"Gestión de Servicios Administrativos y Programas de Vinculación e Intregación Cultural y Académica"},"P_12",{"$f":"CONCATENATE(TablaSP[[#This Row],[Nombre del Subproceso]],\"-\",TablaSP[[#This Row],[IDP]])","v":"Gestión de Servicios Administrativos para visitantes y Comunidad Universitaria-P_12"},"SP_12_1",8,{"$f":"TablaSP[[#This Row],[Nombre del Subproceso]]","v":"Gestión de Servicios Administrativos para visitantes y Comunidad Universitaria"}]
[null,1,"N/A",{"$f":"VLOOKUP(VALUE(MID(TablaSP[[#This Row],[IDP]],FIND(\"_\",TablaSP[[#This Row],[IDP]],1)+1,LEN(TablaSP[[#This Row],[IDP]]))),TProcesos[[ID]:[TipoProceso]],2,FALSE)","v":"Formación Académica"},"P_6",{"$f":"CONCATENATE(TablaSP[[#This Row],[Nombre del Subproceso]],\"-\",TablaSP[[#This Row],[IDP]])","v":"N/A-P_6"},"SP_6_1",2,{"$f":"TablaSP[[#This Row],[Nombre del Subproceso]]","v":"N/A"}]
[null,1,"N/A",{"$f":"VLOOKUP(VALUE(MID(TablaSP[[#This Row],[IDP]],FIND(\"_\",TablaSP[[#This Row],[IDP]],1)+1,LEN(TablaSP[[#This Row],[IDP]]))),TProcesos[[ID]:[TipoProceso]],2,FALSE)","v":"Egreso"},"P_10",{"$f":"CONCATENATE(TablaSP[[#This Row],[Nombre del Subproceso]],\"-\",TablaSP[[#This Row],[IDP]])","v":"N/A-P_10"},"SP_10_1",2,{"$f":"TablaSP[[#This Row],[Nombre del Subproceso]]","v":"N/A"}]
[null,1,"N/A",{"$f":"VLOOKUP(VALUE(MID(TablaSP[[#This Row],[IDP]],FIND(\"_\",TablaSP[[#This Row],[IDP]],1)+1,LEN(TablaSP[[#This Row],[IDP]]))),TProcesos[[ID]:[TipoProceso]],2,FALSE)","v":"Desempeño Docente"},"P_5",{"$f":"CONCATENATE(TablaSP[[#This Row],[Nombre del Subproceso]],\"-\",TablaSP[[#This Row],[IDP]])","v":"N/A-P_5"},"SP_5_1",6,{"$f":"TablaSP[[#This Row],[Nombre del Subproceso]]","v":"N/A"}]
[null,1,"N/A",{"$f":"VLOOKUP(VALUE(MID(TablaSP[[#This Row],[IDP]],FIND(\"_\",TablaSP[[#This Row],[IDP]],1)+1,LEN(TablaSP[[#This Row],[IDP]]))),TProcesos[[ID]:[TipoProceso]],2,FALSE)","v":"Administración del Sistema de Gestión de la Calidad de la UV"},"P_17",{"$f":"CONCATENATE(TablaSP[[#This Row],[Nombre del Subproceso]],\"-\",TablaSP[[#This Row],[IDP]])","v":"N/A-P_17"},"SP_17_1",6,{"$f":"TablaSP[[#This Row],[Nombre del Subproceso]]","v":"N/A"}]
[null,1,"Elaboración y Registro del Presupuesto de ingresos y Egresos",{"$f":"VLOOKUP(VALUE(MID(TablaSP[[#This Row],[IDP]],FIND(\"_\",TablaSP[[#This Row],[IDP]],1)+1,LEN(TablaSP[[#This Row],[IDP]]))),TProcesos[[ID]:[TipoProceso]],2,FALSE)","v":"Administración de Recursos Financieros"},"P_13",{"$f":"CONCATENATE(TablaSP[[#This Row],[Nombre del Subproceso]],\"-\",TablaSP[[#This Row],[IDP]])","v":"Elaboración y Registro del Presupuesto de ingresos y Egresos-P_13"},"SP_13_1",1,{"$f":"TablaSP[[#This Row],[Nombre del Subproceso]]","v":"Elaboración y Registro del Presupuesto de ingresos y Egresos"}]
[null,2,"N/A",{"$f":"VLOOKUP(VALUE(MID(TablaSP[[#This Row],[IDP]],FIND(\"_\",TablaSP[[#This Row],[IDP]],1)+1,LEN(TablaSP[[#This Row],[IDP]]))),TProcesos[[ID]:[TipoProceso]],2,FALSE)","v":"Administración de Recursos Financieros"},"P_13",{"$f":"CONCATENATE(TablaSP[[#This Row],[Nombre del Subproceso]],\"-\",TablaSP[[#This Row],[IDP]])","v":"N/A-P_13"},"SP_13_2",0,{"$f":"TablaSP[[#This Row],[Nombre del Subproceso]]","v":"N/A"}]
[null,3,"Operación Ingreso-Gasto",{"$f":"VLOOKUP(VALUE(MID(TablaSP[[#This Row],[IDP]],FIND(\"_\",TablaSP[[#This Row],[IDP]],1)+1,LEN(TablaSP[[#This Row],[IDP]]))),TProcesos[[ID]:[TipoProceso]],2,FALSE)","v":"Administración de Recursos Financieros"},"P_13",{"$f":"CONCATENATE(TablaSP[[#This Row],[Nombre del Subproceso]],\"-\",TablaSP[[#This Row],[IDP]])","v":"Operación Ingreso-Gasto-P_13"},"SP_13_3",2,{"$f":"TablaSP[[#This Row],[Nombre del Subproceso]]","v":"Operación Ingreso-Gasto"}]
[null,4,"Análisis y Evaluación Financiera",{"$f":"VLOOKUP(VALUE(MID(TablaSP[[#This Row],[IDP]],FIND(\"_\",TablaSP[[#This Row],[IDP]],1)+1,LEN(TablaSP[[#This Row],[IDP]]))),TProcesos[[ID]:[TipoProceso]],2,FALSE)","v":"Administración de Recursos Financieros"},"P_13",{"$f":"CONCATENATE(TablaSP[[#This Row],[Nombre del Subproceso]],\"-\",TablaSP[[#This Row],[IDP]])","v":"Análisis y Evaluación Financiera-P_13"},"SP_13_4",1,{"$f":"TablaSP[[#This Row],[Nombre del Subproceso]]","v":"Análisis y Evaluación Financiera"}]
[null,1,"Control de Bienes Muebles e Inmuebles",{"$f":"VLOOKUP(VALUE(MID(TablaSP[[#This Row],[IDP]],FIND(\"_\",TablaSP[[#This Row],[IDP]],1)+1,LEN(TablaSP[[#This Row],[IDP]]))),TProcesos[[ID]:[TipoProceso]],2,FALSE)","v":"Administración de Bienes y Servicios"},"P_14",{"$f":"CONCATENATE(TablaSP[[#This Row],[Nombre del Subproceso]],\"-\",TablaSP[[#This Row],[IDP]])","v":"Control de Bienes Muebles e Inmuebles-P_14"},"SP_14_1",3,{"$f":"TablaSP[[#This Row],[Nombre del Subproceso]]","v":"Control de Bienes Muebles e Inmuebles"}]
[null,2,"Adquisición de Bienes y Servicios",{"$f":"VLOOKUP(VALUE(MID(TablaSP[[#This Row],[IDP]],FIND(\"_\",TablaSP[[#This Row],[IDP]],1)+1,LEN(TablaSP[[#This Row],[IDP]]))),TProcesos[[ID]:[TipoProceso]],2,FALSE)","v":"Administración de Bienes y Servicios"},"P_14",{"$f":"CONCATENATE(TablaSP[[#This Row],[Nombre del Subproceso]],\"-\",TablaSP[[#This Row],[IDP]])","v":"Adquisición de Bienes y Servicios-P_14"},"SP_14_2",1,{"$f":"TablaSP[[#This Row],[Nombre del Subproceso]]","v":"Adquisición de Bienes y Servicios"}]
[null,1,"N/A",{"$f":"VLOOKUP(VALUE(MID(TablaSP[[#This Row],[IDP]],FIND(\"_\",TablaSP[[#This Row],[IDP]],1)+1,LEN(TablaSP[[#This Row],[IDP]]))),TProcesos[[ID]:[TipoProceso]],2,FALSE)","v":"Acceso a la Información"},"P_2",{"$f":"CONCATENATE(TablaSP[[#This Row],[Nombre del Subproceso]],\"-\",TablaSP[[#This Row],[IDP]])","v":"N/A-P_2"},"SP_2_1",0,{"$f":"TablaSP[[#This Row],[Nombre del Subproceso]]","v":"N/A"}]

{"sheet":"TablasDina","index":7,"n_rows":76,"n_cols":49,"rows_kept":76,"cut":false,"hidden":true,"merged":[]}
[]
[null,{"$f":"SUM(C5:C77)","v":1}]
["Riesgos Evaludos por proceso",{"$f":"GETPIVOTDATA(\"Riesgo\",$A$4)","v":1},null,null,null,"Riesgos Evaluados por proceso y subproceso",null,null,"Tabla de Riesgos por eje estratégico-Procesos",null,null,null,null,null,null,null,null,null,null,null,null,"Tabla de Clasificacion del Riesgo",null,null,"Tabla de Fecha de Revisión del Riesgo",null,null,"Tabla de Riesgo Residual",null,null,null,"Tabla de Varolacion del Riesgo Inicial",null,null,null,null,null,null,"Tabla de Valoración del Riesgo Residual después de controles",null,null,null,null,null,null,null,null,"Tabla de Fecha Inicial del Riesgo"]
["Etiquetas de fila","Cuenta de Riesgo",null,null,null,"Etiquetas de fila","Cuenta de Riesgo",null,"Etiquetas de fila","Cuenta de Proceso",null,null,"Tabla Eje-Tipo de Riesgo",null,null,null,null,"Tabla Tipos de Riesgos",null,null,null,"Etiquetas de fila","Cuenta de Nivel de Decisión del Riesgo",null,"Etiquetas de fila","Cuenta de Riesgo",null,"Etiquetas de fila","Suma de Num",null,null,"Etiquetas de fila","Suma de Probabilidad","Suma de Impacto",null,"Riesgo","Probabilidad","Impacto","Etiquetas de fila","Suma de Probabilidad2","Suma de Impacto3",null,"Riesgo","Probabilidad","Riesgo Residiual",null,null,"Etiquetas de fila","Cuenta de Riesgo"]
["Administración de Recursos Financieros",1,{"$f":"IF(AND(A5<>\"\",A5<>\"Total general\"),1,0)","v":1},null,null,"Administración de Recursos Financieros",1,null,"Administración de Recursos Financieros",1,null,null,"Etiquetas de fila","Cuenta de Indice P-I",null,null,null,"Etiquetas de fila","Cuenta de Indice P-I",null,null,"Directivo",1,null,"(en blanco)",1,null,"Muy Alto",1,null,null,"R1-ARF01",3,5,null,{"$f":"IF(AF5>0,AF5,\"\")","v":"R1-ARF01"},{"$f":"IF(LEN(AG5)>0,AG5,-1)","v":3},5,"R1-ARF01",3,5,null,{"$f":"IF(AM5>0,CONCATENATE(AM5,\"-R\",\"\"))","v":"R1-ARF01-R"},{"$f":"IF(LEN(AN5)>0,AN5,-1)","v":3},{"$f":"IF(LEN(AO5)>0,AO5,-1)","v":5},null,null,"(en blanco)",1]
["Total general",1,{"$f":"IF(AND(A6<>\"\",A6<>\"Total general\"),1,0)","v":0},null,null,"Operación Ingreso-Gasto",1,null,"III. Gestión y gobierno",1,null,null,"Muy Alto",1,null,null,null,"Muy Alto",1,null,null,"Total general",1,null,"Total general",1,null,"R1-ARF01",1,null,null,null,null,null,null,{"$f":"IF(AF6>0,AF6,\"\")","v":""},-1,-1,null,null,null,null,{"$f":"IF(AM6>0,CONCATENATE(AM6,\"-R\",\"\"))","v":false},{"$f":"IF(AND(LEN(AN6)>0,AN6>0),AN6,-1)","v":-1},{"$f":"IF(AND(LEN(AO6)>0,AO6>0),AO6,-1)","v":-1},null,null,"Total general",1]
[null,null,0,null,null,"Total general",1,null,"R1-ARF01",1,null,null,"R1-ARF01",1,null,null,null,"Total general",1,null,null,null,null,null,null,null,null,"Total general",1,null,null,null,null,null,null,"",-1,-1,null,null,null,null,false,{"$f":"IF(AND(LEN(AN7)>0,AN7>0),AN7,-1)","v":-1},{"$f":"IF(AND(LEN(AO7)>0,AO7>0),AO7,-1)","v":-1}]
[null,null,0,null,null,null,null,null,"Total general",1,null,null,null,null,null,null,null,null,null,null,null,null,null,null,null,null,null,null,null,null,null,null,null,null,null,"",{"$f":"IF(LEN(AG8)>0,AG8,-1)","v":-1},{"$f":"IF(LEN(AH8)>0,AH8,-1)","v":-1},null,null,null,null,false,-1,-1]
[null,null,0,null,null,null,null,null,null,null,null,null,null,null,null,null,null,null,null,null,null,null,null,null,null,null,null,null,null,null,null,null,null,null,null,{"$f":"IF(AF9>0,AF9,\"\")","v":""},{"$f":"IF(LEN(AG9)>0,AG9,-1)","v":-1},{"$f":"IF(LEN(AH9)>0,AH9,-1)","v":-1},null,null,null,null,false,-1,-1]
[null,null,0,null,null,null,null,null,null,null,null,null,null,null,null,null,null,null,null,null,null,null,null,null,null,null,null,null,null,null,null,null,null,null,null,{"$f":"IF(AF10>0,AF10,\"\")","v":""},{"$f":"IF(LEN(AG10)>0,AG10,-1)","v":-1},{"$f":"IF(LEN(AH10)>0,AH10,-1)","v":-1},null,null,null,null,false,-1,-1]
[null,null,0,null,null,null,null,null,null,null,null,null,null,null,null,null,null,null,null,null,null,null,null,null,null,null,null,null,null,null,null,null,null,null,null,{"$f":"IF(AF11>0,AF11,\"\")","v":""},{"$f":"IF(LEN(AG11)>0,AG11,-1)","v":-1},{"$f":"IF(LEN(AH11)>0,AH11,-1)","v":-1},null,null,null,null,false,-1,-1]
[null,null,0,null,null,null,null,null,null,null,null,null,null,null,null,null,null,null,null,null,null,null,null,null,null,null,null,null,null,null,null,null,null,null,null,"",-1,-1,null,null,null,null,false,-1,-1]
[null,null,0,null,null,null,null,null,null,null,null,null,null,null,null,null,null,null,null,null,null,null,null,null,null,null,null,null,null,null,null,null,null,null,null,"",-1,-1,null,null,null,null,false,-1,-1]
[null,null,0,null,null,null,null,null,null,null,null,null,null,null,null,null,null,null,null,null,null,null,null,null,null,null,null,null,null,null,null,null,null,null,null,"",-1,-1,null,null,null,null,false,-1,-1]
[null,null,0,null,null,null,null,null,null,null,null,null,null,null,null,null,null,null,null,null,null,null,null,null,null,null,null,null,null,null,null,null,null,null,null,"",-1,-1,null,null,null,null,false,-1,-1]
[null,null,0,null,null,null,null,null,null,null,null,null,null,null,null,null,null,null,null,null,null,null,null,null,null,null,null,null,null,null,null,null,null,null,null,"",-1,-1,null,null,null,null,false,-1,-1]
[null,null,0,null,null,null,null,null,null,null,null,null,null,null,null,null,null,null,null,null,null,null,null,null,null,null,null,null,null,null,null,null,null,null,null,"",-1,-1,null,null,null,null,false,-1,-1]
[null,null,0,null,null,null,null,null,null,null,null,null,null,null,null,null,null,null,null,null,null,null,null,null,null,null,null,null,null,null,null,null,null,null,null,"",-1,-1,null,null,null,null,false,-1,-1]
[null,null,0,null,null,null,null,null,null,null,null,null,null,null,null,null,null,null,null,null,null,null,null,null,null,null,null,null,null,null,null,null,null,null,null,"",-1,-1,null,null,null,null,false,-1,-1]
[null,null,0,null,null,null,null,null,null,null,null,null,null,null,null,null,null,null,null,null,null,null,null,null,null,null,null,null,null,null,null,null,null,null,null,"",-1,-1,null,null,null,null,false,-1,-1]
[null,null,0,null,null,null,null,null,null,null,null,null,null,null,null,null,null,null,null,null,null,null,null,null,null,null,null,null,null,null,null,null,null,null,null,"",-1,-1,null,null,null,null,false,-1,-1]
[null,null,0,null,null,null,null,null,null,null,null,null,null,null,null,null,null,null,null,null,null,null,null,null,null,null,null,null,null,null,null,null,null,null,null,"",-1,-1,null,null,null,null,false,-1,-1]
[null,null,0,null,null,null,null,null,null,null,null,null,null,null,null,null,null,null,null,null,null,null,null,null,null,null,null,null,null,null,null,null,null,null,null,"",-1,-1,null,null,null,null,false,-1,-1]
[null,null,0,null,null,null,null,null,null,null,null,null,null,null,null,null,null,null,null,null,null,null,null,null,null,null,null,null,null,null,null,null,null,null,null,"",-1,-1,null,null,null,null,false,-1,-1]
[null,null,0,null,null,null,null,null,null,null,null,null,null,null,null,null,null,null,null,null,null,null,null,null,null,null,null,null,null,null,null,null,null,null,null,"",-1,-1,null,null,null,null,false,-1,-1]
[null,null,0,null,null,null,null,null,null,null,null,null,null,null,null,null,null,null,null,null,null,null,null,null,null,null,null,null,null,null,null,null,null,null,null,"",-1,-1,null,null,null,null,false,-1,-1]
[null,null,0,null,null,null,null,null,null,null,null,null,null,null,null,null,null,null,null,null,null,null,null,null,null,null,null,null,null,null,null,null,null,null,null,"",-1,-1,null,null,null,null,false,-1,-1]
[null,null,0,null,null,null,null,null,null,null,null,null,null,null,null,null,null,null,null,null,null,null,null,null,null,null,null,null,null,null,null,null,null,null,null,"",-1,-1,null,null,null,null,false,-1,-1]
[null,null,0,null,null,null,null,null,null,null,null,null,null,null,null,null,null,null,null,null,null,null,null,null,null,null,null,null,null,null,null,null,null,null,null,"",-1,-1,null,null,null,null,false,-1,-1]
[null,null,0,null,null,null,null,null,null,null,null,null,null,null,null,null,null,null,null,null,null,null,null,null,null,null,null,null,null,null,null,null,null,null,null,"",-1,-1,null,null,null,null,false,-1,-1]
[null,null,0,null,null,null,null,null,null,null,null,null,null,null,null,null,null,null,null,null,null,null,null,null,null,null,null,null,null,null,null,null,null,null,null,"",-1,-1,null,null,null,null,false,-1,-1]
[null,null,0,null,null,null,null,null,null,null,null,null,null,null,null,null,null,null,null,null,null,null,null,null,null,null,null,null,null,null,null,null,null,null,null,"",-1,-1,null,null,null,null,false,-1,-1]
[null,null,0,null,null,null,null,null,null,null,null,null,null,null,null,null,null,null,null,null,null,null,null,null,null,null,null,null,null,null,null,null,null,null,null,"",-1,-1,null,null,null,null,false,-1,-1]
[null,null,0,null,null,null,null,null,null,null,null,null,null,null,null,null,null,null,null,null,null,null,null,null,null,null,null,null,null,null,null,null,null,null,null,"",-1,-1,null,null,null,null,false,-1,-1]
[null,null,0,null,null,null,null,null,null,null,null,null,null,null,null,null,null,null,null,null,null,null,null,null,null,null,null,null,null,null,null,null,null,null,null,"",-1,-1,null,null,null,null,false,-1,-1]
[null,null,0,null,null,null,null,null,null,null,null,null,null,null,null,null,null,null,null,null,null,null,null,null,null,null,null,null,null,null,null,null,null,null,null,"",-1,-1,null,null,null,null,false,-1,-1]
[null,null,0,null,null,null,null,null,null,null,null,null,null,null,null,null,null,null,null,null,null,null,null,null,null,null,null,null,null,null,null,null,null,null,null,"",-1,-1,null,null,null,null,false,-1,-1]
[null,null,0,null,null,null,null,null,null,null,null,null,null,null,null,null,null,null,null,null,null,null,null,null,null,null,null,null,null,null,null,null,null,null,null,"",-1,-1,null,null,null,null,false,-1,-1]
[null,null,0,null,null,null,null,null,null,null,null,null,null,null,null,null,null,null,null,null,null,null,null,null,null,null,null,null,null,null,null,null,null,null,null,"",-1,-1,null,null,null,null,false,-1,-1]
[null,null,0,null,null,null,null,null,null,null,null,null,null,null,null,null,null,null,null,null,null,null,null,null,null,null,null,null,null,null,null,null,null,null,null,"",-1,-1,null,null,null,null,false,-1,-1]
[null,null,0,null,null,null,null,null,null,null,null,null,null,null,null,null,null,null,null,null,null,null,null,null,null,null,null,null,null,null,null,null,null,null,null,"",-1,-1,null,null,null,null,false,-1,-1]
[null,null,0,null,null,null,null,null,null,null,null,null,null,null,null,null,null,null,null,null,null,null,null,null,null,null,null,null,null,null,null,null,null,null,null,"",-1,-1,null,null,null,null,false,-1,-1]
[null,null,0,null,null,null,null,null,null,null,null,null,null,null,null,null,null,null,null,null,null,null,null,null,null,null,null,null,null,null,null,null,null,null,null,"",-1,-1,null,null,null,null,false,-1,-1]
[null,null,0,null,null,null,null,null,null,null,null,null,null,null,null,null,null,null,null,null,null,null,null,null,null,null,null,null,null,null,null,null,null,null,null,"",-1,-1,null,null,null,null,false,-1,-1]
[null,null,{"$f":"IF(AND(A45<>\"\",A45<>\"Total general\"),1,0)","v":0},null,null,null,null,null,null,null,null,null,null,null,null,null,null,null,null,null,null,null,null,null,null,null,null,null,null,null,null,null,null,null,null,"",-1,-1,null,null,null,null,false,-1,-1]
[null,null,0,null,null,null,null,null,null,null,null,null,null,null,null,null,null,null,null,null,null,null,null,null,null,null,null,null,null,null,null,null,null,null,null,"",-1,-1,null,null,null,null,false,-1,-1]
[null,null,0,null,null,null,null,null,null,null,null,null,null,null,null,null,null,null,null,null,null,null,null,null,null,null,null,null,null,null,null,null,null,null,null,"",-1,-1,null,null,null,null,false,-1,-1]
[null,null,0,null,null,null,null,null,null,null,null,null,null,null,null,null,null,null,null,null,null,null,null,null,null,null,null,null,null,null,null,null,null,null,null,"",-1,-1,null,null,null,null,false,-1,-1]
[null,null,0,null,null,null,null,null,null,null,null,null,null,null,null,null,null,null,null,null,null,null,null,null,null,null,null,null,null,null,null,null,null,null,null,"",-1,-1,null,null,null,null,false,-1,-1]
[null,null,0,null,null,null,null,null,null,null,null,null,null,null,null,null,null,null,null,null,null,null,null,null,null,null,null,null,null,null,null,null,null,null,null,"",-1,-1,null,null,null,null,false,-1,-1]
[null,null,0,null,null,null,null,null,null,null,null,null,null,null,null,null,null,null,null,null,null,null,null,null,null,null,null,null,null,null,null,null,null,null,null,"",-1,-1,null,null,null,null,false,-1,-1]
[null,null,0,null,null,null,null,null,null,null,null,null,null,null,null,null,null,null,null,null,null,null,null,null,null,null,null,null,null,null,null,null,null,null,null,"",-1,-1,null,null,null,null,false,-1,-1]
[null,null,0,null,null,null,null,null,null,null,null,null,null,null,null,null,null,null,null,null,null,null,null,null,null,null,null,null,null,null,null,null,null,null,null,"",-1,-1,null,null,null,null,false,-1,-1]
[null,null,0,null,null,null,null,null,null,null,null,null,null,null,null,null,null,null,null,null,null,null,null,null,null,null,null,null,null,null,null,null,null,null,null,"",-1,-1,null,null,null,null,false,-1,-1]
[null,null,0,null,null,null,null,null,null,null,null,null,null,null,null,null,null,null,null,null,null,null,null,null,null,null,null,null,null,null,null,null,null,null,null,"",-1,-1,null,null,null,null,false,-1,-1]
[null,null,0,null,null,null,null,null,null,null,null,null,null,null,null,null,null,null,null,null,null,null,null,null,null,null,null,null,null,null,null,null,null,null,null,"",-1,-1,null,null,null,null,false,-1,-1]
[null,null,0,null,null,null,null,null,null,null,null,null,null,null,null,null,null,null,null,null,null,null,null,null,null,null,null,null,null,null,null,null,null,null,null,"",{"$f":"IF(LEN(AG57)>0,AG57,1)","v":1},{"$f":"IF(LEN(AH57)>0,AH57,2)","v":2},null,null,null,null,false,-1,-1]
[null,null,0,null,null,null,null,null,null,null,null,null,null,null,null,null,null,null,null,null,null,null,null,null,null,null,null,null,null,null,null,null,null,null,null,{"$f":"IF(AF58>0,AF58,\"\")","v":""},{"$f":"IF(LEN(AG58)>0,AG58,-1)","v":-1},{"$f":"IF(LEN(AH58)>0,AH58,-1)","v":-1},null,null,null,null,false,-1,-1]
[null,null,0]
[null,null,0]
[null,null,0]
[null,null,0]
[null,null,0]
[null,null,0]
[null,null,0]
[null,null,0]
[null,null,0]
[null,null,0]
[null,null,0]
[null,null,{"$f":"IF(AND(A70<>\"\",A70<>\"Total general\"),1,0)","v":0}]
[null,null,0]
[null,null,0]
[null,null,0]
[null,null,0]
[null,null,0]
[null,null,0]

{"sheet":"Instructivo","index":8,"n_rows":29,"n_cols":6,"rows_kept":29,"cut":false,"hidden":true,"merged":[[0,0,0,11],[26,2,26,4],[26,5,26,11],[1,1,3,9],[5,2,5,4],[5,5,5,11],[7,2,7,4],[7,5,7,11],[14,2,14,4],[14,5,14,11],[9,2,9,11],[8,2,8,4],[8,5,8,11],[11,5,11,11],[6,2,6,4],[6,5,6,11],[10,2,10,4],[17,15,18,15],[17,17,18,17],[17,18,18,18],[12,5,12,11],[13,2,13,11],[12,2,12,4],[16,2,16,11],[17,5,17,11],[18,2,18,4],[18,5,18,11],[15,2,15,4],[15,5,15,11],[10,5,10,11],[11,2,11,4],[17,2,17,4],[28,2,28,4],[28,5,28,11],[22,2,22,4],[22,5,22,11],[23,2,23,4],[23,5,23,11],[24,2,24,4],[24,5,24,11],[27,2,27,4],[27,5,27,11],[25,2,25,4],[25,5,25,11],[19,2,19,4],[19,5,19,11],[20,2,20,4],[20,5,20,11],[21,2,21,4],[21,5,21,11]]}
["III.1 Se cuenta con un sistema único de información actualizado para la toma de decisiones académicas y de gestión."]
[null,"Instructivo de llenado para el calculo de riesgos \"Matriz de Riesgos\""]
[]
[]
[]
[null,"ítem","Campo",null,null,"Descripción"]
[null,1,"Proceso"]
[null,2,"Procedimiento"]
[null,3,"Responsable"]
[null,null,"Apartado del Riesgo"]
[null,4,"Clave",null,null,"Escribir la clave asignada al riesgo, iniciando con la letra R seguida de un número consecutivo de dos cifras, deberá seleccionarse del catálogo de riesgos"]
[null,5,"Nombre ",null,null,"Descripción breve del riesgo a documentar. Se seleccionar del catálogo de riesgos el cual puede ser modificado"]
[null,6,"Narrativa",null,null,"Describir detalladamente de que se trata el riesgo definido"]
[null,null,"Apartado de Probabilidad"]
[null,7,"%",null,null,"Escribir el porcentaje de que ocurra el riesgo definido, va desde 0 a 100%\nen donde:\n00-20   ocurrencia muy improbable-muy baja\n20-30   ocurrencia improbable-baja\n30-50   posible ocurrencia-moderada\n50-70   probable ocurrencia-alta\n70-100 prácticamente seguro ocurre-muy alta"]
[null,8,"Nivel",null,null,"Este camnpo es calculado en proporción con el porcentaje de ocurrencia, en donde:\n1 muy baja\n2 baja\n3 moderada\n4 alta\n5 muy alta"]
[null,null,"Apartado de Severidad o Impacto"]
[null,9,"Alcance/ Cronograma/ Costo/ Calidad",null,null,"Identificar a cuál de las restricciones del proyecto afectaría en caso de materializarse el riesgo"]
[null,10,"Nivel",null,null,"Es el nivel de severidad que tendrá de impacto si ocurre el riesgo idemntificado, va en proporción con el porcentaje de ocurrencia, desde 1 a 5, en donde:\n1 muy baja\n2 baja\n3 moderada\n4 alta\n5 muy alta    "]
[null,11,"Evaluación del Riesgo (P-I)",null,null,"Este campo es cálculado y se obtiene de multiplicar el campo \"Nivel de Probabilidad\" por \"Nivel de Severidad o Impacto\""]
[null,12,"Fecha de Identificación",null,null,"Escribir la fecha en que ocurrio del riesgo"]
[null,13,"Identificado por",null,null,"Escribir el nombre de la persona que detecto el riesgo ocurrido"]
[null,14,"Daño",null,null,"Detallar cual fue el daño ocasionado después de haber ocurrido el riesgo, es decir, que efectos tuvo con respecto al proyecto"]
[null,15,"Acciones",null,null,"Describir las acciones -procedimiento- a seguir para mitigar el riesgo ocurrido y esto va a depender si el riesgo ocurrido se mitiga, evita, transfiere o se acepta"]
[null,16,"Responsable",null,null,"Escribir el nombre de la persona que se hará cargo de cada una de las acciones documentadas para mitigar el riesgo identificado"]
[null,17,"Disparador / Sintoma",null,null,"Escribir el procedimiento de cuando se tiene que llevar a cabo cada una de las acciones documentadas cuando ocurra el riesgo."]
[null,18,"Categoría",null,null,"Clasificación del riesgo, se toma del catálogo el cual es modificable"]
[null,19,"Riesgo residual identificado",null,null,"Riesgo remanente después de haber realizando el tratamiento del mismo"]
[null,20,"Observaciones de Atención",null,null,"Describir el estado en el se encuentran las acciones para mitigar el riesgo."]

{"sheet":"CataRiesgos","index":9,"n_rows":27,"n_cols":5,"rows_kept":27,"cut":false,"hidden":true,"merged":[[1,1,1,5],[2,1,2,5],[5,1,6,5],[10,2,10,4]]}
[]
[null,"Universidad Veracruzana"]
[null,"Sistema de Gestión de Calidad  - Valoración de Riesgos"]
[]
[]
[null,"Módulo de Catálogo de Riesgos"]
[]
[]
[]
[null,null,"Elige el proceso de la lista desplegable (Nivel 1)"]
[]
[null,null,"Id del Riesgo con el cuál se identificará",null,{"$f":"IF(C11=\"\",\"\",VLOOKUP(C11,TProcesosEA,4,FALSE))","v":""}]
[]
[]
[null,null,null,null,"Sustantivo"]
[]
[null,null,null,null,"Verbo en Participio"]
[]
[null,null,null,null,"Adjetivo o complemento circunstacial negativo"]
[]
[]
[null,"IdR","Descripción del Riesgo","idProceso","Proceso"]
[null,"TI01","Servicio de TI ortorgado de manera ineficiente o no disponible","P_18",{"$f":"VLOOKUP(VALUE(MID(Tabla6[[#This Row],[idProceso]],FIND(\"_\",Tabla6[[#This Row],[idProceso]],1)+1,LEN(Tabla6[[#This Row],[idProceso]]))),TProcesos[[ID]:[TipoProceso]],2,FALSE)","v":"Gestión de Servicios de Tecnologías de la Información en la Región Xalapa"}]
[null,"TI02","Servicios de Conectividad otorgado de manera ineficiente o con insuficiente cobertura","P_18",{"$f":"VLOOKUP(VALUE(MID(Tabla6[[#This Row],[idProceso]],FIND(\"_\",Tabla6[[#This Row],[idProceso]],1)+1,LEN(Tabla6[[#This Row],[idProceso]]))),TProcesos[[ID]:[TipoProceso]],2,FALSE)","v":"Gestión de Servicios de Tecnologías de la Información en la Región Xalapa"}]
[null,"SGCUV01","Certificaciones los procesos institucionales negada por incumplimiento de requisitos","P_17",{"$f":"VLOOKUP(VALUE(MID(Tabla6[[#This Row],[idProceso]],FIND(\"_\",Tabla6[[#This Row],[idProceso]],1)+1,LEN(Tabla6[[#This Row],[idProceso]]))),TProcesos[[ID]:[TipoProceso]],2,FALSE)","v":"Administración del Sistema de Gestión de la Calidad de la UV"}]
[null,"USBI01","Usuario sin Apoyo de recurso documental","P_4",{"$f":"VLOOKUP(VALUE(MID(Tabla6[[#This Row],[idProceso]],FIND(\"_\",Tabla6[[#This Row],[idProceso]],1)+1,LEN(Tabla6[[#This Row],[idProceso]]))),TProcesos[[ID]:[TipoProceso]],2,FALSE)","v":"Sistema Bibliotecario"}]
[null,"ARF01","Subsidios recibidos a destiempo o incompletos","P_13",{"$f":"VLOOKUP(VALUE(MID(Tabla6[[#This Row],[idProceso]],FIND(\"_\",Tabla6[[#This Row],[idProceso]],1)+1,LEN(Tabla6[[#This Row],[idProceso]]))),TProcesos[[ID]:[TipoProceso]],2,FALSE)","v":"Administración de Recursos Financieros"}]

{"sheet":"Catálogos","index":10,"n_rows":26,"n_cols":11,"rows_kept":26,"cut":false,"hidden":true,"merged":[[2,1,2,2]]}
[]
[]
[null,"Catálogo de Riesgos",null,null,"Categoría",null,"Restricciones",null,"Probabilidad"]
[null,"R01","Definición y entrega de requerimientos",null,"Recurso Humano",null,"Alcance",null,"0 - 20",1,"Muy Baja"]
[null,"R02","Falta de oportunidad de liberación a producción",null,"Gestión de Proyectos",null,"Costo",null,"21 - 40",2,"Baja"]
[null,"R03","Compromiso de la Alta Dirección",null,"Procesos",null,"Cronograma",null,"41 - 60",3,"Moderada"]
[null,"R04","Curva de aprendizaje para desarrollos BI y soluciones estratégicas",null,"Infraestructura",null,"Calidad",null,"61 - 80",4,"Alta"]
[null,"R05","Errores en el desarrollo de la solución tecnológica",null,null,null,null,null,"81 - 100",5,"Muy Alta"]
[null,"R06","Software y Tecnología"]
[null,"R07","Falta de disponibilidad de usuarios"]
[null,"R08","Equipo del proyecto con recursos tecnológicos limitados"]
[null,"R09","Sobre o sub dimensionamiento del proyecto"]
[null,"R10","Calidad"]
[null,"R11","Fallas de la aplicación y pérdida de información en producción"]
[null,"R12","Capacidad insuficiente de recurso humano"]
[null,"R13","Diseño inadecuado de la interfaz"]
[null,"R14","Manejo de la información por parte del Equipo de Trabajo"]
[null,"R15","Pérdida de tiempo en el inicio difuso"]
[null,"R16","Liberación de documentos estratégicos y normatividad"]
[null,"R17","Seguimiento y control del proyecto"]
[null,"R18","Trabajo en equipo"]
[null,"R19","Falta de espacio laboral para personal temporal"]
[null,"R20","Planificación excesivamente optimista"]
[null,"R21","Emplazamiento a Huelga"]
[null,"R22","Promoción insuficiente del producto"]
[null,"R23","Deficiente o excesiva Planeación del proyecto"]

{"sheet":"TempoSP","index":11,"n_rows":7,"n_cols":11,"rows_kept":7,"cut":false,"hidden":true,"merged":[]}
[null,"Tabla temporal de sub procesos ",null,null,null,"Tabla temporal de procedimientos",null,null,null,"Tabla de Riesgos"]
[null,"Sub Procesos","Columna1",null,null,"Procedimiento","Columna1",null,null,"Riesgo","Clave"]
[null,"N/A","N/A-P_1",null,null,"Respaldo de Información Administrativa"]
[null,null,null,null,null,"Gestión de Incidentes"]
[null,null,null,null,null,"Acceso al Sistema Integral de Información Universitaria"]
[null,null,null,null,null,"Dictamen Técnico de Equipo de Cómputo y Periféricos"]
[null,null,null,null,null,"Gestión de Cuentas Institucionales"]

{"sheet":"Cap_Procedimientos","index":12,"n_rows":93,"n_cols":16,"rows_kept":93,"cut":false,"hidden":true,"merged":[[1,1,1,7],[2,1,2,7],[6,1,6,5],[22,1,22,5],[11,2,11,4],[15,2,15,4],[17,2,17,4]]}
[]
[null,"Universidad Veracruzana"]
[null,"Sistema de Gestión de Calidad - Valoración de Riesgos",null,null,null,null,null,null,null,null,null,null,null,null,null,"SubProcedimientos"]
[]
[]
[]
[null,"Módulo de Procesos Nivel 3"]
[]
[]
[]
[null,null,"Elige el proceso de la lista desplegable (Nivel Uno)"]
[null,null,null,null,null,"P_1"]
[null,null,"Entidad Académica o Dependencia Responsable"]
[]
[null,null,"Elige el subproceso de la Lista desplegable (Nivel Dos)"]
[null,null,null,null,null,"SP_13_3"]
[null,null,"Nombre del Procedimiento (Tercer Nivel)"]
[]
[]
[]
[]
[]
[null,"Procesos de Nivel 3"]
[]
[null,"ID","Nombre del Procedimientos","Dire","Proceso","Sub-Proceso","Id_Pr2"]
[null,1,"Respaldo de Información Administrativa","P_18",{"$f":"VLOOKUP(VALUE(MID(Tabla3[[#This Row],[Dire]],FIND(\"_\",Tabla3[[#This Row],[Dire]],1)+1,LEN(Tabla3[[#This Row],[Dire]]))),TProcesos[[ID]:[TipoProceso]],2,FALSE)","v":"Gestión de Servicios de Tecnologías de la Información en la Región Xalapa"},{"$f":"VLOOKUP(Tabla3[[#This Row],[Id_Pr2]],TablaSP[[IDSP]:[subproceso]],3,FALSE)","v":"N/A"},"SP_18_1"]
[null,2,"Gestión de Incidentes","P_18",{"$f":"VLOOKUP(VALUE(MID(Tabla3[[#This Row],[Dire]],FIND(\"_\",Tabla3[[#This Row],[Dire]],1)+1,LEN(Tabla3[[#This Row],[Dire]]))),TProcesos[[ID]:[TipoProceso]],2,FALSE)","v":"Gestión de Servicios de Tecnologías de la Información en la Región Xalapa"},{"$f":"VLOOKUP(Tabla3[[#This Row],[Id_Pr2]],TablaSP[[IDSP]:[subproceso]],3,FALSE)","v":"N/A"},"SP_18_1"]
[null,3,"Acceso al Sistema Integral de Información Universitaria","P_18",{"$f":"VLOOKUP(VALUE(MID(Tabla3[[#This Row],[Dire]],FIND(\"_\",Tabla3[[#This Row],[Dire]],1)+1,LEN(Tabla3[[#This Row],[Dire]]))),TProcesos[[ID]:[TipoProceso]],2,FALSE)","v":"Gestión de Servicios de Tecnologías de la Información en la Región Xalapa"},{"$f":"VLOOKUP(Tabla3[[#This Row],[Id_Pr2]],TablaSP[[IDSP]:[subproceso]],3,FALSE)","v":"N/A"},"SP_18_1"]
[null,4,"Dictamen Técnico de Equipo de Cómputo y Periféricos","P_18",{"$f":"VLOOKUP(VALUE(MID(Tabla3[[#This Row],[Dire]],FIND(\"_\",Tabla3[[#This Row],[Dire]],1)+1,LEN(Tabla3[[#This Row],[Dire]]))),TProcesos[[ID]:[TipoProceso]],2,FALSE)","v":"Gestión de Servicios de Tecnologías de la Información en la Región Xalapa"},{"$f":"VLOOKUP(Tabla3[[#This Row],[Id_Pr2]],TablaSP[[IDSP]:[subproceso]],3,FALSE)","v":"N/A"},"SP_18_1"]
[null,5,"Gestión de Cuentas Institucionales","P_18",{"$f":"VLOOKUP(VALUE(MID(Tabla3[[#This Row],[Dire]],FIND(\"_\",Tabla3[[#This Row],[Dire]],1)+1,LEN(Tabla3[[#This Row],[Dire]]))),TProcesos[[ID]:[TipoProceso]],2,FALSE)","v":"Gestión de Servicios de Tecnologías de la Información en la Región Xalapa"},{"$f":"VLOOKUP(Tabla3[[#This Row],[Id_Pr2]],TablaSP[[IDSP]:[subproceso]],3,FALSE)","v":"N/A"},"SP_18_1"]
[null,1,"Publicación de Obligaciones de Transparencia","P_1",{"$f":"VLOOKUP(VALUE(MID(Tabla3[[#This Row],[Dire]],FIND(\"_\",Tabla3[[#This Row],[Dire]],1)+1,LEN(Tabla3[[#This Row],[Dire]]))),TProcesos[[ID]:[TipoProceso]],2,FALSE)","v":"Transparencia"},{"$f":"VLOOKUP(Tabla3[[#This Row],[Id_Pr2]],TablaSP[[IDSP]:[subproceso]],3,FALSE)","v":"N/A"},"SP_1_1"]
[null,2,"Acceso a la Información","P_1",{"$f":"VLOOKUP(VALUE(MID(Tabla3[[#This Row],[Dire]],FIND(\"_\",Tabla3[[#This Row],[Dire]],1)+1,LEN(Tabla3[[#This Row],[Dire]]))),TProcesos[[ID]:[TipoProceso]],2,FALSE)","v":"Transparencia"},{"$f":"VLOOKUP(Tabla3[[#This Row],[Id_Pr2]],TablaSP[[IDSP]:[subproceso]],3,FALSE)","v":"N/A"},"SP_1_1"]
[null,3,"Protección de Datos Personales","P_1",{"$f":"VLOOKUP(VALUE(MID(Tabla3[[#This Row],[Dire]],FIND(\"_\",Tabla3[[#This Row],[Dire]],1)+1,LEN(Tabla3[[#This Row],[Dire]]))),TProcesos[[ID]:[TipoProceso]],2,FALSE)","v":"Transparencia"},{"$f":"VLOOKUP(Tabla3[[#This Row],[Id_Pr2]],TablaSP[[IDSP]:[subproceso]],3,FALSE)","v":"N/A"},"SP_1_1"]
[null,4,"Ejercicio de Derechos ARCO","P_1",{"$f":"VLOOKUP(VALUE(MID(Tabla3[[#This Row],[Dire]],FIND(\"_\",Tabla3[[#This Row],[Dire]],1)+1,LEN(Tabla3[[#This Row],[Dire]]))),TProcesos[[ID]:[TipoProceso]],2,FALSE)","v":"Transparencia"},{"$f":"VLOOKUP(Tabla3[[#This Row],[Id_Pr2]],TablaSP[[IDSP]:[subproceso]],3,FALSE)","v":"N/A"},"SP_1_1"]
[null,1,"Préstamo de Recursos Documentales en la modalidad de consulta Interna y Préstamo a domicilio","P_4",{"$f":"VLOOKUP(VALUE(MID(Tabla3[[#This Row],[Dire]],FIND(\"_\",Tabla3[[#This Row],[Dire]],1)+1,LEN(Tabla3[[#This Row],[Dire]]))),TProcesos[[ID]:[TipoProceso]],2,FALSE)","v":"Sistema Bibliotecario"},{"$f":"VLOOKUP(Tabla3[[#This Row],[Id_Pr2]],TablaSP[[IDSP]:[subproceso]],3,FALSE)","v":"Servicios Bibliotecarios"},"SP_4_1"]
[null,2,"Revisión de Requisiciones en Línea","P_4",{"$f":"VLOOKUP(VALUE(MID(Tabla3[[#This Row],[Dire]],FIND(\"_\",Tabla3[[#This Row],[Dire]],1)+1,LEN(Tabla3[[#This Row],[Dire]]))),TProcesos[[ID]:[TipoProceso]],2,FALSE)","v":"Sistema Bibliotecario"},{"$f":"VLOOKUP(Tabla3[[#This Row],[Id_Pr2]],TablaSP[[IDSP]:[subproceso]],3,FALSE)","v":"Servicios Bibliotecarios"},"SP_4_1"]
[null,1,"Publicación de la Convocatorio y Registro de la Inscripción","P_5",{"$f":"VLOOKUP(VALUE(MID(Tabla3[[#This Row],[Dire]],FIND(\"_\",Tabla3[[#This Row],[Dire]],1)+1,LEN(Tabla3[[#This Row],[Dire]]))),TProcesos[[ID]:[TipoProceso]],2,FALSE)","v":"Desempeño Docente"},{"$f":"VLOOKUP(Tabla3[[#This Row],[Id_Pr2]],TablaSP[[IDSP]:[subproceso]],3,FALSE)","v":"N/A"},"SP_5_1"]
[null,2,"Concentración de Información de las Entidades Académicas y Dependencias","P_5",{"$f":"VLOOKUP(VALUE(MID(Tabla3[[#This Row],[Dire]],FIND(\"_\",Tabla3[[#This Row],[Dire]],1)+1,LEN(Tabla3[[#This Row],[Dire]]))),TProcesos[[ID]:[TipoProceso]],2,FALSE)","v":"Desempeño Docente"},{"$f":"VLOOKUP(Tabla3[[#This Row],[Id_Pr2]],TablaSP[[IDSP]:[subproceso]],3,FALSE)","v":"N/A"},"SP_5_1"]
[null,3,"Concentración de Información para la Permanencia y Dedicación","P_5",{"$f":"VLOOKUP(VALUE(MID(Tabla3[[#This Row],[Dire]],FIND(\"_\",Tabla3[[#This Row],[Dire]],1)+1,LEN(Tabla3[[#This Row],[Dire]]))),TProcesos[[ID]:[TipoProceso]],2,FALSE)","v":"Desempeño Docente"},{"$f":"VLOOKUP(Tabla3[[#This Row],[Id_Pr2]],TablaSP[[IDSP]:[subproceso]],3,FALSE)","v":"N/A"},"SP_5_1"]
[null,4,"Resultados de la Evalución del Desempeño Docente, Académico y en la Ejecucion Artística de los Docentes de la UV","P_5",{"$f":"VLOOKUP(VALUE(MID(Tabla3[[#This Row],[Dire]],FIND(\"_\",Tabla3[[#This Row],[Dire]],1)+1,LEN(Tabla3[[#This Row],[Dire]]))),TProcesos[[ID]:[TipoProceso]],2,FALSE)","v":"Desempeño Docente"},{"$f":"VLOOKUP(Tabla3[[#This Row],[Id_Pr2]],TablaSP[[IDSP]:[subproceso]],3,FALSE)","v":"N/A"},"SP_5_1"]
[null,5,"Seguimiento para la Evaluación de los Productos y Actividades derivados del Trabajo Académico","P_5",{"$f":"VLOOKUP(VALUE(MID(Tabla3[[#This Row],[Dire]],FIND(\"_\",Tabla3[[#This Row],[Dire]],1)+1,LEN(Tabla3[[#This Row],[Dire]]))),TProcesos[[ID]:[TipoProceso]],2,FALSE)","v":"Desempeño Docente"},{"$f":"VLOOKUP(Tabla3[[#This Row],[Id_Pr2]],TablaSP[[IDSP]:[subproceso]],3,FALSE)","v":"N/A"},"SP_5_1"]
[null,6,"Informe a la Comisión del Consejo Universitario para el Seguimiento y la Evaluación del Programa de Estímulos al Desempeño del Pesonal Académico","P_5",{"$f":"VLOOKUP(VALUE(MID(Tabla3[[#This Row],[Dire]],FIND(\"_\",Tabla3[[#This Row],[Dire]],1)+1,LEN(Tabla3[[#This Row],[Dire]]))),TProcesos[[ID]:[TipoProceso]],2,FALSE)","v":"Desempeño Docente"},{"$f":"VLOOKUP(Tabla3[[#This Row],[Id_Pr2]],TablaSP[[IDSP]:[subproceso]],3,FALSE)","v":"N/A"},"SP_5_1"]
[null,1,"Formación Pedagógica","P_6",{"$f":"VLOOKUP(VALUE(MID(Tabla3[[#This Row],[Dire]],FIND(\"_\",Tabla3[[#This Row],[Dire]],1)+1,LEN(Tabla3[[#This Row],[Dire]]))),TProcesos[[ID]:[TipoProceso]],2,FALSE)","v":"Formación Académica"},{"$f":"VLOOKUP(Tabla3[[#This Row],[Id_Pr2]],TablaSP[[IDSP]:[subproceso]],3,FALSE)","v":"N/A"},"SP_6_1"]
[null,2,"Formación Disciplinar","P_6",{"$f":"VLOOKUP(VALUE(MID(Tabla3[[#This Row],[Dire]],FIND(\"_\",Tabla3[[#This Row],[Dire]],1)+1,LEN(Tabla3[[#This Row],[Dire]]))),TProcesos[[ID]:[TipoProceso]],2,FALSE)","v":"Formación Académica"},{"$f":"VLOOKUP(Tabla3[[#This Row],[Id_Pr2]],TablaSP[[IDSP]:[subproceso]],3,FALSE)","v":"N/A"},"SP_6_1"]
[null,1,"Registro, Seguimiento y Validación de la Tutoría Académica a Nivel de Estudios de Licenciatura y Técnico Superior Universitario en las cinco Regiones de la UV","P_7",{"$f":"VLOOKUP(VALUE(MID(Tabla3[[#This Row],[Dire]],FIND(\"_\",Tabla3[[#This Row],[Dire]],1)+1,LEN(Tabla3[[#This Row],[Dire]]))),TProcesos[[ID]:[TipoProceso]],2,FALSE)","v":"Tutoría"},{"$f":"VLOOKUP(Tabla3[[#This Row],[Id_Pr2]],TablaSP[[IDSP]:[subproceso]],3,FALSE)","v":"Tutoría Académica"},"SP_7_1"]
[null,1,"Aplicación del Examen de Ingreso","P_8",{"$f":"VLOOKUP(VALUE(MID(Tabla3[[#This Row],[Dire]],FIND(\"_\",Tabla3[[#This Row],[Dire]],1)+1,LEN(Tabla3[[#This Row],[Dire]]))),TProcesos[[ID]:[TipoProceso]],2,FALSE)","v":"Ingreso"},{"$f":"VLOOKUP(Tabla3[[#This Row],[Id_Pr2]],TablaSP[[IDSP]:[subproceso]],3,FALSE)","v":"N/A"},"SP_8_1"]
[null,1,"Publicación de Resultados","P_8",{"$f":"VLOOKUP(VALUE(MID(Tabla3[[#This Row],[Dire]],FIND(\"_\",Tabla3[[#This Row],[Dire]],1)+1,LEN(Tabla3[[#This Row],[Dire]]))),TProcesos[[ID]:[TipoProceso]],2,FALSE)","v":"Ingreso"},{"$f":"VLOOKUP(Tabla3[[#This Row],[Id_Pr2]],TablaSP[[IDSP]:[subproceso]],3,FALSE)","v":"Ingreso"},"SP_8_2"]
[null,2,"Registro en Línea de Aspirantes UV","P_8",{"$f":"VLOOKUP(VALUE(MID(Tabla3[[#This Row],[Dire]],FIND(\"_\",Tabla3[[#This Row],[Dire]],1)+1,LEN(Tabla3[[#This Row],[Dire]]))),TProcesos[[ID]:[TipoProceso]],2,FALSE)","v":"Ingreso"},{"$f":"VLOOKUP(Tabla3[[#This Row],[Id_Pr2]],TablaSP[[IDSP]:[subproceso]],3,FALSE)","v":"Ingreso"},"SP_8_2"]
[null,3,"Selección de Aplicadores y Auxiliares","P_8",{"$f":"VLOOKUP(VALUE(MID(Tabla3[[#This Row],[Dire]],FIND(\"_\",Tabla3[[#This Row],[Dire]],1)+1,LEN(Tabla3[[#This Row],[Dire]]))),TProcesos[[ID]:[TipoProceso]],2,FALSE)","v":"Ingreso"},{"$f":"VLOOKUP(Tabla3[[#This Row],[Id_Pr2]],TablaSP[[IDSP]:[subproceso]],3,FALSE)","v":"Ingreso"},"SP_8_2"]
[null,4,"Conteo y Distribución del Material de Aplicación","P_8",{"$f":"VLOOKUP(VALUE(MID(Tabla3[[#This Row],[Dire]],FIND(\"_\",Tabla3[[#This Row],[Dire]],1)+1,LEN(Tabla3[[#This Row],[Dire]]))),TProcesos[[ID]:[TipoProceso]],2,FALSE)","v":"Ingreso"},{"$f":"VLOOKUP(Tabla3[[#This Row],[Id_Pr2]],TablaSP[[IDSP]:[subproceso]],3,FALSE)","v":"Ingreso"},"SP_8_2"]
[null,1,"Inscripción","P_9",{"$f":"VLOOKUP(VALUE(MID(Tabla3[[#This Row],[Dire]],FIND(\"_\",Tabla3[[#This Row],[Dire]],1)+1,LEN(Tabla3[[#This Row],[Dire]]))),TProcesos[[ID]:[TipoProceso]],2,FALSE)","v":"Permanencia"},{"$f":"VLOOKUP(Tabla3[[#This Row],[Id_Pr2]],TablaSP[[IDSP]:[subproceso]],3,FALSE)","v":"N/A"},"SP_9_1"]
[null,2,"Movimientos Escolares","P_9",{"$f":"VLOOKUP(VALUE(MID(Tabla3[[#This Row],[Dire]],FIND(\"_\",Tabla3[[#This Row],[Dire]],1)+1,LEN(Tabla3[[#This Row],[Dire]]))),TProcesos[[ID]:[TipoProceso]],2,FALSE)","v":"Permanencia"},{"$f":"VLOOKUP(Tabla3[[#This Row],[Id_Pr2]],TablaSP[[IDSP]:[subproceso]],3,FALSE)","v":"N/A"},"SP_9_1"]
[null,3,"Inscripción de Nuevo Ingreso","P_9",{"$f":"VLOOKUP(VALUE(MID(Tabla3[[#This Row],[Dire]],FIND(\"_\",Tabla3[[#This Row],[Dire]],1)+1,LEN(Tabla3[[#This Row],[Dire]]))),TProcesos[[ID]:[TipoProceso]],2,FALSE)","v":"Permanencia"},{"$f":"VLOOKUP(Tabla3[[#This Row],[Id_Pr2]],TablaSP[[IDSP]:[subproceso]],3,FALSE)","v":"N/A"},"SP_9_1"]
[null,4,"Emisión de Credencial de Identificación Universitaria para Alumnos","P_9",{"$f":"VLOOKUP(VALUE(MID(Tabla3[[#This Row],[Dire]],FIND(\"_\",Tabla3[[#This Row],[Dire]],1)+1,LEN(Tabla3[[#This Row],[Dire]]))),TProcesos[[ID]:[TipoProceso]],2,FALSE)","v":"Permanencia"},{"$f":"VLOOKUP(Tabla3[[#This Row],[Id_Pr2]],TablaSP[[IDSP]:[subproceso]],3,FALSE)","v":"N/A"},"SP_9_1"]
[null,5,"Seguro Facultativo para Alumnos","P_9",{"$f":"VLOOKUP(VALUE(MID(Tabla3[[#This Row],[Dire]],FIND(\"_\",Tabla3[[#This Row],[Dire]],1)+1,LEN(Tabla3[[#This Row],[Dire]]))),TProcesos[[ID]:[TipoProceso]],2,FALSE)","v":"Permanencia"},{"$f":"VLOOKUP(Tabla3[[#This Row],[Id_Pr2]],TablaSP[[IDSP]:[subproceso]],3,FALSE)","v":"N/A"},"SP_9_1"]
[null,1,"Legalización de Certificados de Estudios Profesionales","P_10",{"$f":"VLOOKUP(VALUE(MID(Tabla3[[#This Row],[Dire]],FIND(\"_\",Tabla3[[#This Row],[Dire]],1)+1,LEN(Tabla3[[#This Row],[Dire]]))),TProcesos[[ID]:[TipoProceso]],2,FALSE)","v":"Egreso"},{"$f":"VLOOKUP(Tabla3[[#This Row],[Id_Pr2]],TablaSP[[IDSP]:[subproceso]],3,FALSE)","v":"N/A"},"SP_10_1"]
[null,2,"Expedición de Títulos, Diplomas y Grados Académicos","P_10",{"$f":"VLOOKUP(VALUE(MID(Tabla3[[#This Row],[Dire]],FIND(\"_\",Tabla3[[#This Row],[Dire]],1)+1,LEN(Tabla3[[#This Row],[Dire]]))),TProcesos[[ID]:[TipoProceso]],2,FALSE)","v":"Egreso"},{"$f":"VLOOKUP(Tabla3[[#This Row],[Id_Pr2]],TablaSP[[IDSP]:[subproceso]],3,FALSE)","v":"N/A"},"SP_10_1"]
[null,1,"Gestión de Movilidad Internacional de Alumnos de la UV","P_11",{"$f":"VLOOKUP(VALUE(MID(Tabla3[[#This Row],[Dire]],FIND(\"_\",Tabla3[[#This Row],[Dire]],1)+1,LEN(Tabla3[[#This Row],[Dire]]))),TProcesos[[ID]:[TipoProceso]],2,FALSE)","v":"Movilidad"},{"$f":"VLOOKUP(Tabla3[[#This Row],[Id_Pr2]],TablaSP[[IDSP]:[subproceso]],3,FALSE)","v":"N/A"},"SP_11_1"]
[null,2,"Gestión de Movilidad Nacional de Estudiantes de la UV","P_11",{"$f":"VLOOKUP(VALUE(MID(Tabla3[[#This Row],[Dire]],FIND(\"_\",Tabla3[[#This Row],[Dire]],1)+1,LEN(Tabla3[[#This Row],[Dire]]))),TProcesos[[ID]:[TipoProceso]],2,FALSE)","v":"Movilidad"},{"$f":"VLOOKUP(Tabla3[[#This Row],[Id_Pr2]],TablaSP[[IDSP]:[subproceso]],3,FALSE)","v":"N/A"},"SP_11_1"]
[null,3,"Gestión de Admisiones Internacionales","P_11",{"$f":"VLOOKUP(VALUE(MID(Tabla3[[#This Row],[Dire]],FIND(\"_\",Tabla3[[#This Row],[Dire]],1)+1,LEN(Tabla3[[#This Row],[Dire]]))),TProcesos[[ID]:[TipoProceso]],2,FALSE)","v":"Movilidad"},{"$f":"VLOOKUP(Tabla3[[#This Row],[Id_Pr2]],TablaSP[[IDSP]:[subproceso]],3,FALSE)","v":"N/A"},"SP_11_1"]
[null,4,"Gestión de Admisiones Nacionales","P_11",{"$f":"VLOOKUP(VALUE(MID(Tabla3[[#This Row],[Dire]],FIND(\"_\",Tabla3[[#This Row],[Dire]],1)+1,LEN(Tabla3[[#This Row],[Dire]]))),TProcesos[[ID]:[TipoProceso]],2,FALSE)","v":"Movilidad"},{"$f":"VLOOKUP(Tabla3[[#This Row],[Id_Pr2]],TablaSP[[IDSP]:[subproceso]],3,FALSE)","v":"N/A"},"SP_11_1"]
[null,5,"Gestión de Apoyo Ecnonómicos para la Movilidad Nacional e Internacional","P_11",{"$f":"VLOOKUP(VALUE(MID(Tabla3[[#This Row],[Dire]],FIND(\"_\",Tabla3[[#This Row],[Dire]],1)+1,LEN(Tabla3[[#This Row],[Dire]]))),TProcesos[[ID]:[TipoProceso]],2,FALSE)","v":"Movilidad"},{"$f":"VLOOKUP(Tabla3[[#This Row],[Id_Pr2]],TablaSP[[IDSP]:[subproceso]],3,FALSE)","v":"N/A"},"SP_11_1"]
[null,6,"Promoción y Difusión de Convocatorias PROMUV, Externas y Programas Especiales","P_11",{"$f":"VLOOKUP(VALUE(MID(Tabla3[[#This Row],[Dire]],FIND(\"_\",Tabla3[[#This Row],[Dire]],1)+1,LEN(Tabla3[[#This Row],[Dire]]))),TProcesos[[ID]:[TipoProceso]],2,FALSE)","v":"Movilidad"},{"$f":"VLOOKUP(Tabla3[[#This Row],[Id_Pr2]],TablaSP[[IDSP]:[subproceso]],3,FALSE)","v":"N/A"},"SP_11_1"]
[null,7,"Gestión de Programas Especiales","P_11",{"$f":"VLOOKUP(VALUE(MID(Tabla3[[#This Row],[Dire]],FIND(\"_\",Tabla3[[#This Row],[Dire]],1)+1,LEN(Tabla3[[#This Row],[Dire]]))),TProcesos[[ID]:[TipoProceso]],2,FALSE)","v":"Movilidad"},{"$f":"VLOOKUP(Tabla3[[#This Row],[Id_Pr2]],TablaSP[[IDSP]:[subproceso]],3,FALSE)","v":"N/A"},"SP_11_1"]
[null,1,"Organización del Programa de Estancia en Familia","P_12",{"$f":"VLOOKUP(VALUE(MID(Tabla3[[#This Row],[Dire]],FIND(\"_\",Tabla3[[#This Row],[Dire]],1)+1,LEN(Tabla3[[#This Row],[Dire]]))),TProcesos[[ID]:[TipoProceso]],2,FALSE)","v":"Gestión de Servicios Administrativos y Programas de Vinculación e Intregación Cultural y Académica"},{"$f":"VLOOKUP(Tabla3[[#This Row],[Id_Pr2]],TablaSP[[IDSP]:[subproceso]],3,FALSE)","v":"Gestión de Servicios Administrativos para visitantes y Comunidad Universitaria"},"SP_12_1"]
[null,2,"Orienteción y Apoyo para Alojamiento Independiente","P_12",{"$f":"VLOOKUP(VALUE(MID(Tabla3[[#This Row],[Dire]],FIND(\"_\",Tabla3[[#This Row],[Dire]],1)+1,LEN(Tabla3[[#This Row],[Dire]]))),TProcesos[[ID]:[TipoProceso]],2,FALSE)","v":"Gestión de Servicios Administrativos y Programas de Vinculación e Intregación Cultural y Académica"},{"$f":"VLOOKUP(Tabla3[[#This Row],[Id_Pr2]],TablaSP[[IDSP]:[subproceso]],3,FALSE)","v":"Gestión de Servicios Administrativos para visitantes y Comunidad Universitaria"},"SP_12_1"]
[null,3,"Atención a Visitantes Chinos Hospedados por la UV","P_12",{"$f":"VLOOKUP(VALUE(MID(Tabla3[[#This Row],[Dire]],FIND(\"_\",Tabla3[[#This Row],[Dire]],1)+1,LEN(Tabla3[[#This Row],[Dire]]))),TProcesos[[ID]:[TipoProceso]],2,FALSE)","v":"Gestión de Servicios Administrativos y Programas de Vinculación e Intregación Cultural y Académica"},{"$f":"VLOOKUP(Tabla3[[#This Row],[Id_Pr2]],TablaSP[[IDSP]:[subproceso]],3,FALSE)","v":"Gestión de Servicios Administrativos para visitantes y Comunidad Universitaria"},"SP_12_1"]
[null,4,"Orientación y Apoyo en Asuntos y Trámites Migratorios","P_12",{"$f":"VLOOKUP(VALUE(MID(Tabla3[[#This Row],[Dire]],FIND(\"_\",Tabla3[[#This Row],[Dire]],1)+1,LEN(Tabla3[[#This Row],[Dire]]))),TProcesos[[ID]:[TipoProceso]],2,FALSE)","v":"Gestión de Servicios Administrativos y Programas de Vinculación e Intregación Cultural y Académica"},{"$f":"VLOOKUP(Tabla3[[#This Row],[Id_Pr2]],TablaSP[[IDSP]:[subproceso]],3,FALSE)","v":"Gestión de Servicios Administrativos para visitantes y Comunidad Universitaria"},"SP_12_1"]
[null,5,"Organización y Apoyo para Trámite de Visas","P_12",{"$f":"VLOOKUP(VALUE(MID(Tabla3[[#This Row],[Dire]],FIND(\"_\",Tabla3[[#This Row],[Dire]],1)+1,LEN(Tabla3[[#This Row],[Dire]]))),TProcesos[[ID]:[TipoProceso]],2,FALSE)","v":"Gestión de Servicios Administrativos y Programas de Vinculación e Intregación Cultural y Académica"},{"$f":"VLOOKUP(Tabla3[[#This Row],[Id_Pr2]],TablaSP[[IDSP]:[subproceso]],3,FALSE)","v":"Gestión de Servicios Administrativos para visitantes y Comunidad Universitaria"},"SP_12_1"]
[null,6,"Gestión de Traslados para Público Visitante UV","P_12",{"$f":"VLOOKUP(VALUE(MID(Tabla3[[#This Row],[Dire]],FIND(\"_\",Tabla3[[#This Row],[Dire]],1)+1,LEN(Tabla3[[#This Row],[Dire]]))),TProcesos[[ID]:[TipoProceso]],2,FALSE)","v":"Gestión de Servicios Administrativos y Programas de Vinculación e Intregación Cultural y Académica"},{"$f":"VLOOKUP(Tabla3[[#This Row],[Id_Pr2]],TablaSP[[IDSP]:[subproceso]],3,FALSE)","v":"Gestión de Servicios Administrativos para visitantes y Comunidad Universitaria"},"SP_12_1"]
[null,7,"Promoción y Orientación de Seguros Nacionales e Internacionales","P_12",{"$f":"VLOOKUP(VALUE(MID(Tabla3[[#This Row],[Dire]],FIND(\"_\",Tabla3[[#This Row],[Dire]],1)+1,LEN(Tabla3[[#This Row],[Dire]]))),TProcesos[[ID]:[TipoProceso]],2,FALSE)","v":"Gestión de Servicios Administrativos y Programas de Vinculación e Intregación Cultural y Académica"},{"$f":"VLOOKUP(Tabla3[[#This Row],[Id_Pr2]],TablaSP[[IDSP]:[subproceso]],3,FALSE)","v":"Gestión de Servicios Administrativos para visitantes y Comunidad Universitaria"},"SP_12_1"]
[null,8,"Comunicación de los Espacios de Comunicación para Estudiantes Visitantes","P_12",{"$f":"VLOOKUP(VALUE(MID(Tabla3[[#This Row],[Dire]],FIND(\"_\",Tabla3[[#This Row],[Dire]],1)+1,LEN(Tabla3[[#This Row],[Dire]]))),TProcesos[[ID]:[TipoProceso]],2,FALSE)","v":"Gestión de Servicios Administrativos y Programas de Vinculación e Intregación Cultural y Académica"},{"$f":"VLOOKUP(Tabla3[[#This Row],[Id_Pr2]],TablaSP[[IDSP]:[subproceso]],3,FALSE)","v":"Gestión de Servicios Administrativos para visitantes y Comunidad Universitaria"},"SP_12_1"]
[null,1,"Elaboración y Registro del Presupuesto de Ingresos y Egresos","P_13",{"$f":"VLOOKUP(VALUE(MID(Tabla3[[#This Row],[Dire]],FIND(\"_\",Tabla3[[#This Row],[Dire]],1)+1,LEN(Tabla3[[#This Row],[Dire]]))),TProcesos[[ID]:[TipoProceso]],2,FALSE)","v":"Administración de Recursos Financieros"},{"$f":"VLOOKUP(Tabla3[[#This Row],[Id_Pr2]],TablaSP[[IDSP]:[subproceso]],3,FALSE)","v":"Elaboración y Registro del Presupuesto de ingresos y Egresos"},"SP_13_1"]
[null,1,"Recepción, Programación, Pago de Gastos y Comprobación ","P_13",{"$f":"VLOOKUP(VALUE(MID(Tabla3[[#This Row],[Dire]],FIND(\"_\",Tabla3[[#This Row],[Dire]],1)+1,LEN(Tabla3[[#This Row],[Dire]]))),TProcesos[[ID]:[TipoProceso]],2,FALSE)","v":"Administración de Recursos Financieros"},{"$f":"VLOOKUP(Tabla3[[#This Row],[Id_Pr2]],TablaSP[[IDSP]:[subproceso]],3,FALSE)","v":"Operación Ingreso-Gasto"},"SP_13_3"]
[null,2,"Recepción y Registro de Subsidios en Sistema","P_13",{"$f":"VLOOKUP(VALUE(MID(Tabla3[[#This Row],[Dire]],FIND(\"_\",Tabla3[[#This Row],[Dire]],1)+1,LEN(Tabla3[[#This Row],[Dire]]))),TProcesos[[ID]:[TipoProceso]],2,FALSE)","v":"Administración de Recursos Financieros"},{"$f":"VLOOKUP(Tabla3[[#This Row],[Id_Pr2]],TablaSP[[IDSP]:[subproceso]],3,FALSE)","v":"Operación Ingreso-Gasto"},"SP_13_3"]
[null,1,"Conciliaciones Bancarias","P_13",{"$f":"VLOOKUP(VALUE(MID(Tabla3[[#This Row],[Dire]],FIND(\"_\",Tabla3[[#This Row],[Dire]],1)+1,LEN(Tabla3[[#This Row],[Dire]]))),TProcesos[[ID]:[TipoProceso]],2,FALSE)","v":"Administración de Recursos Financieros"},{"$f":"VLOOKUP(Tabla3[[#This Row],[Id_Pr2]],TablaSP[[IDSP]:[subproceso]],3,FALSE)","v":"Análisis y Evaluación Financiera"},"SP_13_4"]
[null,1,"Registro y Actualización de Bienes Muebles e Inmuebles","P_14",{"$f":"VLOOKUP(VALUE(MID(Tabla3[[#This Row],[Dire]],FIND(\"_\",Tabla3[[#This Row],[Dire]],1)+1,LEN(Tabla3[[#This Row],[Dire]]))),TProcesos[[ID]:[TipoProceso]],2,FALSE)","v":"Administración de Bienes y Servicios"},{"$f":"VLOOKUP(Tabla3[[#This Row],[Id_Pr2]],TablaSP[[IDSP]:[subproceso]],3,FALSE)","v":"Control de Bienes Muebles e Inmuebles"},"SP_14_1"]
[null,2,"Control de Bienes Muebles e Inmuebles","P_14",{"$f":"VLOOKUP(VALUE(MID(Tabla3[[#This Row],[Dire]],FIND(\"_\",Tabla3[[#This Row],[Dire]],1)+1,LEN(Tabla3[[#This Row],[Dire]]))),TProcesos[[ID]:[TipoProceso]],2,FALSE)","v":"Administración de Bienes y Servicios"},{"$f":"VLOOKUP(Tabla3[[#This Row],[Id_Pr2]],TablaSP[[IDSP]:[subproceso]],3,FALSE)","v":"Control de Bienes Muebles e Inmuebles"},"SP_14_1"]
[null,3,"Baja y Desincorporación de Bienes Muebles","P_14",{"$f":"VLOOKUP(VALUE(MID(Tabla3[[#This Row],[Dire]],FIND(\"_\",Tabla3[[#This Row],[Dire]],1)+1,LEN(Tabla3[[#This Row],[Dire]]))),TProcesos[[ID]:[TipoProceso]],2,FALSE)","v":"Administración de Bienes y Servicios"},{"$f":"VLOOKUP(Tabla3[[#This Row],[Id_Pr2]],TablaSP[[IDSP]:[subproceso]],3,FALSE)","v":"Control de Bienes Muebles e Inmuebles"},"SP_14_1"]
[null,1,"Adquisición de Bienes y Servicios","P_14",{"$f":"VLOOKUP(VALUE(MID(Tabla3[[#This Row],[Dire]],FIND(\"_\",Tabla3[[#This Row],[Dire]],1)+1,LEN(Tabla3[[#This Row],[Dire]]))),TProcesos[[ID]:[TipoProceso]],2,FALSE)","v":"Administración de Bienes y Servicios"},{"$f":"VLOOKUP(Tabla3[[#This Row],[Id_Pr2]],TablaSP[[IDSP]:[subproceso]],3,FALSE)","v":"Adquisición de Bienes y Servicios"},"SP_14_2"]
[null,1,"Elaboración del Programa Operativo Anual","P_15",{"$f":"VLOOKUP(VALUE(MID(Tabla3[[#This Row],[Dire]],FIND(\"_\",Tabla3[[#This Row],[Dire]],1)+1,LEN(Tabla3[[#This Row],[Dire]]))),TProcesos[[ID]:[TipoProceso]],2,FALSE)","v":"Planeación Estratégica, Táctica y Operativa"},{"$f":"VLOOKUP(Tabla3[[#This Row],[Id_Pr2]],TablaSP[[IDSP]:[subproceso]],3,FALSE)","v":"N/A"},"SP_15_1"]
[null,1,"Asignación de Clave Programática","P_15",{"$f":"VLOOKUP(VALUE(MID(Tabla3[[#This Row],[Dire]],FIND(\"_\",Tabla3[[#This Row],[Dire]],1)+1,LEN(Tabla3[[#This Row],[Dire]]))),TProcesos[[ID]:[TipoProceso]],2,FALSE)","v":"Planeación Estratégica, Táctica y Operativa"},{"$f":"VLOOKUP(Tabla3[[#This Row],[Id_Pr2]],TablaSP[[IDSP]:[subproceso]],3,FALSE)","v":"Programación y Presupuestación"},"SP_15_2"]
[null,1,"Avance y Seguimiento del Programa Operativo Anual","P_16",{"$f":"VLOOKUP(VALUE(MID(Tabla3[[#This Row],[Dire]],FIND(\"_\",Tabla3[[#This Row],[Dire]],1)+1,LEN(Tabla3[[#This Row],[Dire]]))),TProcesos[[ID]:[TipoProceso]],2,FALSE)","v":"Seguimiento a la Planeación Estratégica, Táctica y Operativa"},{"$f":"VLOOKUP(Tabla3[[#This Row],[Id_Pr2]],TablaSP[[IDSP]:[subproceso]],3,FALSE)","v":"Evaluación"},"SP_16_1"]
[null,2,"Integración y Registro de Información para la Elaboración del Cuestionario Electrónico de Estadística de Educación Superior 911","P_16",{"$f":"VLOOKUP(VALUE(MID(Tabla3[[#This Row],[Dire]],FIND(\"_\",Tabla3[[#This Row],[Dire]],1)+1,LEN(Tabla3[[#This Row],[Dire]]))),TProcesos[[ID]:[TipoProceso]],2,FALSE)","v":"Seguimiento a la Planeación Estratégica, Táctica y Operativa"},{"$f":"VLOOKUP(Tabla3[[#This Row],[Id_Pr2]],TablaSP[[IDSP]:[subproceso]],3,FALSE)","v":"Evaluación"},"SP_16_1"]
[null,1,"Elaboración del Informe Anual de Labores de la Universidad Veracruzana","P_16",{"$f":"VLOOKUP(VALUE(MID(Tabla3[[#This Row],[Dire]],FIND(\"_\",Tabla3[[#This Row],[Dire]],1)+1,LEN(Tabla3[[#This Row],[Dire]]))),TProcesos[[ID]:[TipoProceso]],2,FALSE)","v":"Seguimiento a la Planeación Estratégica, Táctica y Operativa"},{"$f":"VLOOKUP(Tabla3[[#This Row],[Id_Pr2]],TablaSP[[IDSP]:[subproceso]],3,FALSE)","v":"N/A"},"SP_16_2"]
[null,2,"Evaluación Externa","P_16",{"$f":"VLOOKUP(VALUE(MID(Tabla3[[#This Row],[Dire]],FIND(\"_\",Tabla3[[#This Row],[Dire]],1)+1,LEN(Tabla3[[#This Row],[Dire]]))),TProcesos[[ID]:[TipoProceso]],2,FALSE)","v":"Seguimiento a la Planeación Estratégica, Táctica y Operativa"},{"$f":"VLOOKUP(Tabla3[[#This Row],[Id_Pr2]],TablaSP[[IDSP]:[subproceso]],3,FALSE)","v":"N/A"},"SP_16_2"]
[null,3,"Informes Trimestrales del Programa de Fortalecimiento de la Calidad Educativa","P_16",{"$f":"VLOOKUP(VALUE(MID(Tabla3[[#This Row],[Dire]],FIND(\"_\",Tabla3[[#This Row],[Dire]],1)+1,LEN(Tabla3[[#This Row],[Dire]]))),TProcesos[[ID]:[TipoProceso]],2,FALSE)","v":"Seguimiento a la Planeación Estratégica, Táctica y Operativa"},{"$f":"VLOOKUP(Tabla3[[#This Row],[Id_Pr2]],TablaSP[[IDSP]:[subproceso]],3,FALSE)","v":"N/A"},"SP_16_2"]
[null,1,"Control de la Información Documentada","P_17",{"$f":"VLOOKUP(VALUE(MID(Tabla3[[#This Row],[Dire]],FIND(\"_\",Tabla3[[#This Row],[Dire]],1)+1,LEN(Tabla3[[#This Row],[Dire]]))),TProcesos[[ID]:[TipoProceso]],2,FALSE)","v":"Administración del Sistema de Gestión de la Calidad de la UV"},{"$f":"VLOOKUP(Tabla3[[#This Row],[Id_Pr2]],TablaSP[[IDSP]:[subproceso]],3,FALSE)","v":"N/A"},"SP_17_1"]
[null,2,"Control de Registros","P_17",{"$f":"VLOOKUP(VALUE(MID(Tabla3[[#This Row],[Dire]],FIND(\"_\",Tabla3[[#This Row],[Dire]],1)+1,LEN(Tabla3[[#This Row],[Dire]]))),TProcesos[[ID]:[TipoProceso]],2,FALSE)","v":"Administración del Sistema de Gestión de la Calidad de la UV"},{"$f":"VLOOKUP(Tabla3[[#This Row],[Id_Pr2]],TablaSP[[IDSP]:[subproceso]],3,FALSE)","v":"N/A"},"SP_17_1"]
[null,3,"Auditoría Interna","P_17",{"$f":"VLOOKUP(VALUE(MID(Tabla3[[#This Row],[Dire]],FIND(\"_\",Tabla3[[#This Row],[Dire]],1)+1,LEN(Tabla3[[#This Row],[Dire]]))),TProcesos[[ID]:[TipoProceso]],2,FALSE)","v":"Administración del Sistema de Gestión de la Calidad de la UV"},{"$f":"VLOOKUP(Tabla3[[#This Row],[Id_Pr2]],TablaSP[[IDSP]:[subproceso]],3,FALSE)","v":"N/A"},"SP_17_1"]
[null,4,"Acciones Correctivas","P_17",{"$f":"VLOOKUP(VALUE(MID(Tabla3[[#This Row],[Dire]],FIND(\"_\",Tabla3[[#This Row],[Dire]],1)+1,LEN(Tabla3[[#This Row],[Dire]]))),TProcesos[[ID]:[TipoProceso]],2,FALSE)","v":"Administración del Sistema de Gestión de la Calidad de la UV"},{"$f":"VLOOKUP(Tabla3[[#This Row],[Id_Pr2]],TablaSP[[IDSP]:[subproceso]],3,FALSE)","v":"N/A"},"SP_17_1"]
[null,5,"Elaboración de un Manual de Organización","P_17",{"$f":"VLOOKUP(VALUE(MID(Tabla3[[#This Row],[Dire]],FIND(\"_\",Tabla3[[#This Row],[Dire]],1)+1,LEN(Tabla3[[#This Row],[Dire]]))),TProcesos[[ID]:[TipoProceso]],2,FALSE)","v":"Administración del Sistema de Gestión de la Calidad de la UV"},{"$f":"VLOOKUP(Tabla3[[#This Row],[Id_Pr2]],TablaSP[[IDSP]:[subproceso]],3,FALSE)","v":"N/A"},"SP_17_1"]
[null,6,"Actualización del Manual de Organización Institucional","P_17",{"$f":"VLOOKUP(VALUE(MID(Tabla3[[#This Row],[Dire]],FIND(\"_\",Tabla3[[#This Row],[Dire]],1)+1,LEN(Tabla3[[#This Row],[Dire]]))),TProcesos[[ID]:[TipoProceso]],2,FALSE)","v":"Administración del Sistema de Gestión de la Calidad de la UV"},{"$f":"VLOOKUP(Tabla3[[#This Row],[Id_Pr2]],TablaSP[[IDSP]:[subproceso]],3,FALSE)","v":"N/A"},"SP_17_1"]

{"sheet":"Riesgos","index":13,"n_rows":9,"n_cols":23,"rows_kept":9,"cut":false,"hidden":true,"merged":[[6,16,6,18],[1,0,1,13],[2,0,2,13],[4,0,4,10],[6,0,6,3],[6,4,6,5],[6,8,6,10],[6,11,6,13]]}
[]
["Universidad Veracruzana"]
["Formato de Gestión de Riesgos"]
[]
[]
[]
["Información del Proceso",null,null,null,"Identificación del Riesgo ",null,null,null,"Alineación Estratégica (Eje, Programa y Meta del PT 2017-2021)",null,null,"Valoración del Riesgo",null,null,null,null,"Riesgo Residual"]
["Proceso","SubProcesos","Procedimiento","EA/D","Riesgo","Clave","Nivel de Decisión del Riesgo","Clasificación del Riesgo","Ejes","Programa","Meta","Probabilidad","Impacto","Indice P-I","Fecha del riesgo","Fecha de revisión del Riesgo","Probabilidad2","Impacto3","Indice P-I4","tratamientodel riesgo","Num","Numero"]
["Administración de Recursos Financieros","Operación Ingreso-Gasto","Recepción y Registro de Subsidios en Sistema","DGRF","ARF01. Subsidios recibidos a destiempo o incompletos","R1-ARF01","Directivo","Financiero","III. Gestión y gobierno","10. Financiamiento","III.2 ",3,5,"Muy Alto",null,null,3,5,"Muy Alto","Evitar",1,9,1]

{"sheet":"CRiesgos","index":14,"n_rows":20,"n_cols":48,"rows_kept":20,"cut":false,"hidden":true,"merged":[[8,4,19,4],[8,5,19,5],[7,45,7,46],[7,40,7,41],[14,47,16,47],[17,47,19,47],[8,46,10,46],[8,45,10,45],[11,45,13,45],[11,46,13,46],[14,45,16,45],[14,46,16,46],[17,45,19,45],[17,46,19,46],[8,47,10,47],[8,43,19,43],[11,47,13,47],[8,15,19,15],[8,26,19,26],[8,44,19,44],[8,41,19,41],[8,40,19,40],[8,42,19,42],[14,17,16,17],[14,18,16,18],[14,19,16,19],[8,20,19,20],[8,21,19,21],[8,22,19,22],[8,23,19,23],[8,39,19,39],[8,37,19,37],[4,46,4,47],[3,39,3,44],[4,39,4,44],[3,46,3,47],[6,44,6,47],[1,0,2,37],[3,0,3,37],[1,40,1,43],[6,15,7,15],[6,26,7,26],[7,42,7,43],[6,38,6,43],[6,36,7,36],[7,38,7,39],[6,31,6,35],[7,20,7,21],[6,37,7,37],[6,20,6,25],[6,16,6,19],[6,27,7,27],[6,28,6,30],[8,38,19,38],[17,17,19,17],[17,18,19,18],[17,19,19,19],[8,17,10,17],[8,18,10,18],[8,24,19,24],[7,22,7,23],[7,24,7,25],[17,16,19,16],[14,16,16,16],[8,25,19,25],[11,16,13,16],[8,16,10,16],[8,19,10,19],[11,17,13,17],[11,18,13,18],[11,19,13,19],[6,0,6,4],[6,5,6,6],[8,12,19,12],[8,13,19,13],[8,14,19,14],[8,0,19,0],[6,9,6,14],[8,7,19,7],[8,8,19,8],[8,11,19,11],[8,9,19,9],[8,10,19,10],[8,6,19,6],[8,1,19,1],[8,2,19,2],[8,3,19,3]]}
[0]
["Universidad Veracruzana",null,null,null,null,null,null,null,null,null,null,null,null,null,null,null,null,null,null,null,null,null,null,null,null,null,null,null,null,null,null,null,null,null,null,null,null,null,null,null,"Fecha de Actualización: ",null,null,null,"2020-03-20",null,"Fecha de Autorización: ","2020-03-20"]
[]
["Plantilla para la Gestión de Riesgos (SGCUV-GE-F-19)"]
[null,null,null,null,null,null,null,null,null,null,null,null,null,null,null,null,null,null,null,null,null,null,null,null,null,null,null,null,null,null,null,null,null,null,null,null,null,null,null,"Elabora",null,null,null,null,null,null,"Autoriza"]
[]
["Información del Proceso",null,null,null,null,"Identificación del Riesgo ",null,null,null,"Alineación Estratégica (Eje, tema y meta del PT 2021-2025)",null,null,null,null,null,"Fecha en que se detectó el Riesgo","Factor del Riesgo",null,null,null,"Valoración Inicial del Riesgo",null,null,null,null,null,"Fecha en que se revisará el riesgo","Tiene Controles","Controles",null,null,"Control Eficiente o Deficiente\nD (está documentado), F (está formalizado), A (se aplica), E (es efectivo)",null,null,null,null,"Para saber si el riesgo esta controlado o no","Riesgo Controlado","Valoración del Riesgo Vs Controles Aplicados",null,null,null,null,null,"Estrategia (evitarlo, mitigarlo, transferirlo, aceptarlo) y Acciones"]
["Proceso","Subprocesos","Procedimiento","EA/D","Responsable","Riesgo","Narrativa o Posibles efectos del riesgo","Nivel de Decisión del Riesgo","Clasificación del Riesgo","Ejes","_E","_EP","Temas","Meta","Clave Meta",null,"Núm.","Descripción del Factor","Clasificación Factor","Tipo de Factor","Probabilidad",null,"Impacto",null,"Valor del Riesgo",null,null,null,"Núm.","Descripción","Tipo de Control","D","F","A","E","Resultado del Control",null,null,"Probabilidad",null,"Impacto",null,"Riesgo Residual",null,"Estrategia de Administración del Riesgo","Acciones a Realizar",null,"Responsable de la acción"]
[null,null,null,{"$f":"IF(LEN(CRiesgos!$A9)>0,VLOOKUP(CRiesgos!$A9,ProcesosEA,2,FALSE),\"\")","v":""},null,null,null,null,null,null,{"$f":"IF(LEN(J9)<>0,VLOOKUP(J9,EJES,3,FALSE),\"\")","v":""},{"$f":"IF(LEN(J9)<>0,VLOOKUP(M9,temas,2,FALSE),\"\")","v":""},null,null,{"$f":"IF(LEN(N9)<>0,MID(N9,1,FIND(\" \",N9,1)),\"\")","v":""},null,{"$f":"IF(LEN(R9)>0,\"F.1\",\"\")","v":""},null,null,null,null,{"$f":"IF(LEN(U9)<>\"\",IF(U9=1,\"Muy baja\",IF(U9=2,\"Baja\",IF(U9=3,\"Moderada\",IF(U9=4,\"Alta\",IF(U9=5,\"Muy Alta\",\"\"))))),\"\")","v":""},null,{"$f":"IF(LEN(W9)=0,\"\",IF(W9=1,\"Muy Bajo\",IF(W9=2,\"Bajo\",IF(W9=3,\"Moderado\",IF(W9=4,\"Alto\",IF(W9=5,\"Muy Alto\",\"\"))))))","v":""},{"$f":"IF(OR(LEN(V9)=0,LEN(W9)=0),\"\",U9*W9)","v":""},{"$f":"IF(LEN(Y9)=0,\"\",IF(Y9<5,\" Bajo\",IF(AND(Y9>=5,Y9<10),\" Medio\",IF(AND(Y9>=10,Y9<15),\"Alto\",\"Muy Alto\"))))","v":""},null,null,{"$f":"IF(AND(AB9=\"SI\",LEN(AD9)>0),IF(LEN(AD9)>0,\"F.1.1\",\"\"),\"\")","v":""},null,null,null,null,null,null,{"$f":"IF(AB9=\"No\",\"Deficiente\",IF(AB9=\"\",\"\",IF(AI9=\"Si\",\"Eficiente\",IF(AI9=\"\",\"Falta valorar\",\"Deficiente\"))))","v":""},{"$f":"IF(AJ9<>\"\",IF(AJ9=\"Eficiente\",1,0),\"\")","v":""},{"$f":"IF(COUNT(AK9:AK20)=0,\"\",IF(AVERAGEIF(AK9:AK20,\"<>\"\"\",AK9:AK20)=1,\"Si\",\"No\"))","v":""},null,{"$f":"IF(LEN(AM9)=0,\"\",IF(AM9=1,\"Muy Baja\",IF(AM9=2,\"Baja\",IF(AM9=3,\"Moderada\",IF(AM9=4,\"Alta\",IF(AM9=5,\"Muy Alta\",\"Error\"))))))","v":""},null,{"$f":"IF(LEN(AO9)=0,\"\",IF(AO9=1,\"Es insignificante\",IF(AO9=2,\"Menor\",IF(AO9=3,\"Moderado\",IF(AO9=4,\"Crítico\",IF(AO9=5,\"Extremo\",\"Error\"))))))","v":""},{"$f":"IF(OR(LEN(AM9)=0,LEN(AO9)=0),\"\",AM9*AO9)","v":""},{"$f":"IF(LEN(AQ9)=0,\"\",IF(AQ9<5,\" Bajo\",IF(AND(AQ9>=5,AQ9<10),\" Moderado\",IF(AND(AQ9>=10,AQ9<15),\"Alto\",\"Muy Alto\"))))","v":""},{"$f":"IF(LEN(AR9)>0,VLOOKUP(AR9,TablaRiesgoResidual[],3,FALSE),\"\")","v":""},{"$f":"IF(LEN(AU9)>0,\"A1\",\"\")","v":""}]
[null,null,null,null,null,null,null,null,null,null,null,null,null,null,null,null,null,null,null,null,null,null,null,null,null,null,null,null,{"$f":"IF(AND(AB10=\"SI\",LEN(AD10)>0),IF(AND(LEN(AD10)>0,LEN(AC9)>0),CONCATENATE(\"F.1.\",RIGHT(AC9,1)+1,\"\"),\"\"),\"\")","v":""},null,null,null,null,null,null,{"$f":"IF(AB10=\"No\",\"Deficiente\",IF(AB10=\"\",\"\",IF(AI10=\"Si\",\"Eficiente\",IF(AI10=\"\",\"Falta valorar\",\"Deficiente\"))))","v":""},{"$f":"IF(AJ10<>\"\",IF(AJ10=\"Eficiente\",1,0),\"\")","v":""}]
[null,null,null,null,null,null,null,null,null,null,null,null,null,null,null,null,null,null,null,null,null,null,null,null,null,null,null,null,{"$f":"IF(AND(AB11=\"SI\",LEN(AD11)>0),IF(AND(LEN(AD11)>0,LEN(AC10)>0),CONCATENATE(\"F.1.\",RIGHT(AC10,1)+1,\"\"),\"\"),\"\")","v":""},null,null,null,null,null,null,"",{"$f":"IF(AJ11<>\"\",IF(AJ11=\"Eficiente\",1,0),\"\")","v":""}]
[null,null,null,null,null,null,null,null,null,null,null,null,null,null,null,null,{"$f":"IF(AND(LEN(R12)>0,LEN(Q9)>0),CONCATENATE(\"F.\",RIGHT(Q9,1)+1,\"\"),\"\")","v":""},null,null,null,null,null,null,null,null,null,null,null,{"$f":"IF(AND(AB12=\"SI\",LEN(AD12)>0),IF(LEN(AD12)>0,\"F.2.1\",\"\"),\"\")","v":""},null,null,null,null,null,null,{"$f":"IF(AB12=\"No\",\"Deficiente\",IF(AB12=\"\",\"\",IF(AI12=\"Si\",\"Eficiente\",IF(OAI12=\"\",\"Falta valorar\",\"Deficiente\"))))","v":""},{"$f":"IF(AJ12<>\"\",IF(AJ12=\"Eficiente\",1,0),\"\")","v":""},null,null,null,null,null,null,null,null,{"$f":"IF(LEN(AU12)>0,CONCATENATE(\"A\",RIGHT(AT9,1)+1,\"\"),\"\")","v":""}]
[null,null,null,null,null,null,null,null,null,null,null,null,null,null,null,null,null,null,null,null,null,null,null,null,null,null,null,null,{"$f":"IF(AND(AB13=\"SI\",LEN(AD13)>0),IF(AND(LEN(AD13)>0,LEN(AC12)>0),CONCATENATE(\"F.2.\",RIGHT(AC12,1)+1,\"\"),\"\"),\"\")","v":""},null,null,null,null,null,null,{"$f":"IF(AB13=\"No\",\"Deficiente\",IF(AB13=\"\",\"\",IF(AI13=\"Si\",\"Eficiente\",IF(OAI13=\"\",\"Falta valorar\",\"Deficiente\"))))","v":""},""]
[null,null,null,null,null,null,null,null,null,null,null,null,null,null,null,null,null,null,null,null,null,null,null,null,null,null,null,null,{"$f":"IF(AND(AB14=\"SI\",LEN(AD14)>0),IF(AND(LEN(AD14)>0,LEN(AC13)>0),CONCATENATE(\"F.2.\",RIGHT(AC13,1)+1,\"\"),\"\"),\"\")","v":""},null,null,null,null,null,null,"",""]
[null,null,null,null,null,null,null,null,null,null,null,null,null,null,null,null,{"$f":"IF(AND(LEN(R15)>0,LEN(Q12)>0),CONCATENATE(\"F.\",RIGHT(Q12,1)+1,\"\"),\"\")","v":""},null,null,null,null,null,null,null,null,null,null,null,{"$f":"IF(AND(AB15=\"SI\",LEN(AD15)>0),IF(LEN(AD15)>0,\"F.3.1\",\"\"),\"\")","v":""},null,null,null,null,null,null,"","",null,null,null,null,null,null,null,null,{"$f":"IF(LEN(AU15)>0,CONCATENATE(\"A\",RIGHT(AT12,1)+1,\"\"),\"\")","v":""}]
[null,null,null,null,null,null,null,null,null,null,null,null,null,null,null,null,null,null,null,null,null,null,null,null,null,null,null,null,{"$f":"IF(AND(AB16=\"SI\",LEN(AD16)>0),IF(AND(LEN(AD16)>0,LEN(AC15)>0),CONCATENATE(\"F.3.\",RIGHT(AC15,1)+1,\"\"),\"\"),\"\")","v":""},null,null,null,null,null,null,"",""]
[null,null,null,null,null,null,null,null,null,null,null,null,null,null,null,null,null,null,null,null,null,null,null,null,null,null,null,null,{"$f":"IF(AND(AB17=\"SI\",LEN(AD17)>0),IF(AND(LEN(AD17)>0,LEN(AC16)>0),CONCATENATE(\"F.3.\",RIGHT(AC16,1)+1,\"\"),\"\"),\"\")","v":""},null,null,null,null,null,null,"",""]
[null,null,null,null,null,null,null,null,null,null,null,null,null,null,null,null,{"$f":"IF(AND(LEN(R18)>0,LEN(Q15)>0),CONCATENATE(\"F.\",RIGHT(Q15,1)+1,\"\"),\"\")","v":""},null,null,null,null,null,null,null,null,null,null,null,{"$f":"IF(AND(AB18=\"SI\",LEN(AD18)>0),IF(LEN(AD18)>0,\"F.4.1\",\"\"),\"\")","v":""},null,null,null,null,null,null,{"$f":"IF(AB18=\"No\",\"Deficiente\",IF(AB18=\"\",\"\",IF(AI18=\"Si\",\"Eficiente\",IF(OAI18=\"\",\"Falta valorar\",\"Deficiente\"))))","v":""},"",null,null,null,null,null,null,null,null,{"$f":"IF(LEN(AU18)>0,CONCATENATE(\"A\",RIGHT(AT15,1)+1,\"\"),\"\")","v":""}]
[null,null,null,null,null,null,null,null,null,null,null,null,null,null,null,null,null,null,null,null,null,null,null,null,null,null,null,null,{"$f":"IF(AND(AB19=\"SI\",LEN(AD19)>0),IF(AND(LEN(AD19)>0,LEN(AC18)>0),CONCATENATE(\"F.4.\",RIGHT(AC18,1)+1,\"\"),\"\"),\"\")","v":""},null,null,null,null,null,null,{"$f":"IF(AB19=\"No\",\"Deficiente\",IF(AB19=\"\",\"\",IF(AI19=\"Si\",\"Eficiente\",IF(OAI19=\"\",\"Falta valorar\",\"Deficiente\"))))","v":""},""]
[null,null,null,null,null,null,null,null,null,null,null,null,null,null,null,null,null,null,null,null,null,null,null,null,null,null,null,null,{"$f":"IF(AND(AB20=\"SI\",LEN(AD20)>0),IF(AND(LEN(AD20)>0,LEN(AC19)>0),CONCATENATE(\"F.4.\",RIGHT(AC19,1)+1,\"\"),\"\"),\"\")","v":""},null,null,null,null,null,null,"",""]

{"sheet":"Ayudas","index":15,"n_rows":28,"n_cols":7,"rows_kept":28,"cut":false,"hidden":true,"merged":[[24,2,24,5],[25,2,25,5],[26,2,26,5],[27,2,27,5],[2,1,2,3],[13,1,13,3],[23,2,23,5],[22,1,22,6]]}
[]
[]
[null,"Tabla de Probabilidad de Ocurrencia"]
[null,"Nivel","Término","Descripción"]
[null,1,"Muy Baja","El riesgo puede ocurrir con una probabilidad del 20% o menos"]
[null,2,"Baja","El riesgo puede ocurrir con una probabilidad entre el 21% y el 40%"]
[null,3,"Moderada","El riesgo puede ocurrir con una probabilidad entre el 41% y el 60%"]
[null,4,"Alta","El riesgo puede ocurrir con una probabilidad entre el 61% y el 80%"]
[null,5,"Muy Alta","El riesgo puede ocurrir con una probabilidad del 81% o más"]
[]
[]
[]
[]
[null,"Tabla de Impacto"]
[null,"Nivel","Término","Descripción del Impacto"]
[null,1,"Muy Baja","Sólo causa incomodidad leve pero manejable, si el hecho llegara a presentarse degrada el proceso, producto o servicio. Tendría efectos mínimos a la Institución"]
[null,2,"Baja","Causa incomodidad que se debe atender pero no afecta la funcionalidad del proceso, producto o servicio. Tendría bajo impacto en la Institución."]
[null,3,"Moderado","Disminuye el desempeño del proceso, producto o servicios. Tendría medianas consecuencias o efectos en la Institución."]
[null,4,"Alta","Afecta el proceso, producto o servicio. Tendría fuertes consecuencias o efectos en la Institución."]
[null,5,"Muy Alta","Detiene el proceso, producto o servicio. Tendría desastrosas consecuencias en la Institución."]
[]
[]
[null,"Tabla de Valoración del Riesgo Residual"]
[null,"Nivel","Observación",null,null,null,"Decisión"]
[null,"Bajo","Las medidas o acciones establecidas son efectivas y están documentadas, se acepta el riesgo potencial con documentación de soporte. Esta estrategia deberá usarse sólo para riesgos de bajo impacto y baja probabilidad de ocurrencia.",null,null,null,"Aceptar/Asumir"]
[null,"Moderado","El riesgo ha sido identificado y representa una amenaza para el cumplimiento de los objetivos, proceso, productos o servicios, por lo que se deben establecer acciones dirigidas a disminuir la probabilidad de ocurrencia y el impacto.",null,null,null,"Mitigar/Reducir"]
[null,"Alto","Las medidas o acciones existentes no son efectivas, se deben fortalecer o compartir mediante la asignación de responsabilidades o contratación de seguros. Consiste en trasladar el riesgo mediante la responsabilidad de un tercero (tercerización especializada), la cual cuenta con las tres dimensiones siguientes:\n- Protección o cobertura: La acción que se realiza para reducir la posibilidad de una pérdida, obliga también a renunciar a la posibilidad de una ganancia.\n- Aseguramiento: Significa pagar una prima (el precio del seguro) para que en caso de tener pérdidas estas sean asumidas por la aseguradora.\n- Diversificación: Implica mantener cantidades similares de muchos activos riesgosos en lugar de concentrar toda la inversión en uno sólo producto.",null,null,null,"Transferir"]
[null,"Muy alto","Las medidas o acciones no existen, se deberá realizar atención inmediata para eliminar el factor o los factores que podrían provocar el riesgo.",null,null,null,"Evitar"]

{"sheet":"AyudaGeneral","index":16,"n_rows":23,"n_cols":37,"rows_kept":23,"cut":false,"hidden":true,"merged":[[0,1,0,2]]}
[null,"AYUDA GENERAL",null,null,null,"Ayuda del módulo de CATÁLOGOS",null,"Ayuda del módulo de PROCESOS",null,"Ayuda del módulo de PROCEDIMIENTOS",null,"Ayuda del módulo de  SUBPROCESOS",null,"Ayuda del módulo de  ACCIONES",null,"Ayuda del módulo de FACTOR DE RIESGO",null,"Ayuda del módulo de CLASIFICACIÓN DEL RIESGO",null,"Ayuda del módulo de CATÁLOGO DE RIESGOS",null,"Ayuda de ABRIR ARCHIVO",null,null,"Ayuda de mensaje al imprimir",null,"Ayuda de grabación de proceso",null,"Ayuda de grabación de suproceso",null,"Ayuda de grabación de suproceso nivel tres",null,"Ayuda de Factores",null,"Ayuda de Factores de Riesgo",null,"Ayuda de cateogiras"]
[null,"Buenos dias!!",null,null,null,"Buenas tardes!!",null,"Buenas tardes!!\n",null,"Buenos dias!!\n",null,"Buenas tardes!!\n",null,"Buenas tardes!!",null,"Buenas tardes!!\n",null,"Buenas tardes!!\n",null,"Buenas tardes!!\n",null,"Buenos dias!!\n",null,null,"No se puede imprimir el formato, debido a que no hay información para impresión",null,"Se grabó el proceso nivel 1 capturado",null,"Se grabó el proceso nivel 2 capturado",null,"Se grabó el proceso nivel 3 capturado",null,"Se grabó correctamente el factor de riesgo capturado",null,null,null,"Se grabó correctamente la categoría del riesgo capturada"]
[null,null,null,null,null,null,null,null,null,null,null,null,null,null,null,"Se grabó correctamente el riesgo registrado",null,null,null,null,null,null,null,null,null,null,null,null,"Tiene que seleccionar primero un proceso de nivel 1, para poder borrar un proceso nivel 2",null,"Tiene que seleccionar primero un proceso de nivel 1, segundo, seleccionar el proceso nivel 2 para poder borrar un proceso nivel 3",null,"El registro de grabo correctamente",null,"Seleccione el ID del factor de riesgo que desea eleminar. Por ejemplo: 1 o 2 o 3",null,"Seleccione el ID de la categoría del riesgo que desea eleminar. Por ejemplo: 1 o 2 o 3."]
[null,"El presente archivo esta compuesto por las siguientes opciones:",null,null,null,"En esta hoja le desplegará un submenú con las siguientes opciones:...",null,"En esta hoja usted podrá capturar los procesos, los cuales, evaluaran los riesgos pertinentes. En esta hoja se debe capturar:",null,"En la hoja capturará los procedimientos (nivel 3) documentados en el SGCUV, preferentemente, para el registro del mismo debe seguir los siguientes pasos:",null,"En la hoja se documentarán el (los) subproceso (s) (nivel 2) conforme están documentados en el SGCUV, preferentemente, para eso le solicitará:",null,"En esta hoja usted podrá capturar las acciones a seguir para el riesgo identificado. Es decir, después de haber realizado la primera evaluación del riesgo, donde estableció las acciones para mitigar los riesgos identificados y evaluados, se debe evaluar nuevamente el riesgo para determinar el riesgo residual. Las acciones más comunes son las de Evitarlo, Mitigarlo, Transferirlo, Aceptarlo.  ",null,"En esta hoja usted podrá capturar el (los) FACTORES DE RIESGO, el cual, Se refiere a una situación, estado, circunstancia (interna o externa) o cualquier elemento que pudieran dar lugar a que se incremente la probabilidad de que se materialice un Riesgo. Por ejemplo:",null,"En esta hoja usted podrá capturar la CLASIFICACIÓN DE RIESGO, es decir, de que tipo de riesgo es. Por ejemplo:",null,"En la hoja registrará los riesgos asociados a los procesos (nivel 1) documentados. Entendiéndose por RIESGO, a un evento adverso e incierto(interno o externo) que derivado de la combinación de la probabilidad de ocurrencia y el posible impacto, al materializarse pudiera impedir u obstaculizar el logro de los objetivos y metas Institucionales.",null,"donde usted realizará la valoración del riesgo de los procesos a documentar en el SGC-UV.",null,null,"Se le informa que la impresión del formato es en hoja oficio",null,"De los procesos Nivel 1 que aparecen, ¿Qué número (ID) de proceso quiere eliminar?. Por ejemplo: 1 o 2 o 3",null,"De los procesos de Nivel 2 que aparecen, ¿Qué número (ID) de proceso nivel 2 quiere eliminar?. Por Ejemplo: 1 o 2 o 3",null,"De los procesos de Nivel 3 que aparecen, ¿Qué número (ID) de proceso nivel 3 quiere eliminar? . Por Ejemplo: 1 o 2 o 3"]
[null,null,null,null,null,null,null,null,null,null,null,null,null,null,null,null,null,null,null,null,null,null,null,null,null,null,"No escribio ningún valor o escribio valores que no son números o cancelo la operación.",null,"No escribio ningún valor o escribio valores que no son números o cancelo la operación.",null,"No escribio ningún valor o escribio valores que no son números o cancelo la operación.",null,null,null,"No escribio ningún valor o escribio valores que no son números o cancelo la operación.",null,"No escribio ningún valor o escribio valores que no son números o cancelo la operación."]
[null,"INICIO : ","Libro principal con el cual ocultan todas que están activas.",null,null,"PROCESOS: Hoja donde podrá capturar los procesos a evaluar.",null,"NOMBRE DEL PROCESO (Nivel 1): Escribir el nombre del proceso, de preferencia como esta dado de alta en el SGCUV.",null,"UNO, debe seleccionar el proceso (nivel 1) previamente registrado,  al seleccionarlo automáticamente le desplegará la Entidad Académica o Dependencia responsable y los subprocesos correspondientes al mismo (conforme están documentados en el SGCUV). Si no se encuentra registrado el proceso, debe pasar al módulo de registro del mismo.",null,"UNO, seleccionar  el PROCESO (nivel 1) proceso y en automático le desplegará la dirección responsable de dicho proceso. Si no se encuentra el deseado, tendrá que pasar al módulo de PROCESOS y registrarlo.",null,"Para GRABAR la acción debe dar clic en el botón que dice GRABAR ACCIÓN, en automático graba el ID, que es un número consecutivo que se genera de manera automática.",null,"-       Reglamentación;",null,"-       Administrativo;",null,"La estructura para redactar un riesgo es:  un sustantivo (S)+ verbo participativo (VP) + un adjetivo, adverbio o complemento circunstancial negativo (ACC-1).",null,"Es importante que lea detalladamente la ayuda que se presenta en cada hoja.",null,null,null,null,null,null,"¿A proceso nivel 1 corresponde el proceso de nivel 2 que desea borrar?",null,"¿A proceso nivel 1 corresponde el proceso de nivel 2 que desea borrar?"]
[null,"CATALOGOS : ","Despliega un submenú mediante el cual podrá capturar los catálogos de procesos, subprocesos, procedimientos, acciones, disparadores, categorías de riesgo y riesgos POR PROCESO.",null,null,"SUPROCESOS: Hoja donde podrá capturar los subprocesos que integran un proceso determinado",null,"TIPO DE PROCESO: Debe seleccionar si el proceso a documentar es de tipo: directivo, académico, administrativo-financiero o de desarrollo Institucional (de acuerdo a como están establecidos en el SGCUV).",null,"DOS, debe seleccionar  EL SUBPROCESO (nivel 2) DE LISTA DESPLEGABLE el cual el procedimiento (nivel 3) va estar relacionado.  Si no se encuentra registrado el proceso, debe pasar al módulo de registro del mismo.",null,"DOS, escribir el NOMBRE DEL SUBPROCESO que desea registrar. Para GRABAR el subproceso debe dar clic en el botón que dice GRABAR SUBPROCESO. Después de haber grabado dicho subproceso, lo anexará a la tabla mostrada de subprocesos activos. ",null,null,null,"-       Fallas en la infraestructura tecnológica;",null,"-       Legal;",null,"Para el registro del riesgo, lo que debe hacer: PRIMERO, debe seleccionar un proceso previamente registrado. SEGUNDO, escribir un ID con el cuál identificará posteriormente el o los riesgo (s), si ya hubo un registro previo, en automático le desplegará dicho ID, por último, redactar el riesgo con forme a la estructura previamente mencionada."]
[null,"CAPTURA DE RIESGOS : ","Le permitirá capturar los riesgos y su valoración por proceso.",null,null,"PROCEDIMIENTOS: Hoja donde podrá capturar los procedimientos relacionados al subproceso - proceso determinado.",null,"ENTIDAD ACADÉMICA O DEPENDENCIA: Debe escribir la clave de la entidad académico o dependencia, a la cual, pertenece el proceso a documentar.  En automático, les desplegará el nombre y las iniciales de la misma.",null,"TRES, escribir el NOMBRE DEL PROCEDIMIENTO.  ",null,"NOTA: si el proceso seleccionado no cuenta con subprocesos, tendrá que registrar en el nombre del subproceso N/A",null,null,null,"-       Observaciones de auditoría;",null,"-       Financiero;",null,"Para grabar el riesgo debe dar clic en el botón que dice GRABAR RIESGO, y en automático lo desplegará en la tabla de los riesgos previamente registrados."]
[null,"VISUALIZAR DASHBOARD ","Le desplegará una hoja donde podrá visualizar gráficas del resultado de los riesgos valorados.",null,null,"ACCIONES Vs RIESGOS: Hoja donde podrá capturar las acciones a realizar para cada riesgo capturado, ejemplo: evitarlo, mitigarlo, etc.",null,"Al principio se despliegan los botones de Subprocesos (Nivel 2) y Procedimientos (Nivel 3), al darle clic en cualquiera de las dos opciones lo llevará a la respectiva hoja de captura.",null,"Para GRABAR el procedimiento debe dar clic en el botón que dice GRABAR PROCEDIMIENTO. Al ir documentado cada procedimiento, se incorporará al final de la tabla de procedimientos previamente registrados.",null,null,null,null,null,"-       Regulaciones;",null,"-       De Servicios;"]
[null,"MAPA DE CALOR DE RIESGOS : ","Le presentará una hoja con un mapa de calor de todos los riesgos evaluados.",null,null,"FACTOR DE RIESGO: Hoja donde podrá capturar los factores que podrían originar el riesgo a evaluar.",null,null,null,null,null,null,null,null,null,"-       Falta de recursos financieros;",null,"-       De TIC’s;"]
[null,null,null,null,null,"CATEGORÍA DEL RIESGO: Hoja donde podrá capturar las categorías relacionadas con el riesgo.",null,null,null,null,null,null,null,null,null,"-       Ataques cibernéticos;",null,"-       De Educación;"]
[null,null,null,null,null,"RIESGOS: Hoja donde podrá capturar el catálogo de riesgos relacionados a cada proceso.\"",null,null,null,null,null,null,null,null,null,"-       Emplazamiento a Huelga;",null,"-       Entre otros."]
[null,null,null,null,null,null,null,null,null,null,null,null,null,null,null,"-       Falta de pago de servicios de terceros;",null,"Para grabar la clasificación del riesgo debe dar clic en el botón que dice GRABAR CLASIFICACIÓN y en automático le asignará un ID, que es un número consecutivo generado de manera automática, al momento de grabar la clasificación del riesgo."]
[null,null,null,null,null,null,null,null,null,null,null,null,null,null,null,"-       Entre otros."]
[null,null,null,null,null,null,null,null,null,null,null,null,null,null,null,"Para grabar el disparador debe dar clic en el botón que dice GRABAR DISPARADOR y en automático le asignará un ID, que es un número consecutivo generado de manera automática, al momento de grabar el disparador."]
[]
[]
[null,null,null,null,null,null,null,null,null,null,null,null,null,null,null,"Se grabó correctamente la  riesgo capturado"]
[null,null,null,null,null,null,null,null,null,null,null,null,null,null,null,"De la lista desplegable, ¿Escriba el IdR del riesgo que desea borrar?"]
[]
[null,null,null,null,null,null,null,null,null,null,null,null,null,null,null,"No escribio ningún valor  o cancelo la operación."]
[]
[null,null,null,null,null,null,null,null,null,null,null,null,null,null,null,"Primero tiene que seleccionar el proceso del riesgo que desea borrar"]

{"sheet":"RiesgoResidual","index":17,"n_rows":5,"n_cols":4,"rows_kept":5,"cut":false,"hidden":true,"merged":[]}
[null,"Riesgo","Observación","Decisión"]
[null," Bajo","Las medidas o acciones establecidas son efectivas y están documentadas, se acepta el riesgo potencial con documentación de soporte. Esta estrategia deberá usarse sólo para riesgos de bajo impacto y baja probabilidad de ocurrencia.","Aceptar/Asumir"]
[null," Moderado","El riesgo ha sido identificado y representa una amenaza para el cumplimiento de los objetivos, proceso, productos o servicios, por lo que se deben establecer acciones dirigidas a disminuir la probabilidad de ocurrencia y el impacto.","Mitigar/Reducir"]
[null,"Alto","Las medidas o acciones existentes no son efectivas, se deben fortalecer o compartir mediante la asignación de responsabilidades o contratación de seguros. Consiste en trasladar el riesgo mediante la responsabilidad de un tercero (tercerización especializada), la cual cuenta con las tres dimensiones siguientes:\nØ  Protección o cobertura: La acción que se realiza para reducir la posibilidad de una pérdida, obliga también a renunciar a la posibilidad de una ganancia.\nØ  Aseguramiento: Significa pagar una prima (el precio del seguro) para que en caso de tener pérdidas estas sean asumidas por la aseguradora.\nØ  Diversificación: Implica mantener cantidades similares de muchos activos riesgosos en lugar de concentrar toda la inversión en uno sólo producto.","Transferir"]
[null,"Muy alto","Las medidas o acciones no existen, se deberá realizar atención inmediata para eliminar el factor o los factores que podrían provocar el riesgo.","Evitar"]

{"sheet":"Categorias","index":18,"n_rows":29,"n_cols":3,"rows_kept":29,"cut":false,"hidden":true,"merged":[[1,1,1,4],[2,1,2,4],[12,1,12,2],[6,1,6,3]]}
[]
[null,"Universidad Veracruzana"]
[null,"Sistema de Gestión de Calidad - Valoración de Riesgos"]
[]
[]
[]
[null,"Módulo de Clasificación del Riesgo"]
[]
[null,null,"Nombre"]
[]
[]
[]
[null,"Clasificación del Riesgo"]
[]
[null,"ID","Nombre"]
[null,1,"Estratégico"]
[null,2,"Administrativo"]
[null,3,"Legal"]
[null,4,"Financiero"]
[null,5,"Presupuestal"]
[null,6,"De Servicios"]
[null,7,"De Seguridad"]
[null,8,"De Obra Pública"]
[null,9,"De Recursos Humanos"]
[null,10,"De Imagen"]
[null,11,"De TIC's"]
[null,12,"De Salud"]
[null,13,"De Educación"]
[null,14,"De Corrupción"]

{"sheet":"Metricas","index":19,"n_rows":172,"n_cols":19,"rows_kept":172,"cut":false,"hidden":true,"merged":[]}
[]
["Eje I. Liderazgo académico","EJE",null,null,null,null,null,null,null,null,null,null,null,"Ejes",null,null,null,null,"Metas"]
["I.1 El 100% de la matrícula de licenciatura es atendida en programas educativos evaluables de calidad reconocida.","I. Liderazgo Académico","I.1","I.1 El 100% de la matrícula de licenciatura es atendida en programas educativos evaluables de calidad reconocida.",null,null,null,null,null,null,null,null,null,"I. Derechos humanos","E_I","E1_P",null,null,"1.1.1.1  Contar al 2024 con 10 documentos caodyuven a provover la igualdad y la equidad en los miembreos de la CU"]
["I.2 El 100% de la matrícula de posgrado es atendida en programas educativos evaluables de calidad reconocida por el CONACyT y/o otros organismos evaluadores.","I. Liderazgo Académico","I.2","I.2 El 100% de la matrícula de posgrado es atendida en programas educativos evaluables de calidad reconocida por el CONACyT y/o otros organismos evaluadores.",null,null,null,null,null,null,null,null,null,"II. Sustentabilidad","E_II","E2_P",null,null,"1.1.1.2  Atender cada año el 100% de las quejas presentadas por violencia, acoso u hostigamiento con el propósito de garantizar el derecho a una educación libre de violencia de las mujeres, hombres y personas pertenecientes a la comunidad LGBTTTIQ+"]
["I.3 El 100% de los planes de estudios son actualizados cada cinco años como tiempo máximo.","I. Liderazgo Académico","I.3","I.3 El 100% de los planes de estudios son actualizados cada cinco años como tiempo máximo.",null,null,null,null,null,null,null,null,null,"III. Docencia e Innovación Académica","E_III","E3_P",null,null,"1.1.1.3  Apartir del 2023 contar con un sistema institucional de información esta\u0002dística en materia de género y diversidad sexogenérica, con el propósito de tomar decisiones institucionales con perspectiva de género."]
["I.4 La eficiencia terminal se incrementa un punto porcentual al año.","I. Liderazgo Académico","I.4","I.4 La eficiencia terminal se incrementa un punto porcentual al año.",null,null,null,null,null,null,null,null,null,"IV. Investigación e Innovación","E_IV","E4_P",null,null,"1.2.1.1 Lograr al 2025 que el 100% de los programas educativos de licenciatura y posgrado promuevan el enfoque intercultural."]
["I.5 Cada área académica ofrecerá al menos dos programas educativos con doble titulación.","I. Liderazgo Académico","I.5","I.5 Cada área académica ofrecerá al menos dos programas educativos con doble titulación.",null,null,null,null,null,null,null,null,null,"V. Difusión de la Cultura y Extensión de los Servicios","E_V","E5_P",null,null,"1.2.1.2 Garantizar al 2025 la ampliación de la oferta educativa en cada una de las sedes de la Universidad Veracruzana Intercultural, mediante la creación de por lo menos un programa educativo de técnico, técnico superior universitario, licenciatura o posgrado, con excepción de Xalapa."]
["I.6 La matrícula actual que opera en modalidades no convencionales se incrementa un 30%.","I. Liderazgo Académico","I.6","I.6 La matrícula actual que opera en modalidades no convencionales se incrementa un 30%.",null,null,null,null,null,null,null,null,null,"VI. Administración y Gestión Institucional","E_VI","E6_P",null,null,"1.3.1.1 Diseñar e implementar a partir del 2023 un programa de apoyos específicos y acciones afirmativas para estudiantes que pertenezcan a grupos vulnerables."]
["I.7 El 100% de los PTC de nuevo ingreso cuenta con doctorado y cumplen con los requisitos que le permiten su incorporación al PRODEP, SNI o programa equivalente.","I. Liderazgo Académico","I.7","I.7 El 100% de los PTC de nuevo ingreso cuenta con doctorado y cumplen con los requisitos que le permiten su incorporación al PRODEP, SNI o programa equivalente.",null,null,null,null,null,null,null,null,null,null,null,null,null,null,"1.3.1.2 Lograr al 2022 la dignificación de las funciones de los trabajadores administrativos a través de la instauración de un programa de formación universal y continuo en materia de derechos humanos y de estímulos al desempeño, mejora e innovación administrativa."]
["I.8 Del total de PTC con posgrado, al menos el 90% lo tiene en el área disciplinar de su desempeño.","I. Liderazgo Académico","I.8","I.8 Del total de PTC con posgrado, al menos el 90% lo tiene en el área disciplinar de su desempeño.",null,null,null,null,null,null,null,null,null,null,null,null,null,null,"1.4.1.1 Desarrollar a partir del 2022 una campaña permanente de sensibilización sobre temas de derechos humanos, sustentabilidad, integridad académica y para la construcción de relaciones pacíficas y prevención del conflicto."]
["I.9 Del total de PTC con doctorado, al menos el 85% lo tiene en el área disciplinar de su desempeño.","I. Liderazgo Académico","I.9","I.9 Del total de PTC con doctorado, al menos el 85% lo tiene en el área disciplinar de su desempeño.",null,null,null,null,null,null,null,null,null,null,null,null,null,null,"1.4.1.2 Lograr al 2025 que el 100% del personal académico y administrativo, así como autoridades y funcionarios, haya recibido formación y capacitación en materia de derechos humanos, sustentabilidad, integridad académica, construcción de relaciones pacíficas, prevención de conflictos, el Modelo Educativo Institucional o el uso de las tecnologías de la información y de la comunicación en la docencia e investigación."]
["I.10 El número de cuerpos académicos consolidados se incrementa un 20%.","I. Liderazgo Académico","I.10","I.10 El número de cuerpos académicos consolidados se incrementa un 20%.",null,null,null,null,null,null,null,null,null,null,null,null,null,null,"1.4.1.3\tConseguir que al 2024 el Sistema Universitario de Gestión Integral del Riesgo se fortalezca con el desarrollo de una aplicación móvil para la prestación de servicios de emergencia a la comunidad universitaria y para el seguimiento descentralizado de incidentes."]
["I.11 Del total de PTC, el 62% cuenta con perfil deseable.","I. Liderazgo Académico","I.11","I.11 Del total de PTC, el 62% cuenta con perfil deseable.",null,null,null,null,null,null,null,null,null,null,null,null,null,null,"1.5.1.1 Diseñar e implementar a partir del 2022 un plan para el fortalecimiento y la descentralización de las actividades artísticas y culturales para la formación humanista e integral de los estudiantes."]
["I.12 Del total de PTC, el 24% pertenece al SNI/SNC.","I. Liderazgo Académico","I.12","I.12 Del total de PTC, el 24% pertenece al SNI/SNC.",null,null,null,null,null,null,null,null,null,null,null,null,null,null,"1.5.1.2   Incrementar al 2025 en 30% el catálogo de espacios y recintos para presentaciones, exposiciones y ensayos de los grupos artísticos universitarios, en todas las regiones universitarias, salvo en Xalapa, en colaboración con el gobierno estatal, los gobiernos municipales, el sector productivo y la sociedad civil organizada."]
["I.13 Cada investigador genera y registra en la plataforma institucional al menos un producto científico y/o tecnológico al año.","I. Liderazgo Académico","I.13","I.13 Cada investigador genera y registra en la plataforma institucional al menos un producto científico y/o tecnológico al año.",null,null,null,null,null,null,null,null,null,null,null,null,null,null,"1.5.1.3 Descentralizar al 2025 cuando menos dos programas educativos de licenciatura en el área de Artes a las regiones universitarias, con excepción de Xalapa, atendiendo las condiciones preexistentes y los criterios aplicables para la elaboración de nuevos programas educativos."]
["I.14 Las publicaciones de los académicos en revistas indexadas tienen un incremento del 10%.","I. Liderazgo Académico","I.14","I.14 Las publicaciones de los académicos en revistas indexadas tienen un incremento del 10%.",null,null,null,null,null,null,null,null,null,null,null,null,null,null,"1.6.1.1 Contar al 2025, en cada una de las regiones universitarias, con por lo menos una obra de expansión o diversificación de espacios deportivos."]
["I.15 El 100% de los investigadores realiza alguna actividad de docencia en el nivel licenciatura.","I. Liderazgo Académico","I.15","I.15 El 100% de los investigadores realiza alguna actividad de docencia en el nivel licenciatura.",null,null,null,null,null,null,null,null,null,null,null,null,null,null,"1.6.1.2 Incrementar en un 20%, al 2025, la matrícula de actividades deportivas conforme a la infraestructura instalada o de nueva creación."]
["I.16 Al menos el 20% de los estudiantes por programa educativo participa en proyectos de investigación.","I. Liderazgo Académico","I.16","I.16 Al menos el 20% de los estudiantes por programa educativo participa en proyectos de investigación.",null,null,null,null,null,null,null,null,null,null,null,null,null,null,"1.6.1.3 Incrementar, a partir del 2023, en un 5% los apoyos deportivos para representaciones institucionales."]
["I.17 Al menos el 30% de los académicos participa en proyectos de investigación y/o extensión de los servicios.","I. Liderazgo Académico","I.17","I.17 Al menos el 30% de los académicos participa en proyectos de investigación y/o extensión de los servicios.",null,null,null,null,null,null,null,null,null,null,null,null,null,null,"1.6.1.4 Contar a partir del 2023 con un diagnóstico institucional sobre el servicio médico universitario para que responda con calidad, transparencia y eficiencia al personal universitario."]
["II.1 El número de convenios de colaboración con los diferentes sectores en los ámbitos municipal, estatal, nacional e internacional se incrementa en un 10%.","II. Visibilidad e impacto social","II.1","II.1 El número de convenios de colaboración con los diferentes sectores en los ámbitos municipal, estatal, nacional e internacional se incrementa en un 10%.",null,null,null,null,null,null,null,null,null,null,null,null,null,null,"1.6.1.5  Lograr al 2025 el mejoramiento del 100% de las instalaciones deportivas a través del mantenimiento correctivo y preventivo que permita la diversificación de los programas deportivos, la actividad física y de salud integral de la comunidad universitaria."]
["II.2 A partir del primer semestre de 2019 se opera un catálogo actualizado de servicios especializados y de investigación básica.","II. Visibilidad e impacto social","II.2","II.2 A partir del primer semestre de 2019 se opera un catálogo actualizado de servicios especializados y de investigación básica.",null,null,null,null,null,null,null,null,null,null,null,null,null,null,"1.6.1.6 Diseñar e implementar al 2023 al menos cuatro propuestas de oferta educativa de educación continua, Área de Formación de Elección Libre y Programa de Formación de Académicos, en torno al desarrollo humano, la promoción de la salud mental y la prevención y detección oportuna de problemas adictivos, de infecciones de transmisión sexual y crónico degenerativas."]
["II.3 Se cuenta con un sistema de información actualizado que permite medir el impacto de la vinculación institucional.","II. Visibilidad e impacto social","II.3","II.3 Se cuenta con un sistema de información actualizado que permite medir el impacto de la vinculación institucional.",null,null,null,null,null,null,null,null,null,null,null,null,null,null,"1.6.1.7 Contar, a partir de 2022, con un plan institucional que contemple la promoción de la salud mental y emocional y la prevención de enfermedades a través de la educación para la salud."]
["II.4 La producción editorial institucional crece 5% anual.","II. Visibilidad e impacto social","II.4","II.4 La producción editorial institucional crece 5% anual.",null,null,null,null,null,null,null,null,null,null,null,null,null,null,"1.7.1.1 Lograr al 2025 un incremento del 20% en el nivel de participación de los integrantes de la comunidad universitaria en los órganos de gobierno y en procedimientos de consulta y participación para la toma de decisiones."]
["II.5 El 100% de los programas educativos participa en el programa institucional de seguimiento de egresados.","II. Visibilidad e impacto social","II.5","II.5 El 100% de los programas educativos participa en el programa institucional de seguimiento de egresados.",null,null,null,null,null,null,null,null,null,null,null,null,null,null,"1.8.1.1   Lograr al 2025 la emisión de cuatro convocatorias para la movilidad académica y estudiantil, nacional e internacional."]
["II.6 El 30% del total de entidades académicas y dependencias implementa anualmente al menos un programa de educación continua.","II. Visibilidad e impacto social","II.6","II.6 El 30% del total de entidades académicas y dependencias implementa anualmente al menos un programa de educación continua.",null,null,null,null,null,null,null,null,null,null,null,null,null,null,"1.8.1.2 Promover al 2025 la creación y registro de al menos 10 experiencias educativas o cursos en idiomas originarios o extranjeros."]
["II.7 Se generan al menos 10 nuevas solicitudes de registro de propiedad intelectual (patentes, derechos de autor y marcas).","II. Visibilidad e impacto social","II.7","II.7 Se generan al menos 10 nuevas solicitudes de registro de propiedad intelectual (patentes, derechos de autor y marcas).",null,null,null,null,null,null,null,null,null,null,null,null,null,null,"1.8.1.3 Lograr al 2025 que al menos el 8% de los programas educativos de licenciatura y posgrado cuenten con el reconocimiento de calidad internacional."]
["III.1 Se cuenta con un sistema único de información actualizado para la toma de decisiones académicas y de gestión.","III. Gestión y gobierno","III.1","III.1 Se cuenta con un sistema único de información actualizado para la toma de decisiones académicas y de gestión.",null,null,null,null,null,null,null,null,null,null,null,null,null,null,"2.1.1.1   Lograr al 2025 que el 100% de los programas educativos de licenciatura y posgrado incluyan en su plan de estudios el enfoque de sustentabilidad."]
["III.2 Se cuenta con un sistema de gestión de calidad certificado, que integra los procesos estratégicos institucionales.","III. Gestión y gobierno","III.2","III.2 Se cuenta con un sistema de gestión de calidad certificado, que integra los procesos estratégicos institucionales.",null,null,null,null,null,null,null,null,null,null,null,null,null,null,"2.1.1.2 Contar al 2025 con al menos 20 programas de licenciatura y posgrado con una orientación que permita a sus egresados abordar los complejos retos socioambientales y de sustentabilidad a los que la sociedad se enfrentará en las próximas décadas, especialmente en las regiones con mayor riesgo y vulnerabilidad del estado."]
["III.3 El 100% de la legislación y normatividad universitaria es actualizada y articulada.","III. Gestión y gobierno","III.3","III.3 El 100% de la legislación y normatividad universitaria es actualizada y articulada.",null,null,null,null,null,null,null,null,null,null,null,null,null,null,"2.1.1.3   Crear en el 2022 un programa de incentivos para impulsar proyectos de investigación y programas de posgrado, vinculados a la vulnerabilidad y el riesgo generados por la crisis climática."]
["III.4 Se cuenta con la acreditación externa de las funciones institucionales de gestión.","III. Gestión y gobierno","III.4","III.4 Se cuenta con la acreditación externa de las funciones institucionales de gestión.",null,null,null,null,null,null,null,null,null,null,null,null,null,null,"2.2.1.1\tContar a partir del 2022 con un Plan de Acción Climática Institucional."]
["III.5 Se obtiene al menos el 10% de recursos propios anuales a través de la extensión y comercialización de servicios y productos.","III. Gestión y gobierno","III.5","III.5 Se obtiene al menos el 10% de recursos propios anuales a través de la extensión y comercialización de servicios y productos.",null,null,null,null,null,null,null,null,null,null,null,null,null,null,"2.3.1.1  Atender anualmente, a partir del 2022, el 100% de solicitudes de participación en el desarrollo y la evaluación de las políticas públicas relacionadas con el patrimonio biocultural y la conservación de la agrobiodiversidad."]
["III.6 Al menos el 25% de los convenios formalizados generan recursos financieros, independientemente de los correspondientes al otorgamiento de subsidios ordinarios y fondos extraordinarios de origen gubernamental.","III. Gestión y gobierno","III.6","III.6 Al menos el 25% de los convenios formalizados generan recursos financieros, independientemente de los correspondientes al otorgamiento de subsidios ordinarios y fondos extraordinarios de origen gubernamental.",null,null,null,null,null,null,null,null,null,null,null,null,null,null,"2.4.1.1 Incrementar al 2025 en 20% el número de comedores, cafeterías y expendios de comida universitarios que respondan a un patrón de consumo saludable, responsable y sustentable."]
["III.7 Se cuenta con un programa institucional de mantenimiento de la planta física y tecnológica.","III. Gestión y gobierno","III.7","III.7 Se cuenta con un programa institucional de mantenimiento de la planta física y tecnológica.",null,null,null,null,null,null,null,null,null,null,null,null,null,null,"2.4.1.2   Adecuar al 2025 un 5% de las áreas verdes universitarias con especies vegetales de las biorregiones, aptas para el estudio, la convivencia, el descanso, la cultura y el deporte, de alto valor ecológico y de bajo costo en su mantenimiento."]
[null,null,null,null,null,null,null,null,null,null,null,null,null,null,null,null,null,null,"2.4.1.3 Incluir al 2025 en el 100% de los programas educativos de licenciatura y posgrado, contenidos que hagan referencia a la necesidad de cuestionar críticamente y modificar el estilo de vida dominante y los patrones de consumo para el mejoramiento de la calidad de vida."]
[null,null,null,null,null,null,null,null,null,null,null,null,null,null,null,null,null,null,"2.5.1.1   Incorporar a partir del 2022 acciones sobre temas de sustentabilidad en el 100% de los planes de desarrollo de las entidades académicas y dependencias universitarias"]
[null,null,null,null,null,null,null,null,null,null,null,null,null,null,null,null,null,null,"2.5.1.2 Contar al 2023 con la actualización del Reglamento para la Gestión de la Sustentabilidad, a fin de una mayor pertinencia y articulación con los demás instrumentos de la normativa universitaria."]
[null,null,null,null,null,null,null,null,null,null,null,null,null,null,null,null,null,null,"2.6.1.1 Atender anualmente a partir del 2022 el 100% de las solicitudes de participación en los procesos y espacios intersectoriales para el diseño y la evaluación de políticas públicas municipales y estatales relacionadas con problemas socioambientales y prioridades regionales y estatales de sustentabilidad"]
[null,null,null,null,null,null,null,null,null,null,null,null,null,null,null,null,null,null,"2.6.1.2 Contar a partir de 2022 con un programa institucional que impulse la cultura de compra responsable, considerando la disminución del impacto ambiental y el fortalecimiento de la economía regional bajo un esquema de economía social y solidaria."]
[null,null,null,null,null,null,null,null,null,null,null,null,null,null,null,null,null,null,"3.1.1.1 Incrementar al 2025 un 12% de la matrícula de técnico, técnico superior universitario, licenciatura y posgrado a partir de la aplicación de diversas estrategias institucionales en coordinación con autoridades educativas estatales y federales. "]
[null,null,null,null,null,null,null,null,null,null,null,null,null,null,null,null,null,null,"3.1.1.2 Incrementar al 2025 el 20% de la matrícula en educación formal de estudiantes pertenecientes a grupos vulnerables específicos (personas con discapacidad, adultos mayores, madres solteras, poblaciones originarias, afrodescendientes y comunidades equiparables, entre otros) en diversos programas educativos y con apoyo de cursos de nivelación para asegurar una trayectoria escolar exitosa."]
[null,null,null,null,null,null,null,null,null,null,null,null,null,null,null,null,null,null,"3.1.1.3 Incrementar en un 20% al 2025 la matrícula en las áreas de artes y deportes, a través de la ampliación y diversificación de los programas de formación, en todas las regiones universitarias."]
[null,null,null,null,null,null,null,null,null,null,null,null,null,null,null,null,null,null,"3.1.1.4 Lograr que al 2025 el 100% de las entidades académicas que imparten programas educativos de licenciatura; implementen al menos un evento de educación continua al año, basado en necesidades detectadas, con pertinencia e impacto en el desarrollo social y económico, y que generen recursos propios para la Institución."]
[null,null,null,null,null,null,null,null,null,null,null,null,null,null,null,null,null,null,"3.1.1.5 Lograr a partir del 2022 que el 100% de los programas educativos formen parte del sistema institucional de seguimiento de egresados y que este cuente con información actualizada sobre la situación laboral, percepciones económicas, necesidades de educación continua, etc."]
[null,null,null,null,null,null,null,null,null,null,null,null,null,null,null,null,null,null,"3.2.1.1 Contar a partir del 2023 con el 100% de los académicos en funciones de docencia capacitados respecto al aprendizaje mediado por las tecnologías de la información, comunicación, conocimiento y aprendizaje digitales. "]
[null,null,null,null,null,null,null,null,null,null,null,null,null,null,null,null,null,null,"3.2.1.2 Lograr al 2025 que el 100% de los programas educativos hagan uso de modalidades no convencionales de educación superior."]
[null,null,null,null,null,null,null,null,null,null,null,null,null,null,null,null,null,null,"3.3.1.1  Lograr al 2025 que el 100% de la matrícula de licenciatura se encuentre inscrita en programas educativos evaluables con calidad reconocida. "]
[null,null,null,null,null,null,null,null,null,null,null,null,null,null,null,null,null,null,"3.3.1.2 Lograr al 2025 que el 100% de los programas educativos de licenciatura cuenten con mecanismos de integración de los estudiantes en actividades de investigación, gestión, vinculación, emprendimiento o innovación"]
[null,null,null,null,null,null,null,null,null,null,null,null,null,null,null,null,null,null,"3.3.1.3 Lograr al 2025 que el 100% de los estudiantes cuenten con tutoría académica para el tránsito de estos por los programas de estudio de licenciatura y posgrado."]
[null,null,null,null,null,null,null,null,null,null,null,null,null,null,null,null,null,null,"3.4.1.1 A partir de 2022 diseñar un programa que favorezca la inclusión y las prácticas interculturales en la Institución."]
[null,null,null,null,null,null,null,null,null,null,null,null,null,null,null,null,null,null,"3.5.1.1 Actualizar y rediseñar al 2023 el Modelo Educativo Institucional con el fin de mantener y fortalecer su pertinencia y calidad, las cuales se acreditan mediante procesos de evaluación en periodos de cinco años."]
[null,null,null,null,null,null,null,null,null,null,null,null,null,null,null,null,null,null,"3.6.1.1   Incorporar a partir del 2022 el 100% de académicos de nuevo ingreso con doctorado afín al programa educativo al que quieren ingresar y con perfil que les permita su incorporación en el corto o mediano plazo al SNI/SNC o programas de reconocimiento académico equivalentes."]
[null,null,null,null,null,null,null,null,null,null,null,null,null,null,null,null,null,null,"3.6.1.2 Contar, a partir de 2023, con una normatividad universitaria que incluya las modificaciones normativas y de gestión necesarias para que los mecanismos de selección académica y de evaluación de desempeño académico, docente y tutorial se den bajo los criterios de derechos humanos, sustentabilidad, igualdad, equidad, economía procesal, eficacia, eficiencia, transparencia, confianza, responsabilidad académica, y que tengan como resultado la mejora en la calidad educativa que ofrece la Universidad."]
[null,null,null,null,null,null,null,null,null,null,null,null,null,null,null,null,null,null,"4.1.1.1 Contar al 2022 con un programa estratégico que fortalezca la investigación y el posgrado, atienda los desequilibrios entre las regiones universitarias, incentive investigaciones inter, multi y transdisciplinarias de calidad, enfocadas a la solución de problemas prioritariamente locales y regionales considerando los derechos humanos, los problemas ambientales en Veracruz y el desarrollo científico. "]
[null,null,null,null,null,null,null,null,null,null,null,null,null,null,null,null,null,null,"4.2.1.1 Emitir a partir de 2022 una convocatoria anual de financiamiento a la investigación, que incida en la construcción y el fortalecimiento de los derechos humanos en el estado, así como en la prevención y solución de problemas ambientales y de cambio climático. "]
[null,null,null,"Programa Estrategico",null,null,null,null,null,null,null,null,null,null,null,null,null,null,"4.3.1.1 Contar al 2025 con el 100% de participación de las áreas académicas en el Programa de Prestación de Servicios Universitarios, ofreciendo servicios que contribuyan a la obtención de recursos extraordinarios. "]
[null,null,"E1","1.1 Equidad de género y diversidad sexual",{"$f":"CONCATENATE(C56,\"_\",LEFT(D56,1),\"_\",MID(D56,3,1))","v":"E1_1_1"},null,"I. Liderazgo Académico",null,null,null,null,null,null,null,null,null,null,null,"4.3.1.2 Comercializar dos patentes universitarias al 2025, a través de la Oficina de Transferencia de Tecnología, para la obtención de recursos extraordinarios. "]
[null,null,"E1","1.2 Interculturalidad de poblaciones originarias, afrodescendientes y comunidades equiparables",{"$f":"CONCATENATE(C57,\"_\",LEFT(D57,1),\"_\",MID(D57,3,1))","v":"E1_1_2"},null,"II. Visibilidad e impacto social",null,null,null,null,null,null,null,null,null,null,null,"4.4.1.1 Producir al 2023 una serie sobre los orígenes, el desarrollo y las contribuciones de la ciencia veracruzana al desarrollo de la región y el país, la cual será distribuida en la red de televisoras universitarias del país y el extranjero."]
[null,null,"E1","1.3 Igualdad sustantiva, inclusión y no discriminación","E1_1_3",null,"III. Gestión y gobierno",null,null,null,null,null,null,null,null,null,null,null,"4.4.1.2 Realizar al 2025 al menos 48 spots de difusión de los resultados de la investigación científica llevada a cabo por académicos de la Universidad. "]
[null,null,"E1","1.4 Cultura de la paz y de la no violencia","E1_1_4",null,null,null,null,null,null,null,null,null,null,null,null,null,"4.4.1.3  Publicar a partir de 2023 una revista semestral de corte multidisciplinario."]
[null,null,"E1","1.5 Arte y creatividad","E1_1_5",null,null,null,null,null,null,null,null,null,null,null,null,null,"5.1.1.1 Contar al 2022 con un programa de difusión de la cultura que fomente los derechos humanos, la sustentabilidad y una visión crítica y humanista tanto en la comunidad universitaria como en la sociedad en general"]
[null,null,"E1","1.6 Salud y deporte","E1_1_6",null,null,null,null,null,null,null,null,null,null,null,null,null,"5.2.1.1 A partir del 2023, contar con la Dirección General de Vinculación fortalecida, a través de una restructuración enfocada en mejorar su operatividad y relación con las áreas académicas y las vice-rectorías.  "]
[null,null,"E1","1.7 Participación","E1_1_7",null,null,null,null,null,null,null,null,null,null,null,null,null,"5.3.1.1 A partir de 2023 contar con un programa de vinculación que atienda a los campos emergentes en que la UV deba participar y que determine la viabilidad de la extensión de los servicios a los sectores productivo, gubernamental y social del estado y la región. "]
[null,null,"E1","1.8 Internacionalización solidaria","E1_1_8",null,null,null,null,null,null,null,null,null,null,null,null,null,"5.4.1.1 A partir del 2022 contar con un sistema institucional de difusión de convocatorias de proyectos académicos internacionales. "]
[null,null,"E2","2.1 Riesgo y vulnerabilidad","E2_2_1",null,null,null,null,null,null,null,null,null,null,null,null,null,"5.4.1.2 Promover a partir del 2022 la cultura veracruzana y la extensión de los servicios universitarios en el ámbito internacional, a través de la implementación de un sitio web de venta de productos y servicios universitarios."]
[null,null,"E2","2.2 Crisis climática y resiliencia social","E2_2_2",null,null,null,null,null,null,null,null,null,null,null,null,null,"6.1.1.1   Contar al 2022 con un proyecto de Ley Orgánica armonizada con la Ley General de Educación Superior y con el marco constitucional y convencional aplicable al derecho a la educación superior, para presentarse ante el Congreso del Estado de Veracruz. "]
[null,null,"E2","2.3 Biodiversidad, integridad ecosistémica y diversidad cultural","E2_2_3",null,null,null,null,null,null,null,null,null,null,null,null,null,"6.1.1.2 Evaluar al 2023 el desempeño y mejorar los servicios prestados por seis dependencias universitarias encargadas de la protección y garantía de derechos específicos de la comunidad universitaria y de la sustentabilidad (DDU, Cutai, CUE, Cendhiu, Cosustenta y CUO). "]
[null,null,"E2","2.4 Estilo de vida y patrones de consumo","E2_2_4",null,null,null,null,null,null,null,null,null,null,null,null,null,"6.2.1.1 Distribuir equitativamente a partir del 2023, bajo los principios de eficacia, eficiencia, ahorro y austeridad, el presupuesto universitario entre entidades académicas y dependencias, atendiendo a sus necesidades y a la contribución que realicen respecto del logro de metas institucionales. "]
[null,null,"E2","2.5 Calidad ambiental y gestión del campus","E2_2_5",null,null,null,null,null,null,null,null,null,null,null,null,null,"6.2.1.2 Alcanzar al 2024 el 4% de recursos extraordinarios, conforme al presupuesto estatal 2022, para el desarrollo de programas estratégicos. "]
[null,null,"E2","2.6 Integración de políticas y enfoque regional y local","E2_2_6",null,null,null,null,null,null,null,null,null,null,null,null,null,"6.2.1.3 Alcanzar al 2025 el 3% de recursos propios conforme al presupuesto ordinario anual. "]
[null,null,"E3","3.1 Cobertura incluyente y de calidad","E3_3_1",null,null,null,null,null,null,null,null,null,null,null,null,null,"6.3.1.1 Contar al 2023 con un programa estratégico para la descentralización escalonada de las funciones sustantivas y adjetivas, así como de trámites académico-administrativos en las regiones universitarias"]
[null,null,"E3","3.2 Educación en línea","E3_3_2",null,null,null,null,null,null,null,null,null,null,null,null,null,"6.4.1.1 Contar a partir del 2022 con un sistema de calidad certificado vigente para la mejora continua, en el que se integren los procesos estratégicos de la gestión universitaria. "]
[null,null,"E3","3.3 Formación integral del estudiante","E3_3_3",null,null,null,null,null,null,null,null,null,null,null,null,null,"6.4.1.2 A partir del 2022 fomentar a través de un programa específico la transparencia y rendición de cuentas, incorporando información sobre los ingresos de la UV y su personal, derivados de las acciones de vinculación y de extensión de los servicios."]
[null,null,"E3","3.4 Educación intercultural","E3_3_4",null,null,null,null,null,null,null,null,null,null,null,null,null,"6.4.1.3 A partir del 2022 realizar una evaluación anual del Programa de trabajo de la administración rectoral vigente para asegurar su conveniencia, adecuación y eficacia."]
[null,null,"E3","3.5 Modelo educativo","E3_3_5",null,null,null,null,null,null,null,null,null,null,null,null,null,"6.5.1.1 A partir del 2022 contar con un sistema único de información que integre los subsistemas de la gestión universitaria y que permita la organización de la información y la toma de decisiones académicas y de gestión basado en resultados. "]
[null,null,"E3","3.6 Personal académico","E3_3_6",null,null,null,null,null,null,null,null,null,null,null,null,null,"6.5.1.2 A partir del 2022 contar con un plan estratégico de proyectos, construcciones y mantenimiento de la infraestructura física, en atención a las necesidades de la comunidad universitaria y con enfoque de derechos humanos. "]
[null,null,"E4","4.1 Investigación y posgrado","E4_4_1"]
[null,null,"E4","4.2 Investigación con impacto social","E4_4_2"]
[null,null,"E4","4.3 Transferencia tecnológica y del conocimiento","E4_4_3"]
[null,null,"E4","4.4 Divulgación de la ciencia","E4_4_4"]
[null,null,"E5","5.1 Difusión de la cultura","E5_5_1"]
[null,null,"E5","5.2 Vinculación universitaria","E5_5_2"]
[null,null,"E5","5.3 Extensión de los servicios","E5_5_3"]
[null,null,"E5","5.4 Internacionalización","E5_5_4"]
[null,null,"E6","6.1 Autonomía y gobierno universitario","E6_6_1"]
[null,null,"E6","6.2 Financiamiento y funciones sustantivas universitarias","E6_6_2"]
[null,null,"E6","6.3 Descentralización universitaria","E6_6_3"]
[null,null,"E6","6.4 Transparencia y rendición de cuentas","E6_6_4"]
[null,null,"E6","6.5 Infraestructura física y tecnológica","E6_6_5"]
[]
[]
[]
[]
[null,null,null,"Estrategia"]
[null,null,"EPE1","•        Mejorar el sistema institucional de tutorías académicas. "]
[null,null,"EPE1","•        Ampliar los programas de seguimiento a las trayectorias escolares y de apoyo para evitar la deserción o el rezago académico. "]
[null,null,"EPE1","•        Promover y mejorar la atención a la salud estudiantil; el deporte como actividad formativa; la atención especializada; y el desarrollo de programas de apoyo para la inclusión de estudiantes con capacidades diferentes, entre otros. "]
[null,null,"EPE1","•        Fortalecer los programas transversales de formación en valores y en la responsabilidad social de los universitarios. "]
[null,null,"EPE1","•        Ampliar y fortalecer el desarrollo institucional de programas que atiendan la transición de los estudiantes del espacio escolar al mundo laboral. "]
[null,null,"EPE2","•        Implementar un programa permanente de desarrollo de las competencias pedagógicas del personal académico de la institución, enfocando asimismo la capacitación de los docentes como tutores académicos y la habilitación creciente del profesorado para incorporar a su práctica docente el uso de las nuevas plataformas tecnológicas para el aprendizaje de una manera más amplia e innovadora. "]
[null,null,"EP2","•        Detectar, comunicar y reconocer periódicamente las mejores prácticas docentes por áreas de conocimiento. "]
[null,null,"EP3","•        Implementar la mejora continua y el aseguramiento de la calidad de los programas educativos de la UV (en todos sus niveles: técnico, licenciatura y posgrado), así como su reconocimiento nacional e internacional. "]
[null,null,"EP3","•        Establecer acciones y formas organizacionales para mantener y consolidar el aseguramiento de la calidad de los programas educativos.",null,null,null,null,null,null,null,"Ejes"]
[null,null,"EP3","•        Transformar la administración, el funcionamiento y la operación del Modelo Educativo Institucional en función de los resultados de su evaluación. ",null,null,null,null,null,null,null,"E1","Liderazgo Académico"]
[null,null,"EP3","•        Promover la innovación educativa aplicando nuevas tecnologías para la mejora de los procesos de enseñanza-aprendizaje. ",null,null,null,null,null,null,null,"E2"]
[null,null,"EP3","•        Consolidar la flexibilización y la actualización permanente de planes y programas de estudio en sus diversas modalidades y niveles, frente al avance del conocimiento y la tecnología. ",null,null,null,null,null,null,null,"E3"]
[null,null,"EP3","•        Reforzar y ampliar la movilidad estudiantil en beneficio de su formación académica, profesional y humana. "]
[null,null,"EP3","•        Avanzar en el sistema de reconocimiento y transferencia de créditos al interior de la institución y con otras instituciones en función de la comparabilidad del contenido entre programas educativos. "]
[null,null,"EPE4","•        Convocar a la participación de los académicos de cada región universitaria para la presentación de propuestas curriculares innovadoras factibles que permitan el rediseño, la diversificación o la ampliación de la oferta educativa en respuesta a las necesidades regionales y estatales de formación de profesionales en nuevas áreas de conocimiento. Esta actividad se alimentará de procesos de consulta pública que convocarán a los diversos sectores sociales para aportar ideas y propuestas de necesidades a cubrir en el ramo de las competencias profesionales requeridas por la economía y la sociedad veracruzana. "]
[null,null,"EPE4","•        Crear comisiones de académicos especialistas para evaluar la pertinencia social de las propuestas y los diseños curriculares, los cuales, una vez valorados positivamente, serán turnados a las áreas administrativas y financieras de la Universidad para evaluar su factibilidad técnica y financiera, así como para determinar los recursos —humanos, equipamiento, infraestructura física, etc.— requeridos para su posible implementación. En la búsqueda de recursos financieros frescos para soportar y poner en marcha la oferta de nuevos programas educativos será imprescindible la gestión y la negociación frente a las instancias federales, estatales y municipales, así como la convocatoria para la participación y contribución de la sociedad civil y de los sectores productivos de las diversas regiones de Veracruz. "]
[null,null,"EPE5","Investigación como sustento del aprendizaje formativo "]
[null,null,"EPE5","•        Fortalecer y diversificar la relación investigación-docencia como acción formadora del aprendizaje de los estudiantes, mediante acciones: "]
[null,null,"EPE5","•        Alentar una mayor incorporación de los estudiantes a los proyectos de investigación desarrollados en las facultades, institutos y centros de investigación. "]
[null,null,"EPE5","•        Impulsar el aprendizaje investigativo en el marco del Modelo Educativo Institucional para generar conocimiento y desarrollar habilidades para aprender en el hacer. "]
[null,null,"EPE5","•        Generar ambientes de aprendizaje investigativo entre alumnos para que desarrollen propuestas propias, presenten resultados y se fomente la creatividad. "]
[null,null,"EPE5","Fomento al emprendimiento "]
[null,null,"EPE5","•        Promover y desarrollar la actitud, las habilidades y la capacidad emprendedora de la comunidad universitaria, brindando a los estudiantes y académicos estrategias, recursos metodológicos y vías de acción para la generación de proyectos de desarrollo científico, tecnológico, productivo, social o cultural, con particular atención a la incubación de proyectos que favorezcan el autoempleo de los egresados. "]
[null,null,"EPE5","•        Ampliar las oportunidades de inserción laboral de los estudiantes y egresados universitarios a partir de la vinculación con los sectores productivo y empresarial. "]
[null,null,"EPE5","•        Fomentar el emprendimiento entre los miembros del personal académico será el eje dinamizador para la generación de proyectos científicos, tecnológicos, productivos o sociales, o para la generación de investigaciones innovadoras y pertinentes orientadas tanto a la ciencia básica como a la resolución de problemáticas concretas que enfrentan los diversos sectores sociales y productivos del estado de Veracruz. "]
[null,null,"EPE5","Fortalecimiento de la investigación y de los cuerpos académicos "]
[null,null,"EPE5","•        Impulsar el reagrupamiento, el desarrollo y consolidación de los cuerpos académicos y sus líneas de generación y aplicación del conocimiento como factores del desarrollo de la calidad académica de los programas educativos y de la investigación en las regiones universitarias. "]
[null,null,"EPE5","•        Potenciar la integración transdisciplinar de la docencia, la investigación y la vinculación, mediante la posible conformación de redes regionales integradas por miembros de los cuerpos académicos de la UV, con el propósito de enfocarse a la generación de conocimientos con impacto social y económico en temas o problemas específicos del desarrollo estatal o regional. Se buscará que dichas redes regionales también tengan la posibilidad de conformarse en consorcios, agrupándose con otras instituciones de educación superior interesadas en las mismas problemáticas en la región sur sureste del país. "]
[null,null,"EPE5","Investigación, innovación y desarrollo tecnológico"]
[null,null,"EPE5","•        Fomentar la innovación y el desarrollo tecnológico orientados a la solución de problemas sociales y económicos, así como a la generación de proyectos innovadores cuyos resultados puedan ser registrados, patentados y tecnológicamente transferidos a la sociedad y los sectores económicos del estado de Veracruz y del país. "]
[null,null,"EPE5","•        Identificar líneas de investigación relacionadas con las prioridades sociales y productivas para impulsar la organización de redes de ciencia, tecnología y conocimiento social en correlación con las dinámicas nacionales, estatales y regionales. "]
[null,null,"EPE5","•        Ampliar la frontera del conocimiento impulsando líneas de generación y aplicación del conocimiento relacionadas con energía, recursos pesqueros, medio ambiente y manejo sustentable, agrosistemas, biotecnología, migración y sociedad, desarrollo metropolitano y rural, educación, nanotecnología, salud género y derechos humanos, seguridad alimentaria, recursos hídricos, entre otras. "]
[null,null,"EPE5","•        Formar redes temáticas en el marco de la política impulsada por el CONACYT. "]
[null,null,"EPE5","•        Impulsar la producción de conocimiento con impacto social y económico que se refleje en la generación de prototipos, modelos de utilidad, patentes, etc., que coadyuven a la procuración de fondos extraordinarios para la propia investigación y a la comunicación de resultados con reconocimiento nacional e internacional. "]
[null,null,"EPE5","•        Establecer alianzas entre la Universidad y los productores, empresarios y el sector público federal, estatal o municipal para el desarrollo de proyectos. "]
[null,null,"EPE5","Investigación y transferencia social de conocimientos y tecnologías "]
[null,null,"EPE5","•        Fortalecer, sistematizar, desarrollar y consolidar los procesos de transferencia de tecnología, conocimientos y extensión de servicios que realiza la Universidad Veracruzana para lograr el aprovechamiento de sus capacidades científicas y tecnológicas, orientándolas hacia el desarrollo de proyectos de I+D+i (Investigación + Desarrollo + innovación) y la venta de servicios para la transformación social y el desarrollo sustentable."]
[null,null,"EPE5","•        Impulsar la integración de grupos de investigación en torno a problemas prioritarios de interés nacional y regional. "]
[null,null,"EPE5","•        Promover el desarrollo y el fortalecimiento de redes de investigación. "]
[null,null,"EPE5","•        Alentar la investigación transversal para fomentar la interrelación entre diferentes campos del conocimiento con miras a investigar problemas prioritarios y estructurar proyectos de investigación transdisciplinar. "]
[null,null,"EPE5","•        Estimular la cultura de la vinculación y transferencia de conocimientos, desarrollo tecnológico e innovaciones con la sociedad y la empresa pública y privada, resguardando los derechos intelectuales y promoviendo el registro de marcas y patentes. "]
[null,null,"EPE5","•        Promover las alianzas con el comercio y la industria para afianzar el desarrollo de proyectos en esquemas de I+ D+ i. "]
[null,null,"EPE5","•        Fortalecer la infraestructura física y tecnológica, así como su funcionamiento organizacional para favorecer el desarrollo de esquemas de I+D+i. "]
[null,null,"EPE5","•        Continuar con el diseño y el establecimiento de las bases jurídicas y organizacionales necesarias para la generación de recursos propios a partir de los logros y resultados de la investigación y de la aplicación del conocimiento generado por los universitarios, salvaguardando la propiedad intelectual de sus desarrollos científicos, tecnológicos, artísticos y culturales, asegurando los derechos de autor de los académicos, así como la propiedad industrial de la institución. "]
[null,null,null,"•        Integrar acciones inter y transdisciplinarias que favorezcan la transformación social y fortalezcan la identidad y el empoderamiento de comunidades rurales y urbanas en las cinco regiones universitarias: prácticas escolares de campo, servicio social, extensión de los servicios, brigadas universitarias, Casas de la Universidad y programas especiales (Peraj). "]
[null,null,null,"•        Fortalecer las acciones de vinculación y atención a comunidades marginadas o grupos sociales vulnerables, en coordinación con las autoridades locales para que, en uso pleno de su gobernanza, participemos y contribuyamos a la construcción de una sociedad más justa e incluyente; asumiendo que las acciones universitarias a favor de las comunidades no pueden ni deben suplir las tareas que los diferentes niveles de gobierno están obligados a realizar en el ejercicio pleno de sus derechos y obligaciones. "]
[null,null,null,"•        Reforzar la postura de la UV como un ente promotor del saber, capaz de desencadenar procesos de cambio en su entorno social, transfiriendo conocimientos, tecnologías y habilidades a las comunidades rurales o urbanas, bajo un modelo de vinculación de doble vía que trascienda las visiones asistencialistas y unidireccionales; es decir, una vinculación universitaria que, por una parte, apoye a las comunidades para que éstas asuman, planeen y desplieguen procesos auto-organizativos para emprender y gestionar su propio desarrollo bajo enfoques sostenibles; y por otra, que esta labor abra espacios al aprendizaje y al sentido de responsabilidad social de los estudiantes universitarios; a la retroalimentación académica y de los planes de estudio, y a la investigación, la aplicación del conocimiento, la comunicación de la ciencia, la difusión de la cultura y la promoción social de los valores y los derechos humanos. "]
[null,null,"a","•        Desarrollar un sistema de evaluación de la vinculación que trascienda el simple registro de programas y proyectos, definiendo y construyendo indicadores para registrar y valorar el impacto social de la acción universitaria. "]
[null,null,null,"•        Integrar los esfuerzos realizados para lograr un efectivo y actualizado sistema de seguimiento de egresados, haciendo operativos sus diversos propósitos y finalidades, sus componentes y las funciones y compromisos específicos de cada una de las instancias responsables de operar y mantener dicho sistema. "]
[null,null,null,"•        Agrupar y consolidar el desarrollo informático y las bases de datos existentes, asegurando los flujos de información, la actualización permanente y el funcionamiento óptimo del sistema. "]
[null,null,null,"•        Establecer y supervisar el cumplimiento de las políticas y los procedimientos institucionales para que el 100% de los programas educativos registren y den seguimiento a sus egresados con fines de retroalimentación, visibilidad y valoración del impacto social de la formación académica y profesional de los egresados."]
[null,null,null,"•        Fortalecer el vínculo formal con los egresados de la UV para conocer sus necesidades y desarrollar una oferta pertinente de educación continua, bolsa de trabajo, y otras acciones. "]
[null,null,null,"Evaluar el impacto social de la formación profesional, para la retroalimentación de planes y programas de estudio, recuperación de experiencias y conocimientos derivados de la práctica profesional, financiamiento de proyectos específicos, entre otros aspectos. "]
[null,null,null,"•        Promover y apoyar los esfuerzos, programas, proyectos y acciones en favor de la conservación de áreas naturales protegidas, ecosistemas y especies. "]
[null,null,null,"•        Formar ciudadanos conscientes y comprometidos con el cuidado del medio ambiente. Seguiremos promoviendo y asegurando que los enfoques y los ontenidos de los programas académicos —tanto de las experiencias educativas como de los de extensión, difusión de la ciencia, artísticos y culturales— incorporen la visión y la gestión de un desarrollo sostenible basado en el cuidado y la conservación del patrimonio natural y cultural de la humanidad. "]
[null,null,null,"•        Consolidar el grupo Transversa y permear en toda la comunidad los valores que ha integrado de manera sistémica. "]
[null,null,null,"•        Estimular el aprendizaje de idiomas. "]
[null,null,null,"•        Fomentar la comparabilidad de programas educativos para el reconocimiento y la transferencia de créditos. "]
[null,null,null,"•        Promover experiencias que fortalezcan la inter y la multiculturalidad. "]
[null,null,null,"•        Adecuar la normativa institucional considerando un enfoque internacional. "]
[null,null,null,"•        Fortalecer el intercambio académico, los programas de doble titulación y de titulación conjunta, así como el establecimiento de auténticas redes de colaboración interinstitucionales. "]
[null,null,null,"•        Fomentar la participación de los grupos artísticos en la formación integral del estudiante. "]
[null,null,null,"•        Diversificar la oferta de experiencias educativas regionales relacionadas con la cultura y las artes. "]
[null,null,null,"•        Mantener el vínculo social de los grupos artísticos universitarios. "]
[null,null,null,"•        Consolidar a la Difusión de la Cultura en el AFEL. "]
[null,null,null,"•        Armonizar los procesos internos con la legislación federal o estatal que nos rige como entidad pública. "]
[null,null,null,"•        Flexibilizar los procesos administrativos de la UV adaptándolos a las necesidades y posibilidades de los usuarios universitarios. "]
[null,null,null,"•        Continuar el desarrollo de acciones que garanticen la transparencia y la rendición de cuentas. "]
[null,null,null,"•        Actualizar y operar de manera continua un programa institucional para la profesionalización del personal dedicado a las funciones directivas y administrativas con visión universitaria. "]
[null,null,null,"•        Desarrollar y consolidar el Sistema Institucional de Información Universitaria como un sistema único que permita la integridad, la disponibilidad y la oportunidad de la información de sus diversos subsistemas (financiero, escolar, recursos humanos, etc.), así como la construcción ágil y expedita de indicadores para la toma de decisiones institucionales en todos los niveles de la organización universitaria. "]
[null,null,null,"•        Armonizar todo lo anterior en el marco jurídico institucional. "]
[null,null,null,"•        Asegurar el ejercicio responsable del presupuesto universitario bajo procedimientos de planeación, programación, evaluación y rendición de cuentas. "]
[null,null,null,"•        Promover una mayor participación y compromiso en la consecución de recursos extraordinarios provenientes de fondos concursables. "]
[null,null,null,"•        Cumplir eficientemente el ejercicio de los recursos obtenidos. "]
[null,null,null,"•        Buscar fuentes alternas de ingreso y valorar los servicios universitarios que, como es el caso de la educación continua, pueden ser una fuente significativa de ingresos para la institución. "]
[null,null,null,"•        Redignificar los espacios educativos universitarios asegurando su operación sustentable, así como condiciones de seguridad en su uso, accesible a personas con discapacidad. "]
[null,null,null,"•        Establecer un programa de mantenimiento de la infraestructura educativa, basado en un diagnóstico de necesidades académicas y capacidad financiera institucional. "]
[null,null,null,"•        Fortalecer la infraestructura de redes y telecomunicaciones institucional. "]
[null,null,null,"•        Ampliar y fortalecer la infraestructura educativa basada en el uso de las TIC."]

{"sheet":"Procesos","index":20,"n_rows":44,"n_cols":7,"rows_kept":44,"cut":false,"hidden":true,"merged":[[1,2,1,4]]}
[]
[null,null,"Procesos Activos"]
[]
[null,null,"ID","Nombre del Proceso","Dependencia Responsable","ID_Pr","ID_RP"]
[null,{"$f":"CONCATENATE(\"P_\",C5)","v":"P_1"},1,"Gestión de Tecnologías de la lnformación ","DGTI",{"$f":"CONCATENATE(\"P_\",C5)","v":"P_1"},{"$f":"CONCATENATE(\"R\",F5)","v":"RP_1"}]
[null,{"$f":"CONCATENATE(\"P_\",C6)","v":"P_2"},2,"Servicios Educativos",null,{"$f":"CONCATENATE(\"P_\",C6)","v":"P_2"},{"$f":"CONCATENATE(\"R\",F6)","v":"RP_2"}]
[null,"P_3",3,"Movilidad Estudiantil","DGDAeIE","P_3","RP_3"]
[null,"P_4",4,"Vinculación Universitaria","DGV","P_4","RP_4"]
[null,"P_5",5,"Producción Editorial","DE","P_5","RP_5"]
[null,"P_6",6,"Administración Escolar","DGAE","P_6","RP_6"]
[null,"P_7",7,"Atención Integral al Estudiantes",null,"P_7","RP_7"]
[null,"P_8",8,"Evaluación e Innovación Educativa","DGDAeIE","P_8","RP_8"]
[null,"P_9",9,"Planeación Institucional","DPI","P_9","RP_9"]
[null,"P_10",10,"Acreditacón y Certificación","DPI","P_10","RP_10"]
[null,"P_11",11,"Administración de Recursos Humanos","DGRH","P_11","RP_11"]
[null,"P_12",12,"Administración de Recursos Financieros","DGRF","P_12","RP_12"]
[null,"P_13",13,"Gestión Normativa","OAG","P_13","RP_13"]
[null,"P_14",14,"Gestión de Infraestructura Física, Rec. Materiales y Servicios Generales",null,"P_14","RP_14"]
[null,"P_15",15,"Gestión de Concesiones y Empresas Universitarias",null,"P_15","RP_15"]
[null,"P_16",16,null,null,"P_16","RP_16"]
[null,{"$f":"CONCATENATE(\"P_\",C21)","v":"P_17"},17,null,null,"P_17","RP_17"]
[null,"P_18",18,null,null,"P_18","RP_18"]
[null,"P_19",19,null,null,"P_19","RP_19"]
[null,"P_20",20,null,null,"P_20","RP_20"]
[null,"P_21",21,null,null,"P_21","RP_21"]
[null,"P_22",22,null,null,"P_22","RP_22"]
[null,"P_23",23,null,null,"P_23","RP_23"]
[null,"P_24",24,null,null,"P_24","RP_24"]
[null,"P_25",25,null,null,"P_25","RP_25"]
[null,"P_26",26,null,null,"P_26","RP_26"]
[null,null,27,null,null,{"$f":"CONCATENATE(\"P_\",C31)","v":"P_27"},{"$f":"CONCATENATE(\"R\",F31)","v":"RP_27"}]
[null,null,28,null,null,"P_28","RP_28"]
[null,null,29,null,null,"P_29","RP_29"]
[null,null,30,null,null,"P_30","RP_30"]
[null,null,31,null,null,"P_31","RP_31"]
[null,null,32,null,null,"P_32","RP_32"]
[null,null,33,null,null,"P_33","RP_33"]
[null,null,34,null,null,"P_34","RP_34"]
[null,null,35,null,null,"P_35","RP_35"]
[null,null,36,null,null,{"$f":"CONCATENATE(\"P_\",C40)","v":"P_36"},{"$f":"CONCATENATE(\"R\",F40)","v":"RP_36"}]
[null,null,37,null,null,{"$f":"CONCATENATE(\"P_\",C41)","v":"P_37"},{"$f":"CONCATENATE(\"R\",F41)","v":"RP_37"}]
[null,null,38,null,null,{"$f":"CONCATENATE(\"P_\",C42)","v":"P_38"},{"$f":"CONCATENATE(\"R\",F42)","v":"RP_38"}]
[null,null,39,null,null,{"$f":"CONCATENATE(\"P_\",C43)","v":"P_39"},{"$f":"CONCATENATE(\"R\",F43)","v":"RP_39"}]
[null,null,40,null,null,{"$f":"CONCATENATE(\"P_\",C44)","v":"P_40"},{"$f":"CONCATENATE(\"R\",F44)","v":"RP_40"}]

{"sheet":"Hoja7","index":21,"n_rows":32,"n_cols":21,"rows_kept":32,"cut":false,"hidden":true,"merged":[[13,12,13,14],[13,17,13,19],[13,7,13,9],[1,1,1,5],[1,7,1,10],[1,12,1,15],[1,17,1,20]]}
[null,"*TABLAEE",null,"*EJESESTRATEGICOS",null,null,null,"*TABLAPE1",null,"*PROGRAMASEE1",null,null,"*TABLAPE2",null,"*PROGRAMASEE2",null,null,"*TABLAPE3",null,"PROGRAMASEE3"]
[null,"Ejes Estratégicos",null,null,null,null,null,"Programas",null,null,null,null,"Programa del E2",null,null,null,null,"Programa del E3"]
[null,"Clave","DescripciónE","Columna1","Programas","Metas",null,"Clave","Descripción","Columna1","EE",null,"Clave","Descripción","Columna1","EE",null,"Clave","Descripción","Columna1","EE"]
[null,"E1","Liderazgo Académico",{"$f":"CONCATENATE(TablaEE[[#This Row],[Clave]],\"-\",TablaEE[[#This Row],[DescripciónE]])","v":"E1-Liderazgo Académico"},{"$f":"CONCATENATE(\"PROGRAMASE\",TablaEE[[#This Row],[Clave]])","v":"PROGRAMASEE1"},{"$f":"CONCATENATE(\"METASE\",TablaEE[[#This Row],[Clave]])","v":"METASEE1"},null,"P1","Oferta Educativa de Calidad",{"$f":"CONCATENATE(TABLAPE1[[#This Row],[Clave]],\"-\",TABLAPE1[[#This Row],[Descripción]])","v":"P1-Oferta Educativa de Calidad"},{"$f":"CONCATENATE(\"E1-\",TABLAPE1[[#This Row],[Clave]])","v":"E1-P1"},null,"P5","Vinculación y Responsabilidad Social Universitaria",{"$f":"CONCATENATE(TABLAPE2[[#This Row],[Clave]],\"-\",TABLAPE2[[#This Row],[Descripción]])","v":"P5-Vinculación y Responsabilidad Social Universitaria"},"E2",null,"P9","Gobernanza Universitaria",{"$f":"CONCATENATE(TABLAPE3[[#This Row],[Clave]],\"-\",TABLAPE3[[#This Row],[Descripción]])","v":"P9-Gobernanza Universitaria"},"E3"]
[null,"E2","Visibildiad e Impacto Social",{"$f":"CONCATENATE(TablaEE[[#This Row],[Clave]],\"-\",TablaEE[[#This Row],[DescripciónE]])","v":"E2-Visibildiad e Impacto Social"},{"$f":"CONCATENATE(\"PROGRAMASE\",TablaEE[[#This Row],[Clave]])","v":"PROGRAMASEE2"},{"$f":"CONCATENATE(\"METASE\",TablaEE[[#This Row],[Clave]])","v":"METASEE2"},null,"P2","Planta Académica",{"$f":"CONCATENATE(TABLAPE1[[#This Row],[Clave]],\"-\",TABLAPE1[[#This Row],[Descripción]])","v":"P2-Planta Académica"},{"$f":"CONCATENATE(\"E1-\",TABLAPE1[[#This Row],[Clave]])","v":"E1-P2"},null,"P6","Emprendimiento y Egresados",{"$f":"CONCATENATE(TABLAPE2[[#This Row],[Clave]],\"-\",TABLAPE2[[#This Row],[Descripción]])","v":"P6-Emprendimiento y Egresados"},"E2",null,"P10","Financimiento",{"$f":"CONCATENATE(TABLAPE3[[#This Row],[Clave]],\"-\",TABLAPE3[[#This Row],[Descripción]])","v":"P10-Financimiento"},"E3"]
[null,"E3","Gestión y Gobierno",{"$f":"CONCATENATE(TablaEE[[#This Row],[Clave]],\"-\",TablaEE[[#This Row],[DescripciónE]])","v":"E3-Gestión y Gobierno"},{"$f":"CONCATENATE(\"PROGRAMASE\",TablaEE[[#This Row],[Clave]])","v":"PROGRAMASEE3"},{"$f":"CONCATENATE(\"METASE\",TablaEE[[#This Row],[Clave]])","v":"METASEE3"},null,"P3","Apoyo al Estudiante",{"$f":"CONCATENATE(TABLAPE1[[#This Row],[Clave]],\"-\",TABLAPE1[[#This Row],[Descripción]])","v":"P3-Apoyo al Estudiante"},{"$f":"CONCATENATE(\"E1-\",TABLAPE1[[#This Row],[Clave]])","v":"E1-P3"},null,"P7","Cultura Humanista y Desarrollo Sustentable",{"$f":"CONCATENATE(TABLAPE2[[#This Row],[Clave]],\"-\",TABLAPE2[[#This Row],[Descripción]])","v":"P7-Cultura Humanista y Desarrollo Sustentable"},"E2",null,"P11","Infraestructura Física y Tecnológica",{"$f":"CONCATENATE(TABLAPE3[[#This Row],[Clave]],\"-\",TABLAPE3[[#This Row],[Descripción]])","v":"P11-Infraestructura Física y Tecnológica"},"E3"]
[null,null,null,null,null,null,null,"P4","Investigación, Innovación y Desarrollo Tecnológico",{"$f":"CONCATENATE(TABLAPE1[[#This Row],[Clave]],\"-\",TABLAPE1[[#This Row],[Descripción]])","v":"P4-Investigación, Innovación y Desarrollo Tecnológico"},{"$f":"CONCATENATE(\"E1-\",TABLAPE1[[#This Row],[Clave]])","v":"E1-P4"},null,"P8","Internacionalización e Interculturalidad",{"$f":"CONCATENATE(TABLAPE2[[#This Row],[Clave]],\"-\",TABLAPE2[[#This Row],[Descripción]])","v":"P8-Internacionalización e Interculturalidad"},"E2"]
[]
[null,null,null,null,null,null,null,"*TABLAPE1"]
[]
[]
[]
[null,null,null,null,null,null,null,"*TABLAME1",null,"METASEE1",null,null,"*TABLAME2",null,"METASEE2",null,null,"*TABLAME3",null,"METASEE3"]
[null,null,null,null,null,null,null,"Metas del E1",null,null,null,null,"Metas del E2",null,null,null,null,"Metas del E3"]
[null,null,null,null,null,null,null,"Meta","Descripción","Columna1",null,null,"Meta","Descripción","Columna1",null,null,"Meta","Descripción","Columna1"]
[null,null,null,null,null,null,null,"I.1","I.1 El 100% de la matrícula de licenciatura es atendida en programas educativos evaluables de calidad reconocida.",null,null,null,"II.1","II.1 El número de convenios de colaboración con los diferentes sectores en los ámbitos municipal, estatal, nacional e internacional se incrementa en un 10%.",null,null,null,"III.1","III.1 Se cuenta con un sistema único de información actualizado para la toma de decisiones académicas y de gestión."]
[null,null,null,null,null,null,null,"I.2","I.2 El 100% de la matrícula de posgrado es atendida en programas educativos evaluables de calidad reconocida por el CONACyT y/o otros organismos evaluadores.",null,null,null,"II.2","II.2 A partir del primer semestre de 2019 se opera un catálogo actualizado de servicios especializados y de investigación básica.",null,null,null,"III.2","III.2 Se cuenta con un sistema de gestión de calidad certificado, que integra los procesos estratégicos institucionales."]
[null,null,null,null,null,null,null,"I.3","I.3 El 100% de los planes de estudios son actualizados cada cinco años como tiempo máximo.",null,null,null,"II.3","II.3 Se cuenta con un sistema de información actualizado que permite medir el impacto de la vinculación institucional.",null,null,null,"III.3","III.3 El 100% de la legislación y normatividad universitaria es actualizada y articulada."]
[null,null,null,null,null,null,null,"I.4","I.4 La eficiencia terminal se incrementa un punto porcentual al año.",null,null,null,"II.4","II.4 La producción editorial institucional crece 5% anual.",null,null,null,"III.4","III.4 Se cuenta con la acreditación externa de las funciones institucionales de gestión."]
[null,null,null,null,null,null,null,"I.5","I.5 Cada área académica ofrecerá al menos dos programas educativos con doble titulación.",null,null,null,"II.5","II.5 El 100% de los programas educativos participa en el programa institucional de seguimiento de egresados.",null,null,null,"III.5","III.5 Se obtiene al menos el 10% de recursos propios anuales a través de la extensión y comercialización de servicios y productos."]
[null,null,null,null,null,null,null,"I.6","I.6 La matrícula actual que opera en modalidades no convencionales se incrementa un 30%.",null,null,null,"II.6","II.6 El 30% del total de entidades académicas y dependencias implementa anualmente al menos un programa de educación continua.",null,null,null,"III.6","III.6 Al menos el 25% de los convenios formalizados generan recursos financieros, independientemente de los correspondientes al otorgamiento de subsidios ordinarios y fondos extraordinarios de origen gubernamental."]
[null,null,null,null,null,null,null,"I.7","I.7 El 100% de los PTC de nuevo ingreso cuenta con doctorado y cumplen con los requisitos que le permiten su incorporación al PRODEP, SNI o programa equivalente.",null,null,null,"II.7","II.7 Se generan al menos 10 nuevas solicitudes de registro de propiedad intelectual (patentes, derechos de autor y marcas).",null,null,null,"III.7","III.7 Se cuenta con un programa institucional de mantenimiento de la planta física y tecnológica."]
[null,null,null,null,null,null,null,"I.8","I.8 Del total de PTC con posgrado, al menos el 90% lo tiene en el área disciplinar de su desempeño."]
[null,null,null,null,null,null,null,"I.9","I.9 Del total de PTC con doctorado, al menos el 85% lo tiene en el área disciplinar de su desempeño."]
[null,null,null,null,null,null,null,"I.10","I.10 El número de cuerpos académicos consolidados se incrementa un 20%."]
[null,null,null,null,null,null,null,"I.11","I.11 Del total de PTC, el 62% cuenta con perfil deseable."]
[null,null,null,null,null,null,null,"I.12","I.12 Del total de PTC, el 24% pertenece al SNI/SNC."]
[null,null,null,null,null,null,null,"I.13","I.13 Cada investigador genera y registra en la plataforma institucional al menos un producto científico y/o tecnológico al año."]
[null,null,null,null,null,null,null,"I.14","I.14 Las publicaciones de los académicos en revistas indexadas tienen un incremento del 10%."]
[null,null,null,null,null,null,null,"I.15","I.15 El 100% de los investigadores realiza alguna actividad de docencia en el nivel licenciatura."]
[null,null,null,null,null,null,null,"I.16","I.16 Al menos el 20% de los estudiantes por programa educativo participa en proyectos de investigación."]
[null,null,null,null,null,null,null,"I.17","I.17 Al menos el 30% de los académicos participa en proyectos de investigación y/o extensión de los servicios."]

{"sheet":"Hoja2","index":22,"n_rows":283,"n_cols":5,"rows_kept":283,"cut":false,"hidden":true,"merged":[]}
["CLAVE","Descripción","Región","Homo","Columna1"]
[11101,"UNIDAD ACADEMICA DE INGENIERIA Y CIENCIAS QUIMICAS","Xalapa","UAICQ",11101]
[11102,"FACULTAD DE INGENIERIA CIVIL","Xalapa","FICX",11102]
[11103,"FACULTAD DE INGENIERIA MECANICA Y ELECTRICA","Xalapa","FIMEX",11103]
[11104,"FACULTAD DE CIENCIAS QUIMICAS","Xalapa","FCQX",11104]
[11105,"FACULTAD DE QUIMICA FARMACEUTICA BIOLOGICA","Xalapa","FQFB",11105]
[11106,"FACULTAD DE FISICA","Xalapa","FFI",11106]
[11107,"FACULTAD DE MATEMATICAS","Xalapa","FM",11107]
[11108,"FACULTAD DE ARQUITECTURA","Xalapa","FARQ",11108]
[11109,"FACULTAD DE INSTRUMENTACION ELECTRONICA","Xalapa","FIE",11109]
[11110,"INSTITUTO DE CIENCIAS BASICAS","Xalapa","ICB",11110]
[11112,"CENTRO DE INVESTIGACION DE INTELIGENCIA ARTIFICIAL","Xalapa","CIIA",11112]
[11113,"UNIDAD DE SERVICIOS DE APOYO DE RESOLUCION ANALITICA (SARA)","Xalapa","SARA",11113]
[11114,"CENTRO DE CIENCIAS DE LA TIERRA","Xalapa","CCT",11114]
[11115,"CENTRO DE INVESTIGACION Y DESARROLLO EN ALIMENTOS","Xalapa","CIDA",11115]
[11201,"FACULTAD DE DERECHO","Xalapa","FD",11201]
[11202,"UNIDAD ACADEMICA DE HUMANIDADES","Xalapa","UDH",11202]
[11203,"FACULTAD DE IDIOMAS","Xalapa","FI",11203]
[11204,"FACULTAD DE PEDAGOGIA","Xalapa","FPX",11204]
[11205,"FACULTAD DE LETRAS ESPAÑOLAS","Xalapa","FLE",11205]
[11206,"FACULTAD DE HISTORIA","Xalapa","FH",11206]
[11207,"FACULTAD DE FILOSOFIA","Xalapa","FF",11207]
[11208,"FACULTAD DE ANTROPOLOGIA","Xalapa","FANT",11208]
[11209,"FACULTAD DE SOCIOLOGIA","Xalapa","FS",11209]
[11211,"INSTITUTO DE ANTROPOLOGIA","Xalapa","IA",11211]
[11212,"MUSEO ANTROPOLOGÍA","Xalapa","MA",11212]
[11214,"INSTITUTO DE INVESTIGACIONES HISTÓRICO SOCIALES","Xalapa","IIHS",11214]
[11215,"INSTITUTO DE INVESTIGACIONES LINGÜISTICO LITERARIAS","Xalapa","IILL",11215]
[11216,"INSTITUTO DE INVESTIGACIONES EN EDUCACION","Xalapa","IIE",11216]
[11217,"CENTRO DE INVESTIGACION EN DOCUMENTACION SOBRE LA UNIVERSIDAD","Xalapa","CIDU",11217]
[11218,"INSTITUTO DE FILOSOFIA","Xalapa","IF",11218]
[11219,"CENTRO DE ESTUDIOS DE LA CULTURA Y LA COMUNICACION","Xalapa","CECYC",11219]
[11220,"CENTRO DE ESTUDIOS SOBRE DERECHO, GLOBALIZACION Y SEGURIDAD","Xalapa","CEDGS",11220]
[11301,"FACULTAD DE CONTADURIA Y ADMINISTRACION","Xalapa","FCAX",11301]
[11302,"UNIDAD ACADEMICA DE ECONOMIA Y ESTADISTICA","Xalapa","UAEE",11302]
[11303,"FACULTAD DE ECONOMIA","Xalapa","FE",11303]
[11304,"FACULTAD DE ESTADISTICA E INFORMATICA","Xalapa","FEI",11304]
[11305,"INSTITUTO DE INVESTIGACIONES Y ESTUDIOS SUPERIORES ECONOMICOS Y SOCIALES","Xalapa","IIESES",11305]
[11306,"INSTITUTO DE INVESTIGACIONES Y ESTUDIOS SUPERIORES DE CIENCIAS ADMINISTRATIVAS","Xalapa","IESCA",11306]
[11307,"INSTITUTO DE CONTADURIA PUBLICA","Xalapa","ICP",11307]
[11309,"FACULTAD DE CIENCIAS ADMINISTRATIVAS Y SOCIALES","Xalapa","FCAS",11309]
[11310,"CENTRO DE ESTUDIOS DE OPINION Y ANALISIS DE LA UNIVERSIDAD VERACRUZANA","Xalapa","CEOAUV",11310]
[11401,"UNIDAD ACADEMICA DE CIENCIAS DE LA SALUD","Xalapa","UACSX",11401]
[11402,"FACULTAD DE MEDICINA","Xalapa","FMX",11402]
[11403,"FACULTAD DE ODONTOLOGIA","Xalapa","FOX",11403]
[11404,"FACULTAD DE BIOANALISIS","Xalapa","FB",11404]
[11405,"FACULTAD DE NUTRICION","Xalapa","FNX",11405]
[11406,"FACULTAD DE ENFERMERIA","Xalapa","FEX",11406]
[11407,"FACULTAD DE PSICOLOGIA","Xalapa","FPX",11407]
[11408,"INSTITUTO DE CIENCIAS DE LA SALUD","Xalapa","ICS",11408]
[11409,"INSTITUTO DE INVESTIGACIONES PSICOLOGICAS","Xalapa","IIP",11409]
[11410,"CLINICA UNIVERSITARIA DE SALUD REPRODUCTIVA Y SEXUAL","Xalapa","CUSRS",11410]
[11411,"INSTITUTO DE SALUD PUBLICA","Xalapa","ISP",11411]
[11412,"CENTRO PARA EL DESARROLLO HUMANO E INTEGRAL DE LOS UNIVERSITARIOS","Xalapa","CDHIU",11412]
[11413,"INSTITUTO DE PSICOLOGIA Y EDUCACION","Xalapa","IPYE",11413]
[11414,"CENTRO DE INVESTIGACIONES BIOMEDICAS","Xalapa","CIB",11414]
[11415,"CENTRO DE INVESTIGACIONES CERABRALES","Xalapa","CIC",11415]
[11501,"UNIDAD ACADEMICA DE CIENCIAS BIOLOGICAS Y AGROPECUARIAS","Xalapa","UACBYA",11501]
[11502,"FACULTAD DE BIOLOGIA","Xalapa","FB",11502]
[11503,"FACULTAD DE CIENCIAS AGRICOLAS","Xalapa","FCA",11503]
[11504,"INSTITUTO DE INVESTIGACIONES BIOLOGICAS","Xalapa","IIB",11504]
[11505,"INSTITUTO DE NEUROETOLOGIA","Xalapa","IN",11505]
[11506,"INSTITUTO DE INVESTIGACIONES FORESTALES","Xalapa","IIF",11506]
[11508,"INSTITUTO DE BIOTECNOLOGIA Y ECOLOGIA APLICADA","Xalapa","IBEA",11508]
[11509,"CENTRO DE INVESTIGACIONES TROPICALES","Xalapa","CIT",11509]
[11510,"INSTITUTO DE INVESTIGACIONES MULTIDISCIPLINARIAS","Xalapa","IIM",11510]
[11511,"CENTRO DE INVESTIGACION EN MICOLOGIA APLICADA","Xalapa","CIMA",11511]
[11601,"UNIDAD ACADEMICA DE ARTES","Xalapa","UAA",11601]
[11602,"FACULTAD DE MÚSICA","Xalapa","FM",11602]
[11603,"FACULTAD DE DANZA","Xalapa","FD",11603]
[11604,"FACULTAD DE ARTES PLASTICAS","Xalapa","FAP",11604]
[11605,"FACULTAD DE TEATRO","Xalapa","FT",11605]
[11606,"INSTITUTO DE ARTES PLASTICAS","Xalapa","IAP",11606]
[11607,"CENTRO DE INICIACION MUSICAL INFANTIL","Xalapa","CIMIX",11607]
[11608,"CENTRO DE ESTUDIOS DE JAZZ (JAZZUV)","Xalapa","JAZZUV",11608]
[11609,"CENTRO DE EST., CREACION Y DOC. DE LAS ARTES","Xalapa","CECDA",11609]
[11701,"DIRECCION GENERAL DEL SISTEMA DE ENSEÑANZA ABIERTA","Xalapa","DGSEA",11701]
[11702,"ESCUELA PARA ESTUDIANTES EXTRANJEROS","Xalapa","EEE",11702]
[11703,"DIRECCION GENERAL DE LA UNIDAD DE ESTUDIOS DE POSGRADO","Xalapa","DGUEP",11703]
[11704,"DIRECCION DE LA UNIVERSIDAD VERACRUZANA INTERCULTURAL","Xalapa","DUVI",11704]
[11705,"DIRECCION DE LOS CENTROS DE IDIOMAS","Xalapa","DCI",11705]
[11706,"COORDINACION UNIVERSITARIA DE OBSERVATORIOS METROPOLITANOS","Xalapa","CUOM",11706]
[11707,"CENTRO DE ESTUDIOS CHINA-VERACRUZ","Xalapa","CEChi",11707]
[11708,"COORDINACION UNIVERSITARIA PARA LA SUSTENTABILIDAD","Xalapa","CUS",11708]
[11709,"CENTRO DE ECOALFABETIZACION Y DIALOGO DE SABERES","Xalapa","CEDS",11709]
[11710,"DIRECCION GENERAL DE RELACIONES INTERNACIONALES","Xalapa","DGRI",11710]
[11711,"CENTRO DE ESTUDIOS E INVESTIGACIONES EN CONOCIMIENTO Y APRENDIZAJE HUMANO","Xalapa","CEICA",11711]
[11712,"DIRECCIÓN DE MEDIOS DE COMUNICACIÓN","Xalapa","DMC",11712]
[11713,"DIRECCIÓN DE COMUNICACIÓN DE LA CIENCIA","Xalapa","DCC",11713]
[11715,"COORDINACION DE DIFUSION Y EXTENSION DE LA CULTURA","Xalapa","CDEC",11715]
[11717,"DIRECCIÓN DE NORMATIVIDAD","Xalapa","DN",11717]
[11718,"COORDINACIÓN DE COOPERACIÓN ACADÉMICA","Xalapa","CCA",11718]
[11719,"COORDINACIÓN DE PROGRAMAS Y SERVICIOS","Xalapa","CPS",11719]
[11720,"COORDINACIÓN DE MOVILIDAD ESTUDIANTIL Y ACADÉMICA","Xalapa","CMEA",11720]
[11723,"SISTEMA DE ATENCION INTEGRAL PARA LA SALUD","Xalapa","SAIS",11723]
[11724,"COORD. DE LA UNIDAD DE GENERO","Xalapa","CUG",11724]
[11726,"DIR DEL SISTEMA UNIVERSITARIO DE GESTION DE RIESGO","Xalapa","DSUGI",11726]
[11801,"TALLER LIBRE DE ARTES","Xalapa","TLAX",11801]
[11802,"CENTRO DE IDIOMAS","Xalapa","CIX",11802]
[11803,"ORGANIZACION TEATRAL UV","Xalapa","OTUV",11803]
[11804,"ORBIS TERTIUS","Xalapa","OT",11804]
[11805,"CORO","Xalapa","Coro",11805]
[11806,"GRUPO DE RECITALISTAS","Xalapa","GR",11806]
[11807,"ENSAMBLE CLÁSICO DE GUITARRAS","Xalapa","ECG",11807]
[11808,"ORQUESTA UNIVERSITARIA DE MUSICA POPULAR","Xalapa","OUMP",11808]
[11809,"TLEN HUICANI","Xalapa","TH",11809]
[11810,"BALLET FOLKLORICO","Xalapa","BF",11810]
[11811,"ORQUESTA SINFONICA XALAPA","Xalapa","OSX",11811]
[11812,"ORQUESTA DE SALSA","Xalapa","OS",11812]
[11813,"GALERIA RAMON ALVA DE LA CANAL","Xalapa","GRAC",11813]
[11901,"ADMINISTRACION CENTRAL","Xalapa","AC",11901]
[11902,"RECTORIA","Xalapa","R",11902]
[11904,"OFICINA DEL ABOGADO GENERAL","Xalapa","OAG",11904]
[11905,"DIRECCION DE ASUNTOS JURIDICOS","Xalapa","DAJ",11905]
[11906,"CONTRALORIA GENERAL","Xalapa","CG",11906]
[11907,"DIRECCION DE AUDITORIA INTERNA                    ","Xalapa","DAI",11907]
[11908,"DIRECCION DE PLANEACION INSTITUCIONAL","Xalapa","DPL",11908]
[11909,"COORDINACION TÉCNICA DE DIR PLANEACIÓN INSTITUCIONAL","Xalapa","CTDPI",11909]
[11910,"DEFENSORIA DE LOS DERECHOS DE LOS UNIVERSITARIOS","Xalapa","DDU",11910]
[11911,"DIRECCION GENERAL DE TECNOLOGIA DE LA INFORMACION","Xalapa","DGTI",11911]
[11912,"DIRECCION DE PROYECTOS, CONSTRUCCIONES Y MANTENIMIENTO","Xalapa","DPCM",11912]
[11913,"SECRETARIA DE DESARROLLO INSTITUCIONAL","Xalapa","SDI",11913]
[11915,"DIRECCION GENERAL DE COMUNICACIÓN UNIVERSITARIA","Xalapa","DGCU",11915]
[11916,"DEPARTAMENTO DE CINEMATOGRAFIA","Xalapa","DC",11916]
[11917,"DEPARTAMENTO DE RADIO","Xalapa","DR",11917]
[11918,"DEPARTAMENTO DE MEDIOS AUDIOVISUALES","Xalapa","DMA",11918]
[11919,"DIRECCION DE VINCULACION GENERAL","Xalapa","DVG",11919]
[11920,"SECRETARIA ACADEMICA","Xalapa","SA",11920]
[11921,"DIRECCION GENERAL DEL AREA ACADEMICA TECNICA","Xalapa","DGAAT",11921]
[11922,"DIRECCION GENERAL DEL AREA ACADEMICA DE HUMANIDADES","Xalapa","DGAAH",11922]
[11923,"DIRECCION GENERAL DEL AREA ACADEMICA ECONOMICO ADMINISTRATIVA","Xalapa","DGAAEA",11923]
[11924,"DIRECCION GENERAL DEL AREA ACADEMICA DE CIENCIAS DE LA SALUD","Xalapa","DGAACS",11924]
[11925,"DIRECCION GENERAL DEL AREA ACADEMICA BIOLOGICO AGROPECUARIA","Xalapa","DGAABA",11925]
[11926,"DIRECCION GENERAL DEL AREA ACADEMICA DE ARTES","Xalapa","DGAAA",11926]
[11927,"DIRECCION GENERAL DE INVESTIGACIONES","Xalapa","DI",11927]
[11928,"DIRECCION GENERAL DE  DESARROLLO ACADEMICO E INNOVACION EDUCATIVA","Xalapa","DGDAeIE",11928]
[11929,"DIRECCION GENERAL DE ADMINISTRACION ESCOLAR","Xalapa","DGAE",11929]
[11930,"DIRECCION DE SERVICIOS ESCOLARES                  ","Xalapa","DSE",11930]
[11932,"COORDINACION DE INTEGRACION SALARIAL","Xalapa","CIS",11932]
[11935,"DIRECCION GENERAL DE BIBLIOTECAS","Xalapa","DGB",11935]
[11938,"COORDINACION REGIONAL DE BIBLIOTECAS XALAPA","Xalapa","CRBX",11938]
[11939,"OFICIALIA MAYOR                                   ","Xalapa","OM",11939]
[11941,"DIRECCIÓN DE FORTALECIMIENTO ACADÉMICO","Xalapa","DFA",11941]
[11942,"DIRECCIÓN DE INNOVACIÓN EDUCATIVA","Xalapa","DIE",11942]
[11943,"SECRETARIA DE ADMINISTRACION Y FINANZAS","Xalapa","SAF",11943]
[11944,"DIRECCION GENERAL DE RECURSOS FINANCIEROS","Xalapa","DGRH",11944]
[11946,"DIRECCION DE INGRESOS","Xalapa","DI",11946]
[11947,"DIRECCION DE EGRESOS","Xalapa","DE",11947]
[11948,"DIRECCION DE PRESUPUESTOS","Xalapa","DP",11948]
[11951,"DIRECCION DE CONTABILIDAD","Xalapa","DC",11951]
[11954,"DIRECCIÓN DE CONTROL DE BIENES MUEBLES E INMUEBLES","Xalapa","DCBMI",11954]
[11955,"DIRECCION DE RECURSOS MATERIALES","Xalapa","DRM",11955]
[11957,"DIRECCION GENERAL DE RECURSOS HUMANOS","Xalapa","DGRH",11957]
[11958,"DIRECCION DE PERSONAL","Xalapa","DP",11958]
[11963,"DIRECCION DE RELACIONES LABORALES","Xalapa","DRL",11963]
[11964,"DIRECCION DE NOMINAS","Xalapa","DN",11964]
[11968,"DIRECCION DE SERVICIOS DE RED E INFRAESTRUCTURA TECNOLOGICA","Xalapa","DSRIT",11968]
[11969,"DIRECCION DE EXTENSION DE SERVICIOS TECNOLOGICOS","Xalapa","DEST",11969]
[11970,"DIRECCION DE DESARROLLO INFORMATICO DE APOYO ACADEMICO","Xalapa","DDIAA",11970]
[11971,"DIRECCION DE SERVICIOS INFORMATICOS ADMINISTRATIVOS","Xalapa","DSIA",11971]
[11972,"UNIDAD DEL SISTEMA INTEGRAL DE INFORMACION UNIVERSITARIA","Xalapa","USIIU",11972]
[11973,"DIRECCION DE OPERATIVIDAD E IMPACTO DE LAS TECNOLOGIAS DE INFORMACION","Xalapa","DOITI",11973]
[11974,"UNIDAD DE ORGANIZACION Y METODOS","Xalapa","UOM",11974]
[11975,"DEPARTAMENTO DE SERVICIOS GENERALES","Xalapa","DSG",11975]
[11976,"UNIDAD DE SERVICIOS BIBLIOTECARIOS Y DE INFORMACIÓN","Xalapa","USBI",11976]
[11977,"DIRECCION GENERAL DE DIFUSION CULTURAL","Xalapa","DGDC",11977]
[11979,"DIRECCION DEL AREA DE FORMACION BASICA GENERAL","Xalapa","DAFBG",11979]
[11980,"DIRECCION DE ACTIVIDADES DEPORTIVAS","Xalapa","DAD",11980]
[11981,"DIRECCION DE EDITORIAL","Xalapa","DE",11981]
[11983,"COORDINACION DE TRANSPARENCIA Y ACCESO A LA INFORMACION","Xalapa","CTAI",11983]
[11985,"JUNTA DE GOBIERNO","Xalapa","JG",11985]
[11994,"DEPARTAMENTO DE PRENSA                            ","Xalapa","DP",11994]
[12801,"TALLER LIBRE DE ARTES","Xalapa","TLA2",12801]
[13801,"TALLER LIBRE DE ARTES","Xalapa","TLA3",13801]
[21301,"FACULTAD DE ADMINISTRACION","Veracruz","FAV",21301]
[21401,"UNIDAD ACADEMICA DE CIENCIAS DE LA SALUD","Veracruz","UACSV",21401]
[21402,"FACULTAD DE MEDICINA","Veracruz","FMV",21402]
[21403,"FACULTAD DE BIOANÁLISIS","Veracruz","FBV",21403]
[21404,"FACULTAD DE NUTRICION","Veracruz","FNV",21404]
[21405,"FACULTAD DE PSICOLOGIA","Veracruz","FPV",21405]
[21406,"FACULTAD DE ENFERMERIA","Veracruz","FEV",21406]
[21407,"INSTITUTO DE  INVESTIGACIONES  MEDICO - BIOLOGICAS","Veracruz","IIMB",21407]
[21501,"FACULTAD DE MEDICINA VETERINARIA Y ZOOTECNIA","Veracruz","FMVZ",21501]
[21502,"RANCHO TORREON DEL MOLINO","Veracruz","DSIA",21502]
[21801,"TALLER LIBRE DE ARTES","Veracruz","TLAV",21801]
[21802,"ORQUESTA TRADICIONAL MOSCOVITA","Veracruz","ORM",21802]
[21803,"NEMATATLIN","Veracruz","NEMA",21803]
[22101,"FACULTAD DE INGENIERÍA","Veracruz","FIV",22101]
[22102,"INSTITUTO DE INGENIERIA","Veracruz","IIV",22102]
[22103,"CENTRO DE INVESTIGACIONES EN MICRO Y NANOTECNOLOGIA","Veracruz","CIMN",22103]
[22104,"FACULTAD DE INGENIERIA ELECTRICA Y ELECTRONICA","Veracruz","FIEE",22104]
[22105,"FACULTAD DE CIENCIAS QUIMICAS","Veracruz","FCQV",22105]
[22106,"FACULTAD DE INGENIERIA MECANICA Y CIENCIAS NAVALES","Veracruz","FIMCN",22106]
[22107,"FACULTAD DE INGENIERIA DE LA CONSTRUCCION Y EL HABITAT","Veracruz","FICH",22107]
[22201,"FACULTAD DE CIENCIAS Y TECNICAS DE  LA COMUNICACION","Veracruz","FCTC",22201]
[22202,"FACULTAD DE PEDAGOGIA","Veracruz","FPV",22202]
[22302,"FACULTAD DE CONTADURIA","Veracruz","FCV",22302]
[22401,"FACULTAD DE ODONTOLOGIA","Veracruz","FOV",22401]
[22402,"FACULTAD DE EDUCACION FISICA, DEPORTE Y RECREACION","Veracruz","FEFDR",22402]
[22403,"INSTITUTO DE MEDICINA FORENSE","Veracruz","IMF",22403]
[22501,"INSTITUTO DE CIENCIAS MARINAS Y PESQUERIAS DE LA UNIVERSIDAD VERACRUZANA","Veracruz","ICMPUV",22501]
[22601,"CENTRO DE INICIACION MUSICAL INFANTIL","Veracruz","CIMIV",22601]
[22701,"COORDINACIÓN ACADÉMICA REGIONAL DE  ENSEÑANZA ABIERTA","Veracruz","CAREA",22701]
[22801,"CENTRO DE IDIOMAS","Veracruz","CIV",22801]
[22901,"VICE RECTORIA VERACRUZ","Veracruz","VRV",22901]
[22902,"SECRETARIA ACADÉMICA REGIONAL VERACRUZ","Veracruz","SARV",22902]
[22903,"SECRETARIA DE ADMINISTRACION Y FINANZAS REGIONAL VERACRUZ","Veracruz","SAFV",22903]
[22904,"COORDINACION REGIONAL DE DIFUSION CULTURAL Y EXTENSION UNIVERSITARIA","Veracruz","CRDCYU",22904]
[22905,"COORDINACION REGIONAL DE BIBLIOTECAS VERACRUZ","Veracruz","CRBV",22905]
[22906,"UNIDAD DE SERVICIOS BIBLIOTECARIOS Y DE INFORMACION","Veracruz","USBIV",22906]
[22907,"CENTRO DE ESTUDIOS Y SERVICIOS EN SALUD","Veracruz","CESS",22907]
[31101,"FACULTAD DE CIENCIAS QUIMICAS","Córdoba","FCQC",31101]
[31401,"FACULTAD DE ENFERMERIA","Córdoba","FE",31401]
[31701,"COORDINACION ACADEMICA REGIONAL DE ENSEÑANZA ABIERTA","Córdoba","CAREACO",31701]
[31801,"CENTRO DE IDIOMAS","Córdoba","CIC",31801]
[31901,"VICE RECTORIA ORIZABA - CÓRDOBA","Córdoba","VROC",31901]
[31902,"SECRETARIA ACADÉMICA REGIONAL ORIZABA - CÓRDOBA","Córdoba","SAOC",31902]
[31903,"SECRETARIA DE ADMINISTRACION Y FINANZAS REGIONAL ORIZABA-CÓRDOBA","Córdoba","SAFOC",31903]
[31905,"COORDINACION REGIONAL DE BIBLIOTECAS ORIZABA-CORDOBA","Córdoba","CRBOC",31905]
[32101,"FACULTAD DE ARQUITECTURA","Córdoba","FARQC",32101]
[32801,"CENTRO DE IDIOMAS","Córdoba","CICO",32801]
[32906,"UNI. DE SERV.BIBLIOTECARIOS Y DE INF.(USBI CÓRDOBA","Córdoba","USBOC",32906]
[33101,"FACULTAD DE INGENIERIA","Córdoba","FI",33101]
[33401,"FACULTAD DE MEDICINA","Córdoba","FMCO",33401]
[34301,"FACULTAD DE CONTADURIA Y ADMINISTRACION","Córdoba","FCAC",34301]
[35501,"FACULTAD DE CIENCIAS BIOLOGICAS Y AGROPECUARIAS","Córdoba","FCBAC",35501]
[36401,"FACULTAD DE ODONTOLOGIA","Córdoba","FOCO",36401]
[41101,"FACULTAD DE INGENIERIA CIVIL","Poza Rica","FICPZ",41101]
[41102,"FACULTAD DE CIENCIAS QUIMICAS","Poza Rica","FCQPZ",41102]
[41103,"FACULTAD DE ARQUITECTURA","Poza Rica","FARQPZ",41103]
[41104,"FACULTAD DE INGENIERIA MECANICA Y ELECTRICA","Poza Rica","FIMEPZ",41104]
[41105,"FACULTAD DE INGENIERIA EN ELECTRONICA Y COMUNICACIONES","Poza Rica","FIEC",41105]
[41201,"FACULTAD DE PEDAGOGIA","Poza Rica","FPPZ",41201]
[41202,"FACULTAD DE TRABAJO SOCIAL","Poza Rica","FTSPZ",41202]
[41401,"UNIDAD ACADEMICA DE CIENCIAS DE LA SALUD","Poza Rica","UACSPZ",41401]
[41402,"FACULTAD DE MEDICINA","Poza Rica","FMPZ",41402]
[41403,"FACULTAD DE ODONTOLOGIA","Poza Rica","FOPZ",41403]
[41404,"FACULTAD DE PSICOLOGIA","Poza Rica","FPPZ",41404]
[41405,"FACULTAD DE ENFERMERIA","Poza Rica","FEPZ",41405]
[41701,"COORDINACION ACADEMICA REGIONAL DE ENSEÑANZA ABIERTA","Poza Rica","CAREAPz",41701]
[41801,"TALLER LIBRE DE ARTES","Poza Rica","TLAPZ",41801]
[41802,"CENTRO DE IDIOMAS","Poza Rica","CIPz",41802]
[41901,"VICE RECTORIA  POZA RICA - TUXPAN","Poza Rica","VRPZ",41901]
[41902,"SECRETARIA ACADÉMICA REGIONAL POZA RICA - TUXPAN","Poza Rica","SAPZ",41902]
[41903,"SECRETARIA DE ADMINISTRACION Y FINANZAS REGIONAL POZA RICA - TUXPAN","Poza Rica","SAFPZ",41903]
[41905,"COORDINACION REGIONAL DE BIBLIOTECAS POZA RICA - TUXPAN","Poza Rica","CRBPZ",41905]
[41906,"UNIDAD DE SERVICIOS BIBLIOTECARIOS Y DE INFORMACIÓN","Poza Rica","USBIPz",41906]
[42301,"FACULTAD DE CONTADURIA","Poza Rica","FCPZ",42301]
[42501,"FACULTAD DE CIENCIAS BIOLOGICO  AGROPECUARIAS","Poza Rica","FCBAPZ",42501]
[43801,"TALLER LIBRE DE ARTES","Poza Rica","TLAPZ2",43801]
[51101,"FACULTAD DE INGENIERÍA","Coatzacoalcos","FICM",51101]
[51102,"FACULTAD DE CIENCIAS QUIMICAS","Coatzacoalcos","FCQCM",51102]
[51301,"FACULTAD DE CONTADURIA Y ADMINISTRACION","Coatzacoalcos","FCACM",51301]
[51401,"ESCUELA DE ENFERMERIA","Coatzacoalcos","EE",51401]
[51701,"COORDINACION ACADEMICA REGIONAL DE ENSEÑANZA ABIERTA","Coatzacoalcos","CAREACM",51701]
[51702,"CENTRO REGIONAL DE INFORMATICA COATZACOALCOS","Coatzacoalcos","CRIC",51702]
[51703,"CENTRO DE INVESTIGACION EN RECURSOS ENERGETICOS Y SUSTENTABLES","Coatzacoalcos","CIRES",51703]
[51801,"CENTRO DE IDIOMAS","Coatzacoalcos","CICM",51801]
[51901,"VICE RECTORIA COATZACOALCOS - MINATITLÁN","Coatzacoalcos","VRCM",51901]
[51902,"SECRETARIA ACADÉMICA REGIONAL COATZACOALCOS - MINATITLÁN","Coatzacoalcos","SACM",51902]
[51903,"SECRETARIA DE ADMINISTRACIÓN Y FINANZAS REGIONAL COATZACOALCOS - MINATITLÁN","Coatzacoalcos","SAFCM",51903]
[51905,"COORDINACION REGIONAL DE BIBLIOTECAS COATZACOALCOS-MINATITLAN","Coatzacoalcos","CRBCM",51905]
[51906,"UNIDAD DE SERVICIOS BIBLIOTECARIOS Y DE INFORMACIÓN","Coatzacoalcos","USBICM",51906]
[52201,"FACULTAD DE TRABAJO SOCIAL","Coatzacoalcos","FTSCM",52201]
[52401,"UNIDAD ACADEMICA DE CIENCIAS DE LA SALUD Y TRABAJO SOCIAL","Coatzacoalcos","UACSTS",52401]
[52402,"FACULTAD DE ODONTOLOGIA","Coatzacoalcos","FOCM",52402]
[52403,"FACULTAD DE MEDICINA","Coatzacoalcos","FMCM",52403]
[52404,"FACULTAD DE ENFERMERIA","Coatzacoalcos","FECM",52404]
[52701,"CENTRO REGIONAL DE INFORMÁTICA MINATITLÁN","Coatzacoalcos","CRIM",52701]
[52901,"UNIDAD DE SERVICIOS BIBLIOTECARIOS Y DE INFORMACIÓN","Coatzacoalcos","USBIC",52901]
[53501,"INGENIERIA EN SISTEMAS DE PRODUCCION AGROPECUARIA","Coatzacoalcos","ISPA",53501]
[55108,"COORDINACIÓN ADMINISTRATIVA DEL SISTEMA DE ATENCIÓN INTEGRAL A LA SALUD","Coatzacoalcos","CASAIS",55108]
[80001,"JEFE DE OFICINA DE EVALUACIÓN","No valido","JOE",80001]
[80002,"DEPARTAMENTO DE ASESORIA Y PROCEDIMIENTOS LABORALES (NO VÁLIDO)","No valido","DAPL",80002]
[80003,"DEPARTAMENTO DE ASESORIA Y PROCEDIMIENTOS LABORALES","No valido","DAPL",80003]
[80004,"COORDINACIÓN DE DESARROLLO DE COLECCIONES","No valido","FCA",80004]
[80005,"DEPARTAMENTO DE ASUNTOS TÉCNICOS","No valido","DAT",80005]
[80006,"DEPARTAMENTO DE PLANEACIÓN Y SEGUIMIENTO","No valido","DPS",80006]
[80007,"DEPARTAMENTO DE LA OFICINA DE TRANSFERENCIA DE TECNOLOGÍA","No valido","DOTT",80007]
[80008,"COORDINACIÓN DE ADMINISTRACIÓN DE RECURSOS PARA LA INVESTIGACIÓN","No valido","CARI",80008]
[80009,"DIRECCIÓN DE GRUPOS ARTÍSTICOS","No valido","DGA",80009]
[80010,"DEPARTAMENTO DE VINCULACIÓN SOCIAL","No valido","DVS",80010]
[80011,"COORDINACIÓN DE PROTECCIÓN CIVIL","No valido","CPC",80011]